{"text_format":"1","workbook":"xlsx","n_sheets":3,"sheets":["Instructions","FFSReturn","APC Rates & Codes"],"not_rendered":{"charts":0,"images":3,"macros":1,"external_links":0,"defined_names":17,"comments":0,"pivot_tables":0},"unopened":[],"bounds":{"document_bytes":16777216,"sheet_cells":100000,"rows_first":2000,"rows_last":500,"rows_between":2000,"halvings":0,"cell_chars":16384,"cell_head_chars":4096},"cells_cut":0,"cells_raw":0,"read":"whole","date_system":"1900"}

{"sheet":"Instructions","index":0,"n_rows":81,"n_cols":1,"rows_kept":81,"cut":false,"hidden":false,"merged":[]}
["APC Fee for Service Return Form"]
["User's Instructions"]
[]
[]
["1.  Who to use this form"]
["This Return Form is to be used by any Dealer, Agent or Producer remitting Fee for Service to the Agricultural Produce Commission "]
[]
["2.  Company/Business Name"]
["Your business or trading name, if you don't have a business name enter your name in full.  If you do not have an APC Dealer Id No (see item 4), please supply name, address, phone, email, fax"]
[]
["3.   ABN"]
["Please supply your ABN if you have one."]
[]
["4.  Dealer APC ID Number"]
["Your APC ID Number which is issued by the APC. If you don't have an APC ID Number yet, type NA and based on information provided at Item 2, (above) the APC will assign you an APC ID number and advise you of this by return email/fax for your next return."]
[]
["5.  Period Type"]
["Select from the drop down list. A prior agreement for any return period other than monthly needs to be made with APC."]
[]
["6.  Statement Period From"]
["Use the dd/mm/yyyy format then press enter"]
[]
["7.  Statement Period To"]
["Use the dd/mm/yyyy format then press enter"]
[]
["8. Producer Name"]
["Name of producer from whom the produce was purchased. If you do not have an APC Id No (see next item) for the producer, please supply name, address, phone, email, fax"]
[]
["9. Producer APC ID No."]
["Enter the producer APC ID No. which you should have received from the APC.  If you don't yet have an APC ID No. for that producer, please type NA  and based on information provided at Item 8, (above) the APC will assign and advise you of an APC ID No. to use in your next return."]
[]
["10. Produce Type/Variety"]
["Select a Produce Type/Variety from the drop down list."]
[]
["11.  Market Type"]
["Select Market Type (eg Local, Interstate or Export) from the drop down list."]
[]
["12. Quantity"]
["Enter quantity for this row/line."]
[]
["13. Unit of Measure"]
["Unit of measure will automatically update when produce type is selected (see item 10 above)."]
[]
["14. Rate"]
["Rate will automatically update when produce type is selected (see item 10 above)."]
[]
["15.  $ Value per row/line"]
["$ Value for this row/line will automatically update when both produce type and quantity has been entered (see Items 10 & 12 above)."]
[]
["16. Add and/or Delete Blank Rows (New Lines)"]
["If you need to Add or  Delete row/s, (except the first line row No. 10) place your cursor in the light blue input area of the form and right click select insert/or delete and select entire row"]
[]
["17. Save As"]
["Save as either an excel or CSV file type.  Use your name, the month and year as the name of the file."]
[]
["18. Payment Options"]
["(a)  By Credit Card:"]
["Complete the details as required at the bottom of the return form."]
["(b)  By Direct Credit (EFT):"]
["Bank:  Commonwealth Bank"]
["Account Name: Agricultural Produce Commission"]
["Account Number: 10400128"]
["BSB Number: 066 040"]
["Reference:  Your APC Id No and Trading Name  Please do not forget to include a reference as we need this to identify your deposit/payment"]
["(c)  By Cheque:"]
["Make your Cheque payable to: Agricultural Produce Commission."]
[]
["19. Print Hard Copy"]
["Select the any of the Print options available through MS Excel."]
[]
["20. Forwarding your Return by Post"]
["Agricultural Produce Commission, PO Box 7205, KARAWARA  WA 6152"]
[]
["21. Forwarding your Return via e-Mail"]
["Send the file as an attachment to: apcadmin@dpird.wa.gov.au."]
[]
["22. Forwarding your Return via Fax"]
[]
[]
["23. APC Produce Codes & FFS Rates"]
["APC FFS Rates are updated and published on the APC Web Site http://www.apcwa.org.au"]

{"sheet":"FFSReturn","index":1,"n_rows":173,"n_cols":205,"rows_kept":173,"cut":false,"hidden":false,"merged":[[160,2,160,13],[160,14,160,17],[160,18,160,20],[160,21,160,23],[158,2,158,13],[158,14,158,17],[158,18,158,20],[158,21,158,23],[159,2,159,13],[159,14,159,17],[159,18,159,20],[159,21,159,23],[157,18,157,20],[157,21,157,23],[153,2,153,13],[153,14,153,17],[153,18,153,20],[153,21,153,23],[154,2,154,13],[154,14,154,17],[154,18,154,20],[154,21,154,23],[155,2,155,13],[155,14,155,17],[155,18,155,20],[155,21,155,23],[156,14,156,17],[156,18,156,20],[156,21,156,23],[157,2,157,13],[157,14,157,17],[134,21,134,23],[134,14,134,17],[135,21,135,23],[139,14,139,17],[140,14,140,17],[138,14,138,17],[150,14,150,17],[150,18,150,20],[150,21,150,23],[149,21,149,23],[134,18,134,20],[143,2,143,13],[143,14,143,17],[143,18,143,20],[143,21,143,23],[135,2,135,13],[141,18,141,20],[142,18,142,20],[139,2,139,13],[135,18,135,20],[135,14,135,17],[137,21,137,23],[138,18,138,20],[137,18,137,20],[140,18,140,20],[136,18,136,20],[139,21,139,23],[136,21,136,23],[138,21,138,23],[140,21,140,23],[127,2,127,13],[127,14,127,17],[127,18,127,20],[127,21,127,23],[128,2,128,13],[128,14,128,17],[128,18,128,20],[128,21,128,23],[129,2,129,13],[129,14,129,17],[129,18,129,20],[129,21,129,23],[124,2,124,13],[124,14,124,17],[124,18,124,20],[124,21,124,23],[125,2,125,13],[125,14,125,17],[125,18,125,20],[125,21,125,23],[126,2,126,13],[126,14,126,17],[126,18,126,20],[126,21,126,23],[121,2,121,13],[121,14,121,17],[121,18,121,20],[121,21,121,23],[122,2,122,13],[122,14,122,17],[122,18,122,20],[122,21,122,23],[123,2,123,13],[123,14,123,17],[123,18,123,20],[123,21,123,23],[118,2,118,13],[118,14,118,17],[118,18,118,20],[118,21,118,23],[119,2,119,13],[119,14,119,17],[119,18,119,20],[119,21,119,23],[120,2,120,13],[120,14,120,17],[120,18,120,20],[120,21,120,23],[115,2,115,13],[115,14,115,17],[115,18,115,20],[115,21,115,23],[116,2,116,13],[116,14,116,17],[116,18,116,20],[116,21,116,23],[117,2,117,13],[117,14,117,17],[117,18,117,20],[117,21,117,23],[112,2,112,13],[112,14,112,17],[112,18,112,20],[112,21,112,23],[113,2,113,13],[113,14,113,17],[113,18,113,20],[113,21,113,23],[114,2,114,13],[114,14,114,17],[114,18,114,20],[114,21,114,23],[109,2,109,13],[109,14,109,17],[109,18,109,20],[109,21,109,23],[110,2,110,13],[110,14,110,17],[110,18,110,20],[110,21,110,23],[111,2,111,13],[111,14,111,17],[111,18,111,20],[111,21,111,23],[106,2,106,13],[106,14,106,17],[106,18,106,20],[106,21,106,23],[107,2,107,13],[107,14,107,17],[107,18,107,20],[107,21,107,23],[108,2,108,13],[108,14,108,17],[108,18,108,20],[108,21,108,23],[103,2,103,13],[103,14,103,17],[103,18,103,20],[103,21,103,23],[104,2,104,13],[104,14,104,17],[104,18,104,20],[104,21,104,23],[105,2,105,13],[105,14,105,17],[105,18,105,20],[105,21,105,23],[100,2,100,13],[100,14,100,17],[100,18,100,20],[100,21,100,23],[101,2,101,13],[101,14,101,17],[101,18,101,20],[101,21,101,23],[102,2,102,13],[102,14,102,17],[102,18,102,20],[102,21,102,23],[97,2,97,13],[97,14,97,17],[97,18,97,20],[97,21,97,23],[98,2,98,13],[98,14,98,17],[98,18,98,20],[98,21,98,23],[99,2,99,13],[99,14,99,17],[99,18,99,20],[99,21,99,23],[94,2,94,13],[94,14,94,17],[94,18,94,20],[94,21,94,23],[95,2,95,13],[95,14,95,17],[95,18,95,20],[95,21,95,23],[96,2,96,13],[96,14,96,17],[96,18,96,20],[96,21,96,23],[91,2,91,13],[91,14,91,17],[91,18,91,20],[91,21,91,23],[92,2,92,13],[92,14,92,17],[92,18,92,20],[92,21,92,23],[93,2,93,13],[93,14,93,17],[93,18,93,20],[93,21,93,23],[88,2,88,13],[88,14,88,17],[88,18,88,20],[88,21,88,23],[89,2,89,13],[89,14,89,17],[89,18,89,20],[89,21,89,23],[90,2,90,13],[90,14,90,17],[90,18,90,20],[90,21,90,23],[85,2,85,13],[85,14,85,17],[85,18,85,20],[85,21,85,23],[86,2,86,13],[86,14,86,17],[86,18,86,20],[86,21,86,23],[87,2,87,13],[87,14,87,17],[87,18,87,20],[87,21,87,23],[82,2,82,13],[82,14,82,17],[82,18,82,20],[82,21,82,23],[83,2,83,13],[83,14,83,17],[83,18,83,20],[83,21,83,23],[84,2,84,13],[84,14,84,17],[84,18,84,20],[84,21,84,23],[79,2,79,13],[79,14,79,17],[79,18,79,20],[79,21,79,23],[80,2,80,13],[80,14,80,17],[80,18,80,20],[80,21,80,23],[81,2,81,13],[81,14,81,17],[81,18,81,20],[81,21,81,23],[76,2,76,13],[76,14,76,17],[76,18,76,20],[76,21,76,23],[77,2,77,13],[77,14,77,17],[77,18,77,20],[77,21,77,23],[78,2,78,13],[78,14,78,17],[78,18,78,20],[78,21,78,23],[73,2,73,13],[73,14,73,17],[73,18,73,20],[73,21,73,23],[74,2,74,13],[74,14,74,17],[74,18,74,20],[74,21,74,23],[75,2,75,13],[75,14,75,17],[75,18,75,20],[75,21,75,23],[70,2,70,13],[70,14,70,17],[70,18,70,20],[70,21,70,23],[71,2,71,13],[71,14,71,17],[71,18,71,20],[71,21,71,23],[72,2,72,13],[72,14,72,17],[72,18,72,20],[72,21,72,23],[67,2,67,13],[67,14,67,17],[67,18,67,20],[67,21,67,23],[68,2,68,13],[68,14,68,17],[68,18,68,20],[68,21,68,23],[69,2,69,13],[69,14,69,17],[69,18,69,20],[69,21,69,23],[64,2,64,13],[64,14,64,17],[64,18,64,20],[64,21,64,23],[65,2,65,13],[65,14,65,17],[65,18,65,20],[65,21,65,23],[66,2,66,13],[66,14,66,17],[66,18,66,20],[66,21,66,23],[61,2,61,13],[61,14,61,17],[61,18,61,20],[61,21,61,23],[62,2,62,13],[62,14,62,17],[62,18,62,20],[62,21,62,23],[63,2,63,13],[63,14,63,17],[63,18,63,20],[63,21,63,23],[58,2,58,13],[58,14,58,17],[58,18,58,20],[58,21,58,23],[59,2,59,13],[59,14,59,17],[59,18,59,20],[59,21,59,23],[60,2,60,13],[60,14,60,17],[60,18,60,20],[60,21,60,23],[55,2,55,13],[55,14,55,17],[55,18,55,20],[55,21,55,23],[56,2,56,13],[56,14,56,17],[56,18,56,20],[56,21,56,23],[57,2,57,13],[57,14,57,17],[57,18,57,20],[57,21,57,23],[52,2,52,13],[52,14,52,17],[52,18,52,20],[52,21,52,23],[53,2,53,13],[53,14,53,17],[53,18,53,20],[53,21,53,23],[54,2,54,13],[54,14,54,17],[54,18,54,20],[54,21,54,23],[49,2,49,13],[49,14,49,17],[49,18,49,20],[49,21,49,23],[50,2,50,13],[50,14,50,17],[50,18,50,20],[50,21,50,23],[51,2,51,13],[51,14,51,17],[51,18,51,20],[51,21,51,23],[46,2,46,13],[46,14,46,17],[46,18,46,20],[46,21,46,23],[47,2,47,13],[47,14,47,17],[47,18,47,20],[47,21,47,23],[48,2,48,13],[48,14,48,17],[48,18,48,20],[48,21,48,23],[43,2,43,13],[43,14,43,17],[43,18,43,20],[43,21,43,23],[44,2,44,13],[44,14,44,17],[44,18,44,20],[44,21,44,23],[45,2,45,13],[45,14,45,17],[45,18,45,20],[45,21,45,23],[40,2,40,13],[40,14,40,17],[40,18,40,20],[40,21,40,23],[41,2,41,13],[41,14,41,17],[41,18,41,20],[41,21,41,23],[42,2,42,13],[42,14,42,17],[42,18,42,20],[42,21,42,23],[37,2,37,13],[37,14,37,17],[37,18,37,20],[37,21,37,23],[38,2,38,13],[38,14,38,17],[38,18,38,20],[38,21,38,23],[39,2,39,13],[39,14,39,17],[39,18,39,20],[39,21,39,23],[34,2,34,13],[34,14,34,17],[34,18,34,20],[34,21,34,23],[35,2,35,13],[35,14,35,17],[35,18,35,20],[35,21,35,23],[36,2,36,13],[36,14,36,17],[36,18,36,20],[36,21,36,23],[31,21,31,23],[32,2,32,13],[32,14,32,17],[32,18,32,20],[32,21,32,23],[33,2,33,13],[33,14,33,17],[33,18,33,20],[33,21,33,23],[170,0,171,1],[170,17,170,23],[164,0,165,1],[171,17,171,23],[169,20,169,23],[171,5,171,15],[170,5,170,15],[164,15,164,17],[164,9,164,14],[166,0,169,1],[164,4,164,8],[166,191,172,192],[164,190,164,191],[163,168,163,189],[164,168,165,169],[141,183,141,186],[141,187,141,189],[162,187,162,189],[172,170,172,190],[170,182,171,182],[171,171,171,181],[171,183,171,189],[170,183,170,190],[163,190,163,191],[142,170,142,182],[161,183,161,186],[162,170,162,182],[161,170,161,182],[164,177,164,182],[162,183,162,186],[164,186,164,189],[164,183,164,185],[164,170,164,176],[142,187,142,189],[142,183,142,186],[9,2,9,13],[1,14,1,25],[170,168,170,169],[169,186,169,189],[161,187,161,189],[166,168,169,169],[169,171,169,184],[8,21,8,25],[10,14,10,17],[10,18,10,20],[141,170,141,182],[169,5,169,18],[168,5,168,18],[166,5,166,23],[168,20,168,23],[165,4,165,22],[165,23,165,24],[21,2,21,13],[21,14,21,17],[21,18,21,20],[21,21,21,23],[22,2,22,13],[22,14,22,17],[22,18,22,20],[0,191,0,192],[0,187,0,190],[0,169,0,186],[1,169,1,181],[1,182,1,192],[8,168,8,189],[4,177,4,181],[5,177,5,181],[10,2,10,13],[10,21,10,23],[3,2,6,9],[9,21,9,23],[4,10,4,14],[5,10,5,14],[6,10,6,14],[7,1,7,25],[0,15,0,18],[0,19,0,25],[8,0,8,20],[3,10,3,25],[0,1,0,14],[1,1,1,13],[9,18,9,20],[9,14,9,17],[3,170,6,176],[7,169,7,192],[8,190,8,192],[12,183,12,186],[6,177,6,181],[10,170,10,182],[9,170,9,182],[11,187,11,189],[12,187,12,189],[9,187,9,189],[10,187,10,189],[9,183,9,186],[10,183,10,186],[3,177,3,192],[133,187,133,189],[131,170,131,182],[131,183,131,186],[131,187,131,189],[140,170,140,182],[138,183,138,186],[137,187,137,189],[140,183,140,186],[135,183,135,186],[135,170,135,182],[134,183,134,186],[139,183,139,186],[136,183,136,186],[137,170,137,182],[139,170,139,182],[139,187,139,189],[134,187,134,189],[134,170,134,182],[138,187,138,189],[138,170,138,182],[140,187,140,189],[136,187,136,189],[137,183,137,186],[162,18,162,20],[162,2,162,13],[161,2,161,13],[164,23,164,24],[164,18,164,22],[146,2,146,13],[146,14,146,17],[146,18,146,20],[146,21,146,23],[162,14,162,17],[162,21,162,23],[161,21,161,23],[163,1,163,22],[163,23,163,24],[161,18,161,20],[151,2,151,13],[151,14,151,17],[151,18,151,20],[151,21,151,23],[152,2,152,13],[152,14,152,17],[152,18,152,20],[152,21,152,23],[156,2,156,13],[147,2,147,13],[147,14,147,17],[142,21,142,23],[161,14,161,17],[141,2,141,13],[132,2,132,13],[130,2,130,13],[133,14,133,17],[131,14,131,17],[141,14,141,17],[140,2,140,13],[138,2,138,13],[142,2,142,13],[142,14,142,17],[134,2,134,13],[147,18,147,20],[147,21,147,23],[148,2,148,13],[148,14,148,17],[148,18,148,20],[148,21,148,23],[149,2,149,13],[149,14,149,17],[141,21,141,23],[24,14,24,17],[24,18,24,20],[24,21,24,23],[150,2,150,13],[17,2,17,13],[20,18,20,20],[19,2,19,13],[20,21,20,23],[17,18,17,20],[131,2,131,13],[133,2,133,13],[137,14,137,17],[137,2,137,13],[136,2,136,13],[136,14,136,17],[149,18,149,20],[144,2,144,13],[144,14,144,17],[144,18,144,20],[144,21,144,23],[145,2,145,13],[145,14,145,17],[145,18,145,20],[145,21,145,23],[28,18,28,20],[130,183,130,186],[133,170,133,182],[132,187,132,189],[132,170,132,182],[132,183,132,186],[20,2,20,13],[131,21,131,23],[25,2,25,13],[25,14,25,17],[25,18,25,20],[25,21,25,23],[26,2,26,13],[26,14,26,17],[27,2,27,13],[27,14,27,17],[27,18,27,20],[27,21,27,23],[22,21,22,23],[23,2,23,13],[23,14,23,17],[23,18,23,20],[23,21,23,23],[24,2,24,13],[18,2,18,13],[18,21,18,23],[19,183,19,186],[20,183,20,186],[133,21,133,23],[28,21,28,23],[29,2,29,13],[29,14,29,17],[29,18,29,20],[29,21,29,23],[30,2,30,13],[30,14,30,17],[30,18,30,20],[30,21,30,23],[31,2,31,13],[31,14,31,17],[31,18,31,20],[133,18,133,20],[20,14,20,17],[132,14,132,17],[130,18,130,20],[18,18,18,20],[28,2,28,13],[28,14,28,17],[17,21,17,23],[139,18,139,20],[18,183,18,186],[136,170,136,182],[135,187,135,189],[17,170,17,182],[19,170,19,182],[18,170,18,182],[20,170,20,182],[19,18,19,20],[19,21,19,23],[26,18,26,20],[26,21,26,23],[20,187,20,189],[17,183,17,186],[19,187,19,189],[18,187,18,189],[17,187,17,189],[130,187,130,189],[130,21,130,23],[133,183,133,186],[132,21,132,23],[131,18,131,20],[130,170,130,182],[16,18,16,20],[18,14,18,17],[19,14,19,17],[17,14,17,17],[130,14,130,17],[132,18,132,20],[16,187,16,189],[11,2,11,13],[11,14,11,17],[12,2,12,13],[12,14,12,17],[13,2,13,13],[16,2,16,13],[16,14,16,17],[15,2,15,13],[15,14,15,17],[14,2,14,13],[14,14,14,17],[13,14,13,17],[16,21,16,23],[15,187,15,189],[15,21,15,23],[16,170,16,182],[16,183,16,186],[11,18,11,20],[11,21,11,23],[11,170,11,182],[11,183,11,186],[12,170,12,182],[13,18,13,20],[12,18,12,20],[12,21,12,23],[14,170,14,182],[14,183,14,186],[15,18,15,20],[13,21,13,23],[13,170,13,182],[14,18,14,20],[14,21,14,23],[13,183,13,186],[15,170,15,182],[15,183,15,186],[14,187,14,189],[13,187,13,189]]}
["Click here to view User's Instructions","Agricultural Produce Commission\nABN: 33720315990\nFee for Service Return Form",null,null,null,null,null,null,null,null,null,null,null,null,null,"Postal Address:\n\n\n\nTelephone:  \nFacsimile:    \nEmail:\nAttention to: ",null,null,null,"Agricultural Produce Commission\nPO Box 7205\nKARAWARA\nWA 6152\n08-9368 3465/3734\n\napcadmin@dpird.wa.gov.au\nAPC Administrator",null,null,null,null,null,null,null,null,null,null,null,null,null,null,null,null,null,null,null,null,null,null,null,null,null,null,null,null,null,null,null,null,null,null,null,null,null,null,null,null,null,null,null,null,null,null,null,null,null,null,null,null,null,null,null,null,null,null,null,null,null,null,null,null,null,null,null,null,null,null,null,null,null,null,null,null,null,null,null,null,null,null,null,null,null,null,null,null,null,null,null,null,null,null,null,null,null,null,null,null,null,null,null,null,null,null,null,null,null,null,null,null,null,null,null,null,null,null,null,null,null,null,null,null,null,null,null,null,null,null,null,null,null,null,null,null,null,null,null,null,null,null,null,null,null,null,null,null,null,"Agricultural Produce Commission\nABN: 33720315990\nFee for Service Return Form",null,null,null,null,null,null,null,null,null,null,null,null,null,null,null,null,null,"Postal Address:\n\n\n\nTelephone:  \nFacsimile:    \nEmail:\nAttention to: ",null,null,null,"Agricultural Produce Commission\n3 Baron-Hay Court\nSort Bin 27\nSOUTH PERTH WA 6151\n08-9368 3465/3734\n08-9368 3128\napcadmin@agric.wa.gov.au\nAPC Administrator"]
["Company/Business Name ",null,null,null,null,null,null,null,null,null,null,null,null,null,null,null,null,null,null,null,null,null,null,null,null,null,null,null,null,null,null,null,null,null,null,null,null,null,null,null,null,null,null,null,null,null,null,null,null,null,null,null,null,null,null,null,null,null,null,null,null,null,null,null,null,null,null,null,null,null,null,null,null,null,null,null,null,null,null,null,null,null,null,null,null,null,null,null,null,null,null,null,null,null,null,null,null,null,null,null,null,null,null,null,null,null,null,null,null,null,null,null,null,null,null,null,null,null,null,null,null,null,null,null,null,null,null,null,null,null,null,null,null,null,null,null,null,null,null,null,null,null,null,null,null,null,null,null,null,null,null,null,null,null,null,null,null,null,null,null,null,null,null,null,null,null,null,null,{"$f":"A2","v":"Company/Business Name "},{"$f":"$B$2","v":0}]
["ABN/ACN ",null,null,null,null,null,null,null,null,null,null,null,null,null,null,null,null,null,null,null,null,null,null,null,null,null,null,null,null,null,null,null,null,null,null,null,null,null,null,null,null,null,null,null,null,null,null,null,null,null,null,null,null,null,null,null,null,null,null,null,null,null,null,null,null,null,null,null,null,null,null,null,null,null,null,null,null,null,null,null,null,null,null,null,null,null,null,null,null,null,null,null,null,null,null,null,null,null,null,null,null,null,null,null,null,null,null,null,null,null,null,null,null,null,null,null,null,null,null,null,null,null,null,null,null,null,null,null,null,null,null,null,null,null,null,null,null,null,null,null,null,null,null,null,null,null,null,null,null,null,null,null,null,null,null,null,null,null,null,null,null,null,null,null,null,null,null,null,"ABN/ACN ",{"$f":"$B$3","v":0}]
["Dealer APC ID Number ",null,null,null,null,null,null,null,null,null,"APC Office Use Only:",null,null,null,null,null,null,null,null,null,null,null,null,null,null,null,null,null,null,null,null,null,null,null,null,null,null,null,null,null,null,null,null,null,null,null,null,null,null,null,null,null,null,null,null,null,null,null,null,null,null,null,null,null,null,null,null,null,null,null,null,null,null,null,null,null,null,null,null,null,null,null,null,null,null,null,null,null,null,null,null,null,null,null,null,null,null,null,null,null,null,null,null,null,null,null,null,null,null,null,null,null,null,null,null,null,null,null,null,null,null,null,null,null,null,null,null,null,null,null,null,null,null,null,null,null,null,null,null,null,null,null,null,null,null,null,null,null,null,null,null,null,null,null,null,null,null,null,null,null,null,null,null,null,null,null,null,null,{"$f":"A4","v":"Dealer APC ID Number "},{"$f":"IF(B4=\"\",\"\",B4)","v":""},null,null,null,null,null,null,null,{"$f":"K4","v":"APC Office Use Only:"}]
["Period Type ",null,null,null,null,null,null,null,null,null,"Return ID No:",null,null,null,null,null,null,null,null,null,null,null,null,null,null,null,null,null,null,null,null,null,null,null,null,null,null,null,null,null,null,null,null,null,null,null,null,null,null,null,null,null,null,null,null,null,null,null,null,null,null,null,null,null,null,null,null,null,null,null,null,null,null,null,null,null,null,null,null,null,null,null,null,null,null,null,null,null,null,null,null,null,null,null,null,null,null,null,null,null,null,null,null,null,null,null,null,null,null,null,null,null,null,null,null,null,null,null,null,null,null,null,null,null,null,null,null,null,null,null,null,null,null,null,null,null,null,null,null,null,null,null,null,null,null,null,null,null,null,null,null,null,null,null,null,null,null,null,null,null,null,null,null,null,null,null,null,null,{"$f":"A5","v":"Period Type "},{"$f":"IF(B5=\"\",\"\",B5)","v":""},null,null,null,null,null,null,null,{"$f":"K5","v":"Return ID No:"},null,null,null,null,{"$f":"IF(P5=\"\",\"\",P5)","v":""},{"$f":"IF(Q5=\"\",\"\",Q5)","v":""},"","","","","","",""]
["Statement Period From ",null,null,null,null,null,null,null,null,null,"Date Processed:",null,null,null,null,null,null,null,null,null,null,null,null,null,null,null,null,null,null,null,null,null,null,null,null,null,null,null,null,null,null,null,null,null,null,null,null,null,null,null,null,null,null,null,null,null,null,null,null,null,null,null,null,null,null,null,null,null,null,null,null,null,null,null,null,null,null,null,null,null,null,null,null,null,null,null,null,null,null,null,null,null,null,null,null,null,null,null,null,null,null,null,null,null,null,null,null,null,null,null,null,null,null,null,null,null,null,null,null,null,null,null,null,null,null,null,null,null,null,null,null,null,null,null,null,null,null,null,null,null,null,null,null,null,null,null,null,null,null,null,null,null,null,null,null,null,null,null,null,null,null,null,null,null,null,null,null,null,{"$f":"A6","v":"Statement Period From "},{"$f":"IF(B6=\"\",\"\",B6)","v":""},null,null,null,null,null,null,null,{"$f":"K6","v":"Date Processed:"},null,null,null,null,{"$f":"IF(P6=\"\",\"\",P6)","v":""},"","","","","","",""]
["Statement Period To ",null,null,null,null,null,null,null,null,null,"FFS Form Version:",null,null,null,null,19,3,null,null,null,null,null,null,null,null,null,null,null,null,null,null,null,null,null,null,null,null,null,null,null,null,null,null,null,null,null,null,null,null,null,null,null,null,null,null,null,null,null,null,null,null,null,null,null,null,null,null,null,null,null,null,null,null,null,null,null,null,null,null,null,null,null,null,null,null,null,null,null,null,null,null,null,null,null,null,null,null,null,null,null,null,null,null,null,null,null,null,null,null,null,null,null,null,null,null,null,null,null,null,null,null,null,null,null,null,null,null,null,null,null,null,null,null,null,null,null,null,null,null,null,null,null,null,null,null,null,null,null,null,null,null,null,null,null,null,null,null,null,null,null,null,null,null,null,null,null,null,null,{"$f":"A7","v":"Statement Period To "},{"$f":"IF(B7=\"\",\"\",B7)","v":""},null,null,null,null,null,null,null,{"$f":"K7","v":"FFS Form Version:"},null,null,null,null,{"$f":"IF(P7=\"\",\"\",P7)","v":19},{"$f":"IF(Q7=\"\",\"\",Q7)","v":3}]
[]
["Dealers &/or Producers Data Entry Fields",null,null,null,null,null,null,null,null,null,null,null,null,null,null,null,null,null,null,null,null,"APC System Generated Fields",null,null,null,null,null,null,null,null,null,null,null,null,null,null,null,null,null,null,null,null,null,null,null,null,null,null,null,null,null,null,null,null,null,null,null,null,null,null,null,null,null,null,null,null,null,null,null,null,null,null,null,null,null,null,null,null,null,null,null,null,null,null,null,null,null,null,null,null,null,null,null,null,null,null,null,null,null,null,null,null,null,null,null,null,null,null,null,null,null,null,null,null,null,null,null,null,null,null,null,null,null,null,null,null,null,null,null,null,null,null,null,null,null,null,null,null,null,null,null,null,null,null,null,null,null,null,null,null,null,null,null,null,null,null,null,null,null,null,null,null,null,null,null,null,null,null,{"$f":"A9","v":"Dealers &/or Producers Data Entry Fields"},null,null,null,null,null,null,null,null,null,null,null,null,null,null,null,null,null,null,null,null,null,{"$f":"V9","v":"APC System Generated Fields"}]
["Producer's Name ","Producer's APC ID No.","Produce Type &  Variety",null,null,null,null,null,null,null,null,null,null,null,"Market Type ",null,null,null,"Quantity",null,null,"Unit Of Measure",null,null,"Rate","$Value Per Row/Line",null,null,null,null,null,null,null,null,null,null,null,null,null,null,null,null,null,null,null,null,null,null,null,null,null,null,null,null,null,null,null,null,null,null,null,null,null,null,null,null,null,null,null,null,null,null,null,null,null,null,null,null,null,null,null,null,null,null,null,null,null,null,null,null,null,null,null,null,null,null,null,null,null,null,null,null,null,null,null,null,null,null,null,null,null,null,null,null,null,null,null,null,null,null,null,null,null,null,null,null,null,null,null,null,null,null,null,null,null,null,null,null,null,null,null,null,null,null,null,null,null,null,null,null,null,null,null,null,null,null,null,null,null,null,null,null,null,null,null,null,null,null,"Producer's Name ",{"$f":"B10","v":"Producer's APC ID No."},"Produce Type &  Variety",null,null,null,null,null,null,null,null,null,null,null,null,{"$f":"O10","v":"Market Type "},null,null,null,{"$f":"S10","v":"Quantity"},null,null,"Unit Of Measure",{"$f":"Y10","v":"Rate"},"$Value Per Row/Line",null,"Dealer ID","Producer ID:","Period Start Date:","Period End Date:","Period Type:","Market Type (L, I or X)","Produce Type","Package Fee ($)","Quantity","Line Total ($)","Return Total:"]
[null,null,null,null,null,null,null,null,null,null,null,null,null,null,null,null,null,null,null,null,null,{"$f":"IF(C11=\"\",\"\",VLOOKUP(C11,ProduceList,3,FALSE))","v":""},null,null,{"$f":"IF(C11=\"\",\"\",VLOOKUP(C11,ProduceList,4,FALSE))","v":""},{"$f":"IF(C11=\"\",\"\",ROUND(S11*Y11,2))","v":""},null,null,null,null,null,null,null,null,null,null,null,null,null,null,null,null,null,null,null,null,null,null,null,null,null,null,null,null,null,null,null,null,null,null,null,null,null,null,null,null,null,null,null,null,null,null,null,null,null,null,null,null,null,null,null,null,null,null,null,null,null,null,null,null,null,null,null,null,null,null,null,null,null,null,null,null,null,null,null,null,null,null,null,null,null,null,null,null,null,null,null,null,null,null,null,null,null,null,null,null,null,null,null,null,null,null,null,null,null,null,null,null,null,null,null,null,null,null,null,null,null,null,null,null,null,null,null,null,null,null,null,null,null,null,null,null,null,null,null,null,null,null,0,0,0,null,null,null,null,null,null,null,null,null,null,null,null,0,null,null,null,0,null,null,"","","",null,{"$f":"IF($B$4=\"\",\"\",IF(C11=\"\",\"\",$B$4))","v":""},{"$f":"IF(A11=\"\",\"\",IF(B11=\"\",\"\",B11))","v":""},{"$f":"IF($B$6=\"\",\"\",IF(C11=\"\",\"\",$B$6))","v":""},{"$f":"IF($B$7=\"\",\"\",IF(C11=\"\",\"\",$B$7))","v":""},{"$f":"IF($B$5=\"\",\"\",IF(C11=\"\",\"\",$B$5))","v":""},{"$f":"IF(C11=\"\",\"\",IF(O11=\"\",\"\",VLOOKUP(O11,MarketCode,2,FALSE)))","v":""},{"$f":"IF(C11=\"\",\"\",IF(S11=\"\",\"\",VLOOKUP(C11,ProduceList,2,FALSE)))","v":""},{"$f":"IF(Y11=\"\",\"\",Y11)","v":""},{"$f":"IF(S11=\"\",\"\",S11)","v":""},{"$f":"IF(Z11=\"\",\"\",Z11)","v":""},{"$f":"IF($Z$164=\"\",\"\",IF(C11=\"\",\"\",$Z$164))","v":""}]
[null,null,null,null,null,null,null,null,null,null,null,null,null,null,null,null,null,null,null,null,null,"",null,null,"","",null,null,null,null,null,null,null,null,null,null,null,null,null,null,null,null,null,null,null,null,null,null,null,null,null,null,null,null,null,null,null,null,null,null,null,null,null,null,null,null,null,null,null,null,null,null,null,null,null,null,null,null,null,null,null,null,null,null,null,null,null,null,null,null,null,null,null,null,null,null,null,null,null,null,null,null,null,null,null,null,null,null,null,null,null,null,null,null,null,null,null,null,null,null,null,null,null,null,null,null,null,null,null,null,null,null,null,null,null,null,null,null,null,null,null,null,null,null,null,null,null,null,null,null,null,null,null,null,null,null,null,null,null,null,null,null,null,null,null,null,null,null,{"$f":"A12","v":0},0,0,null,null,null,null,null,null,null,null,null,null,null,null,0,null,null,null,0,null,null,{"$f":"V12","v":""},"","",null,"","","","","","","","","","",""]
[null,null,null,null,null,null,null,null,null,null,null,null,null,null,null,null,null,null,null,null,null,"",null,null,"","",null,null,null,null,null,null,null,null,null,null,null,null,null,null,null,null,null,null,null,null,null,null,null,null,null,null,null,null,null,null,null,null,null,null,null,null,null,null,null,null,null,null,null,null,null,null,null,null,null,null,null,null,null,null,null,null,null,null,null,null,null,null,null,null,null,null,null,null,null,null,null,null,null,null,null,null,null,null,null,null,null,null,null,null,null,null,null,null,null,null,null,null,null,null,null,null,null,null,null,null,null,null,null,null,null,null,null,null,null,null,null,null,null,null,null,null,null,null,null,null,null,null,null,null,null,null,null,null,null,null,null,null,null,null,null,null,null,null,null,null,null,null,{"$f":"A13","v":0},0,0,null,null,null,null,null,null,null,null,null,null,null,null,0,null,null,null,0,null,null,{"$f":"V13","v":""},"","",null,"","","","","","","","","","",""]
[null,null,null,null,null,null,null,null,null,null,null,null,null,null,null,null,null,null,null,null,null,"",null,null,"","",null,null,null,null,null,null,null,null,null,null,null,null,null,null,null,null,null,null,null,null,null,null,null,null,null,null,null,null,null,null,null,null,null,null,null,null,null,null,null,null,null,null,null,null,null,null,null,null,null,null,null,null,null,null,null,null,null,null,null,null,null,null,null,null,null,null,null,null,null,null,null,null,null,null,null,null,null,null,null,null,null,null,null,null,null,null,null,null,null,null,null,null,null,null,null,null,null,null,null,null,null,null,null,null,null,null,null,null,null,null,null,null,null,null,null,null,null,null,null,null,null,null,null,null,null,null,null,null,null,null,null,null,null,null,null,null,null,null,null,null,null,null,0,{"$f":"B14","v":0},0,null,null,null,null,null,null,null,null,null,null,null,null,0,null,null,null,0,null,null,"",{"$f":"Y14","v":""},"",null,"","","","","","","","","","",""]
[null,null,null,null,null,null,null,null,null,null,null,null,null,null,null,null,null,null,null,null,null,"",null,null,"","",null,null,null,null,null,null,null,null,null,null,null,null,null,null,null,null,null,null,null,null,null,null,null,null,null,null,null,null,null,null,null,null,null,null,null,null,null,null,null,null,null,null,null,null,null,null,null,null,null,null,null,null,null,null,null,null,null,null,null,null,null,null,null,null,null,null,null,null,null,null,null,null,null,null,null,null,null,null,null,null,null,null,null,null,null,null,null,null,null,null,null,null,null,null,null,null,null,null,null,null,null,null,null,null,null,null,null,null,null,null,null,null,null,null,null,null,null,null,null,null,null,null,null,null,null,null,null,null,null,null,null,null,null,null,null,null,null,null,null,null,null,null,0,0,0,null,null,null,null,null,null,null,null,null,null,null,null,0,null,null,null,0,null,null,"","","",null,"","","","","","","","","","",""]
[null,null,null,null,null,null,null,null,null,null,null,null,null,null,null,null,null,null,null,null,null,"",null,null,"","",null,null,null,null,null,null,null,null,null,null,null,null,null,null,null,null,null,null,null,null,null,null,null,null,null,null,null,null,null,null,null,null,null,null,null,null,null,null,null,null,null,null,null,null,null,null,null,null,null,null,null,null,null,null,null,null,null,null,null,null,null,null,null,null,null,null,null,null,null,null,null,null,null,null,null,null,null,null,null,null,null,null,null,null,null,null,null,null,null,null,null,null,null,null,null,null,null,null,null,null,null,null,null,null,null,null,null,null,null,null,null,null,null,null,null,null,null,null,null,null,null,null,null,null,null,null,null,null,null,null,null,null,null,null,null,null,null,null,null,null,null,null,0,0,0,null,null,null,null,null,null,null,null,null,null,null,null,0,null,null,null,0,null,null,"","","",null,"","","","","","","","","","",""]
[null,null,null,null,null,null,null,null,null,null,null,null,null,null,null,null,null,null,null,null,null,"",null,null,"","",null,null,null,null,null,null,null,null,null,null,null,null,null,null,null,null,null,null,null,null,null,null,null,null,null,null,null,null,null,null,null,null,null,null,null,null,null,null,null,null,null,null,null,null,null,null,null,null,null,null,null,null,null,null,null,null,null,null,null,null,null,null,null,null,null,null,null,null,null,null,null,null,null,null,null,null,null,null,null,null,null,null,null,null,null,null,null,null,null,null,null,null,null,null,null,null,null,null,null,null,null,null,null,null,null,null,null,null,null,null,null,null,null,null,null,null,null,null,null,null,null,null,null,null,null,null,null,null,null,null,null,null,null,null,null,null,null,null,null,null,null,null,0,0,0,null,null,null,null,null,null,null,null,null,null,null,null,0,null,null,null,0,null,null,"","","",null,"","","","","","","","","","",""]
[null,null,null,null,null,null,null,null,null,null,null,null,null,null,null,null,null,null,null,null,null,"",null,null,"","",null,null,null,null,null,null,null,null,null,null,null,null,null,null,null,null,null,null,null,null,null,null,null,null,null,null,null,null,null,null,null,null,null,null,null,null,null,null,null,null,null,null,null,null,null,null,null,null,null,null,null,null,null,null,null,null,null,null,null,null,null,null,null,null,null,null,null,null,null,null,null,null,null,null,null,null,null,null,null,null,null,null,null,null,null,null,null,null,null,null,null,null,null,null,null,null,null,null,null,null,null,null,null,null,null,null,null,null,null,null,null,null,null,null,null,null,null,null,null,null,null,null,null,null,null,null,null,null,null,null,null,null,null,null,null,null,null,null,null,null,null,null,0,0,0,null,null,null,null,null,null,null,null,null,null,null,null,0,null,null,null,0,null,null,"","","",null,"","","","","","","","","","",""]
[null,null,null,null,null,null,null,null,null,null,null,null,null,null,null,null,null,null,null,null,null,"",null,null,"","",null,null,null,null,null,null,null,null,null,null,null,null,null,null,null,null,null,null,null,null,null,null,null,null,null,null,null,null,null,null,null,null,null,null,null,null,null,null,null,null,null,null,null,null,null,null,null,null,null,null,null,null,null,null,null,null,null,null,null,null,null,null,null,null,null,null,null,null,null,null,null,null,null,null,null,null,null,null,null,null,null,null,null,null,null,null,null,null,null,null,null,null,null,null,null,null,null,null,null,null,null,null,null,null,null,null,null,null,null,null,null,null,null,null,null,null,null,null,null,null,null,null,null,null,null,null,null,null,null,null,null,null,null,null,null,null,null,null,null,null,null,null,{"$f":"A19","v":0},0,0,null,null,null,null,null,null,null,null,null,null,null,null,0,null,null,null,0,null,null,{"$f":"V19","v":""},"","",null,"","","","","","","","","","",""]
[null,null,null,null,null,null,null,null,null,null,null,null,null,null,null,null,null,null,null,null,null,"",null,null,"","",null,null,null,null,null,null,null,null,null,null,null,null,null,null,null,null,null,null,null,null,null,null,null,null,null,null,null,null,null,null,null,null,null,null,null,null,null,null,null,null,null,null,null,null,null,null,null,null,null,null,null,null,null,null,null,null,null,null,null,null,null,null,null,null,null,null,null,null,null,null,null,null,null,null,null,null,null,null,null,null,null,null,null,null,null,null,null,null,null,null,null,null,null,null,null,null,null,null,null,null,null,null,null,null,null,null,null,null,null,null,null,null,null,null,null,null,null,null,null,null,null,null,null,null,null,null,null,null,null,null,null,null,null,null,null,null,null,null,null,null,null,null,0,0,0,null,null,null,null,null,null,null,null,null,null,null,null,0,null,null,null,0,null,null,"","","",null,"","","","","","","","","","",""]
[null,null,null,null,null,null,null,null,null,null,null,null,null,null,null,null,null,null,null,null,null,"",null,null,"","",null,null,null,null,null,null,null,null,null,null,null,null,null,null,null,null,null,null,null,null,null,null,null,null,null,null,null,null,null,null,null,null,null,null,null,null,null,null,null,null,null,null,null,null,null,null,null,null,null,null,null,null,null,null,null,null,null,null,null,null,null,null,null,null,null,null,null,null,null,null,null,null,null,null,null,null,null,null,null,null,null,null,null,null,null,null,null,null,null,null,null,null,null,null,null,null,null,null,null,null,null,null,null,null,null,null,null,null,null,null,null,null,null,null,null,null,null,null,null,null,null,null,null,null,null,null,null,null,null,null,null,null,null,null,null,null,null,null,null,null,null,null,{"$f":"A21","v":0},0,0,null,null,null,null,null,null,null,null,null,null,null,null,0,null,null,null,0,null,null,{"$f":"V21","v":""},"","",null,"","","","","","","","","","",""]
[null,null,null,null,null,null,null,null,null,null,null,null,null,null,null,null,null,null,null,null,null,{"$f":"IF(C22=\"\",\"\",VLOOKUP(C22,ProduceList,3,FALSE))","v":""},null,null,{"$f":"IF(C22=\"\",\"\",VLOOKUP(C22,ProduceList,4,FALSE))","v":""},"",null,null,null,null,null,null,null,null,null,null,null,null,null,null,null,null,null,null,null,null,null,null,null,null,null,null,null,null,null,null,null,null,null,null,null,null,null,null,null,null,null,null,null,null,null,null,null,null,null,null,null,null,null,null,null,null,null,null,null,null,null,null,null,null,null,null,null,null,null,null,null,null,null,null,null,null,null,null,null,null,null,null,null,null,null,null,null,null,null,null,null,null,null,null,null,null,null,null,null,null,null,null,null,null,null,null,null,null,null,null,null,null,null,null,null,null,null,null,null,null,null,null,null,null,null,null,null,null,null,null,null,null,null,null,null,null,null,null,null,null,null,null,null,null,null,null,null,null,null,null,null,null,null,null,null,null,null,null,null,null,null,null,null,null,null,null,null,null,{"$f":"IF($B$4=\"\",\"\",IF(C22=\"\",\"\",$B$4))","v":""},{"$f":"IF(A22=\"\",\"\",IF(B22=\"\",\"\",B22))","v":""},{"$f":"IF($B$6=\"\",\"\",IF(C22=\"\",\"\",$B$6))","v":""},{"$f":"IF($B$7=\"\",\"\",IF(C22=\"\",\"\",$B$7))","v":""},{"$f":"IF($B$5=\"\",\"\",IF(C22=\"\",\"\",$B$5))","v":""},"","",{"$f":"IF(Y22=\"\",\"\",Y22)","v":""},{"$f":"IF(S22=\"\",\"\",S22)","v":""},{"$f":"IF(Z22=\"\",\"\",Z22)","v":""},{"$f":"IF($Z$164=\"\",\"\",IF(C22=\"\",\"\",$Z$164))","v":""}]
[null,null,null,null,null,null,null,null,null,null,null,null,null,null,null,null,null,null,null,null,null,"",null,null,"",{"$f":"IF(C23=\"\",\"\",ROUND(S23*Y23,2))","v":""},null,null,null,null,null,null,null,null,null,null,null,null,null,null,null,null,null,null,null,null,null,null,null,null,null,null,null,null,null,null,null,null,null,null,null,null,null,null,null,null,null,null,null,null,null,null,null,null,null,null,null,null,null,null,null,null,null,null,null,null,null,null,null,null,null,null,null,null,null,null,null,null,null,null,null,null,null,null,null,null,null,null,null,null,null,null,null,null,null,null,null,null,null,null,null,null,null,null,null,null,null,null,null,null,null,null,null,null,null,null,null,null,null,null,null,null,null,null,null,null,null,null,null,null,null,null,null,null,null,null,null,null,null,null,null,null,null,null,null,null,null,null,null,null,null,null,null,null,null,null,null,null,null,null,null,null,null,null,null,null,null,null,null,null,null,null,null,null,"","","","","","","","","","",""]
[null,null,null,null,null,null,null,null,null,null,null,null,null,null,null,null,null,null,null,null,null,"",null,null,"",{"$f":"IF(C24=\"\",\"\",ROUND(S24*Y24,2))","v":""},null,null,null,null,null,null,null,null,null,null,null,null,null,null,null,null,null,null,null,null,null,null,null,null,null,null,null,null,null,null,null,null,null,null,null,null,null,null,null,null,null,null,null,null,null,null,null,null,null,null,null,null,null,null,null,null,null,null,null,null,null,null,null,null,null,null,null,null,null,null,null,null,null,null,null,null,null,null,null,null,null,null,null,null,null,null,null,null,null,null,null,null,null,null,null,null,null,null,null,null,null,null,null,null,null,null,null,null,null,null,null,null,null,null,null,null,null,null,null,null,null,null,null,null,null,null,null,null,null,null,null,null,null,null,null,null,null,null,null,null,null,null,null,null,null,null,null,null,null,null,null,null,null,null,null,null,null,null,null,null,null,null,null,null,null,null,null,null,"","","","","","","","","","",""]
[null,null,null,null,null,null,null,null,null,null,null,null,null,null,null,null,null,null,null,null,null,"",null,null,"","",null,null,null,null,null,null,null,null,null,null,null,null,null,null,null,null,null,null,null,null,null,null,null,null,null,null,null,null,null,null,null,null,null,null,null,null,null,null,null,null,null,null,null,null,null,null,null,null,null,null,null,null,null,null,null,null,null,null,null,null,null,null,null,null,null,null,null,null,null,null,null,null,null,null,null,null,null,null,null,null,null,null,null,null,null,null,null,null,null,null,null,null,null,null,null,null,null,null,null,null,null,null,null,null,null,null,null,null,null,null,null,null,null,null,null,null,null,null,null,null,null,null,null,null,null,null,null,null,null,null,null,null,null,null,null,null,null,null,null,null,null,null,null,null,null,null,null,null,null,null,null,null,null,null,null,null,null,null,null,null,null,null,null,null,null,null,null,null,"","","","","","","","","","",""]
[null,null,null,null,null,null,null,null,null,null,null,null,null,null,null,null,null,null,null,null,null,"",null,null,"","",null,null,null,null,null,null,null,null,null,null,null,null,null,null,null,null,null,null,null,null,null,null,null,null,null,null,null,null,null,null,null,null,null,null,null,null,null,null,null,null,null,null,null,null,null,null,null,null,null,null,null,null,null,null,null,null,null,null,null,null,null,null,null,null,null,null,null,null,null,null,null,null,null,null,null,null,null,null,null,null,null,null,null,null,null,null,null,null,null,null,null,null,null,null,null,null,null,null,null,null,null,null,null,null,null,null,null,null,null,null,null,null,null,null,null,null,null,null,null,null,null,null,null,null,null,null,null,null,null,null,null,null,null,null,null,null,null,null,null,null,null,null,null,null,null,null,null,null,null,null,null,null,null,null,null,null,null,null,null,null,null,null,null,null,null,null,null,null,"","","","","","","","","","",""]
[null,null,null,null,null,null,null,null,null,null,null,null,null,null,null,null,null,null,null,null,null,"",null,null,"","",null,null,null,null,null,null,null,null,null,null,null,null,null,null,null,null,null,null,null,null,null,null,null,null,null,null,null,null,null,null,null,null,null,null,null,null,null,null,null,null,null,null,null,null,null,null,null,null,null,null,null,null,null,null,null,null,null,null,null,null,null,null,null,null,null,null,null,null,null,null,null,null,null,null,null,null,null,null,null,null,null,null,null,null,null,null,null,null,null,null,null,null,null,null,null,null,null,null,null,null,null,null,null,null,null,null,null,null,null,null,null,null,null,null,null,null,null,null,null,null,null,null,null,null,null,null,null,null,null,null,null,null,null,null,null,null,null,null,null,null,null,null,null,null,null,null,null,null,null,null,null,null,null,null,null,null,null,null,null,null,null,null,null,null,null,null,null,null,"","","","","","","","","","",""]
[null,null,null,null,null,null,null,null,null,null,null,null,null,null,null,null,null,null,null,null,null,"",null,null,"","",null,null,null,null,null,null,null,null,null,null,null,null,null,null,null,null,null,null,null,null,null,null,null,null,null,null,null,null,null,null,null,null,null,null,null,null,null,null,null,null,null,null,null,null,null,null,null,null,null,null,null,null,null,null,null,null,null,null,null,null,null,null,null,null,null,null,null,null,null,null,null,null,null,null,null,null,null,null,null,null,null,null,null,null,null,null,null,null,null,null,null,null,null,null,null,null,null,null,null,null,null,null,null,null,null,null,null,null,null,null,null,null,null,null,null,null,null,null,null,null,null,null,null,null,null,null,null,null,null,null,null,null,null,null,null,null,null,null,null,null,null,null,null,null,null,null,null,null,null,null,null,null,null,null,null,null,null,null,null,null,null,null,null,null,null,null,null,null,"","","","","","","","","","",""]
[null,null,null,null,null,null,null,null,null,null,null,null,null,null,null,null,null,null,null,null,null,"",null,null,"","",null,null,null,null,null,null,null,null,null,null,null,null,null,null,null,null,null,null,null,null,null,null,null,null,null,null,null,null,null,null,null,null,null,null,null,null,null,null,null,null,null,null,null,null,null,null,null,null,null,null,null,null,null,null,null,null,null,null,null,null,null,null,null,null,null,null,null,null,null,null,null,null,null,null,null,null,null,null,null,null,null,null,null,null,null,null,null,null,null,null,null,null,null,null,null,null,null,null,null,null,null,null,null,null,null,null,null,null,null,null,null,null,null,null,null,null,null,null,null,null,null,null,null,null,null,null,null,null,null,null,null,null,null,null,null,null,null,null,null,null,null,null,null,null,null,null,null,null,null,null,null,null,null,null,null,null,null,null,null,null,null,null,null,null,null,null,null,null,"","","","","","","","","","",""]
[null,null,null,null,null,null,null,null,null,null,null,null,null,null,null,null,null,null,null,null,null,"",null,null,"","",null,null,null,null,null,null,null,null,null,null,null,null,null,null,null,null,null,null,null,null,null,null,null,null,null,null,null,null,null,null,null,null,null,null,null,null,null,null,null,null,null,null,null,null,null,null,null,null,null,null,null,null,null,null,null,null,null,null,null,null,null,null,null,null,null,null,null,null,null,null,null,null,null,null,null,null,null,null,null,null,null,null,null,null,null,null,null,null,null,null,null,null,null,null,null,null,null,null,null,null,null,null,null,null,null,null,null,null,null,null,null,null,null,null,null,null,null,null,null,null,null,null,null,null,null,null,null,null,null,null,null,null,null,null,null,null,null,null,null,null,null,null,null,null,null,null,null,null,null,null,null,null,null,null,null,null,null,null,null,null,null,null,null,null,null,null,null,null,"","","","","","","","","","",""]
[null,null,null,null,null,null,null,null,null,null,null,null,null,null,null,null,null,null,null,null,null,"",null,null,"","",null,null,null,null,null,null,null,null,null,null,null,null,null,null,null,null,null,null,null,null,null,null,null,null,null,null,null,null,null,null,null,null,null,null,null,null,null,null,null,null,null,null,null,null,null,null,null,null,null,null,null,null,null,null,null,null,null,null,null,null,null,null,null,null,null,null,null,null,null,null,null,null,null,null,null,null,null,null,null,null,null,null,null,null,null,null,null,null,null,null,null,null,null,null,null,null,null,null,null,null,null,null,null,null,null,null,null,null,null,null,null,null,null,null,null,null,null,null,null,null,null,null,null,null,null,null,null,null,null,null,null,null,null,null,null,null,null,null,null,null,null,null,null,null,null,null,null,null,null,null,null,null,null,null,null,null,null,null,null,null,null,null,null,null,null,null,null,null,"","","","","","","","","","",""]
[null,null,null,null,null,null,null,null,null,null,null,null,null,null,null,null,null,null,null,null,null,"",null,null,"","",null,null,null,null,null,null,null,null,null,null,null,null,null,null,null,null,null,null,null,null,null,null,null,null,null,null,null,null,null,null,null,null,null,null,null,null,null,null,null,null,null,null,null,null,null,null,null,null,null,null,null,null,null,null,null,null,null,null,null,null,null,null,null,null,null,null,null,null,null,null,null,null,null,null,null,null,null,null,null,null,null,null,null,null,null,null,null,null,null,null,null,null,null,null,null,null,null,null,null,null,null,null,null,null,null,null,null,null,null,null,null,null,null,null,null,null,null,null,null,null,null,null,null,null,null,null,null,null,null,null,null,null,null,null,null,null,null,null,null,null,null,null,null,null,null,null,null,null,null,null,null,null,null,null,null,null,null,null,null,null,null,null,null,null,null,null,null,null,"","","","","","","","","","",""]
[null,null,null,null,null,null,null,null,null,null,null,null,null,null,null,null,null,null,null,null,null,"",null,null,"","",null,null,null,null,null,null,null,null,null,null,null,null,null,null,null,null,null,null,null,null,null,null,null,null,null,null,null,null,null,null,null,null,null,null,null,null,null,null,null,null,null,null,null,null,null,null,null,null,null,null,null,null,null,null,null,null,null,null,null,null,null,null,null,null,null,null,null,null,null,null,null,null,null,null,null,null,null,null,null,null,null,null,null,null,null,null,null,null,null,null,null,null,null,null,null,null,null,null,null,null,null,null,null,null,null,null,null,null,null,null,null,null,null,null,null,null,null,null,null,null,null,null,null,null,null,null,null,null,null,null,null,null,null,null,null,null,null,null,null,null,null,null,null,null,null,null,null,null,null,null,null,null,null,null,null,null,null,null,null,null,null,null,null,null,null,null,null,null,"","","","","","","","","","",""]
[null,null,null,null,null,null,null,null,null,null,null,null,null,null,null,null,null,null,null,null,null,"",null,null,"","",null,null,null,null,null,null,null,null,null,null,null,null,null,null,null,null,null,null,null,null,null,null,null,null,null,null,null,null,null,null,null,null,null,null,null,null,null,null,null,null,null,null,null,null,null,null,null,null,null,null,null,null,null,null,null,null,null,null,null,null,null,null,null,null,null,null,null,null,null,null,null,null,null,null,null,null,null,null,null,null,null,null,null,null,null,null,null,null,null,null,null,null,null,null,null,null,null,null,null,null,null,null,null,null,null,null,null,null,null,null,null,null,null,null,null,null,null,null,null,null,null,null,null,null,null,null,null,null,null,null,null,null,null,null,null,null,null,null,null,null,null,null,null,null,null,null,null,null,null,null,null,null,null,null,null,null,null,null,null,null,null,null,null,null,null,null,null,null,"","","","","","","","","","",""]
[null,null,null,null,null,null,null,null,null,null,null,null,null,null,null,null,null,null,null,null,null,"",null,null,"","",null,null,null,null,null,null,null,null,null,null,null,null,null,null,null,null,null,null,null,null,null,null,null,null,null,null,null,null,null,null,null,null,null,null,null,null,null,null,null,null,null,null,null,null,null,null,null,null,null,null,null,null,null,null,null,null,null,null,null,null,null,null,null,null,null,null,null,null,null,null,null,null,null,null,null,null,null,null,null,null,null,null,null,null,null,null,null,null,null,null,null,null,null,null,null,null,null,null,null,null,null,null,null,null,null,null,null,null,null,null,null,null,null,null,null,null,null,null,null,null,null,null,null,null,null,null,null,null,null,null,null,null,null,null,null,null,null,null,null,null,null,null,null,null,null,null,null,null,null,null,null,null,null,null,null,null,null,null,null,null,null,null,null,null,null,null,null,null,"","","","","","","","","","",""]
[null,null,null,null,null,null,null,null,null,null,null,null,null,null,null,null,null,null,null,null,null,"",null,null,"","",null,null,null,null,null,null,null,null,null,null,null,null,null,null,null,null,null,null,null,null,null,null,null,null,null,null,null,null,null,null,null,null,null,null,null,null,null,null,null,null,null,null,null,null,null,null,null,null,null,null,null,null,null,null,null,null,null,null,null,null,null,null,null,null,null,null,null,null,null,null,null,null,null,null,null,null,null,null,null,null,null,null,null,null,null,null,null,null,null,null,null,null,null,null,null,null,null,null,null,null,null,null,null,null,null,null,null,null,null,null,null,null,null,null,null,null,null,null,null,null,null,null,null,null,null,null,null,null,null,null,null,null,null,null,null,null,null,null,null,null,null,null,null,null,null,null,null,null,null,null,null,null,null,null,null,null,null,null,null,null,null,null,null,null,null,null,null,null,"","","","","","","","","","",""]
[null,null,null,null,null,null,null,null,null,null,null,null,null,null,null,null,null,null,null,null,null,"",null,null,"","",null,null,null,null,null,null,null,null,null,null,null,null,null,null,null,null,null,null,null,null,null,null,null,null,null,null,null,null,null,null,null,null,null,null,null,null,null,null,null,null,null,null,null,null,null,null,null,null,null,null,null,null,null,null,null,null,null,null,null,null,null,null,null,null,null,null,null,null,null,null,null,null,null,null,null,null,null,null,null,null,null,null,null,null,null,null,null,null,null,null,null,null,null,null,null,null,null,null,null,null,null,null,null,null,null,null,null,null,null,null,null,null,null,null,null,null,null,null,null,null,null,null,null,null,null,null,null,null,null,null,null,null,null,null,null,null,null,null,null,null,null,null,null,null,null,null,null,null,null,null,null,null,null,null,null,null,null,null,null,null,null,null,null,null,null,null,null,null,"","","","","","","","","","",""]
[null,null,null,null,null,null,null,null,null,null,null,null,null,null,null,null,null,null,null,null,null,"",null,null,"","",null,null,null,null,null,null,null,null,null,null,null,null,null,null,null,null,null,null,null,null,null,null,null,null,null,null,null,null,null,null,null,null,null,null,null,null,null,null,null,null,null,null,null,null,null,null,null,null,null,null,null,null,null,null,null,null,null,null,null,null,null,null,null,null,null,null,null,null,null,null,null,null,null,null,null,null,null,null,null,null,null,null,null,null,null,null,null,null,null,null,null,null,null,null,null,null,null,null,null,null,null,null,null,null,null,null,null,null,null,null,null,null,null,null,null,null,null,null,null,null,null,null,null,null,null,null,null,null,null,null,null,null,null,null,null,null,null,null,null,null,null,null,null,null,null,null,null,null,null,null,null,null,null,null,null,null,null,null,null,null,null,null,null,null,null,null,null,null,"","","","","","","","","","",""]
[null,null,null,null,null,null,null,null,null,null,null,null,null,null,null,null,null,null,null,null,null,"",null,null,"","",null,null,null,null,null,null,null,null,null,null,null,null,null,null,null,null,null,null,null,null,null,null,null,null,null,null,null,null,null,null,null,null,null,null,null,null,null,null,null,null,null,null,null,null,null,null,null,null,null,null,null,null,null,null,null,null,null,null,null,null,null,null,null,null,null,null,null,null,null,null,null,null,null,null,null,null,null,null,null,null,null,null,null,null,null,null,null,null,null,null,null,null,null,null,null,null,null,null,null,null,null,null,null,null,null,null,null,null,null,null,null,null,null,null,null,null,null,null,null,null,null,null,null,null,null,null,null,null,null,null,null,null,null,null,null,null,null,null,null,null,null,null,null,null,null,null,null,null,null,null,null,null,null,null,null,null,null,null,null,null,null,null,null,null,null,null,null,null,"","","","","","","","","","",""]
[null,null,null,null,null,null,null,null,null,null,null,null,null,null,null,null,null,null,null,null,null,"",null,null,"","",null,null,null,null,null,null,null,null,null,null,null,null,null,null,null,null,null,null,null,null,null,null,null,null,null,null,null,null,null,null,null,null,null,null,null,null,null,null,null,null,null,null,null,null,null,null,null,null,null,null,null,null,null,null,null,null,null,null,null,null,null,null,null,null,null,null,null,null,null,null,null,null,null,null,null,null,null,null,null,null,null,null,null,null,null,null,null,null,null,null,null,null,null,null,null,null,null,null,null,null,null,null,null,null,null,null,null,null,null,null,null,null,null,null,null,null,null,null,null,null,null,null,null,null,null,null,null,null,null,null,null,null,null,null,null,null,null,null,null,null,null,null,null,null,null,null,null,null,null,null,null,null,null,null,null,null,null,null,null,null,null,null,null,null,null,null,null,null,"","","","","","","","","","",""]
[null,null,null,null,null,null,null,null,null,null,null,null,null,null,null,null,null,null,null,null,null,"",null,null,"","",null,null,null,null,null,null,null,null,null,null,null,null,null,null,null,null,null,null,null,null,null,null,null,null,null,null,null,null,null,null,null,null,null,null,null,null,null,null,null,null,null,null,null,null,null,null,null,null,null,null,null,null,null,null,null,null,null,null,null,null,null,null,null,null,null,null,null,null,null,null,null,null,null,null,null,null,null,null,null,null,null,null,null,null,null,null,null,null,null,null,null,null,null,null,null,null,null,null,null,null,null,null,null,null,null,null,null,null,null,null,null,null,null,null,null,null,null,null,null,null,null,null,null,null,null,null,null,null,null,null,null,null,null,null,null,null,null,null,null,null,null,null,null,null,null,null,null,null,null,null,null,null,null,null,null,null,null,null,null,null,null,null,null,null,null,null,null,null,"","","","","","","","","","",""]
[null,null,null,null,null,null,null,null,null,null,null,null,null,null,null,null,null,null,null,null,null,"",null,null,"","",null,null,null,null,null,null,null,null,null,null,null,null,null,null,null,null,null,null,null,null,null,null,null,null,null,null,null,null,null,null,null,null,null,null,null,null,null,null,null,null,null,null,null,null,null,null,null,null,null,null,null,null,null,null,null,null,null,null,null,null,null,null,null,null,null,null,null,null,null,null,null,null,null,null,null,null,null,null,null,null,null,null,null,null,null,null,null,null,null,null,null,null,null,null,null,null,null,null,null,null,null,null,null,null,null,null,null,null,null,null,null,null,null,null,null,null,null,null,null,null,null,null,null,null,null,null,null,null,null,null,null,null,null,null,null,null,null,null,null,null,null,null,null,null,null,null,null,null,null,null,null,null,null,null,null,null,null,null,null,null,null,null,null,null,null,null,null,null,"","","","","","","","","","",""]
[null,null,null,null,null,null,null,null,null,null,null,null,null,null,null,null,null,null,null,null,null,"",null,null,"","",null,null,null,null,null,null,null,null,null,null,null,null,null,null,null,null,null,null,null,null,null,null,null,null,null,null,null,null,null,null,null,null,null,null,null,null,null,null,null,null,null,null,null,null,null,null,null,null,null,null,null,null,null,null,null,null,null,null,null,null,null,null,null,null,null,null,null,null,null,null,null,null,null,null,null,null,null,null,null,null,null,null,null,null,null,null,null,null,null,null,null,null,null,null,null,null,null,null,null,null,null,null,null,null,null,null,null,null,null,null,null,null,null,null,null,null,null,null,null,null,null,null,null,null,null,null,null,null,null,null,null,null,null,null,null,null,null,null,null,null,null,null,null,null,null,null,null,null,null,null,null,null,null,null,null,null,null,null,null,null,null,null,null,null,null,null,null,null,"","","","","",{"$f":"IF(C43=\"\",\"\",IF(O43=\"\",\"\",VLOOKUP(O43,MarketCode,2,FALSE)))","v":""},{"$f":"IF(C43=\"\",\"\",IF(S43=\"\",\"\",VLOOKUP(C43,ProduceList,2,FALSE)))","v":""},"","","",""]
[null,null,null,null,null,null,null,null,null,null,null,null,null,null,null,null,null,null,null,null,null,"",null,null,"","",null,null,null,null,null,null,null,null,null,null,null,null,null,null,null,null,null,null,null,null,null,null,null,null,null,null,null,null,null,null,null,null,null,null,null,null,null,null,null,null,null,null,null,null,null,null,null,null,null,null,null,null,null,null,null,null,null,null,null,null,null,null,null,null,null,null,null,null,null,null,null,null,null,null,null,null,null,null,null,null,null,null,null,null,null,null,null,null,null,null,null,null,null,null,null,null,null,null,null,null,null,null,null,null,null,null,null,null,null,null,null,null,null,null,null,null,null,null,null,null,null,null,null,null,null,null,null,null,null,null,null,null,null,null,null,null,null,null,null,null,null,null,null,null,null,null,null,null,null,null,null,null,null,null,null,null,null,null,null,null,null,null,null,null,null,null,null,null,"","","","","","","","","","",""]
[null,null,null,null,null,null,null,null,null,null,null,null,null,null,null,null,null,null,null,null,null,"",null,null,"","",null,null,null,null,null,null,null,null,null,null,null,null,null,null,null,null,null,null,null,null,null,null,null,null,null,null,null,null,null,null,null,null,null,null,null,null,null,null,null,null,null,null,null,null,null,null,null,null,null,null,null,null,null,null,null,null,null,null,null,null,null,null,null,null,null,null,null,null,null,null,null,null,null,null,null,null,null,null,null,null,null,null,null,null,null,null,null,null,null,null,null,null,null,null,null,null,null,null,null,null,null,null,null,null,null,null,null,null,null,null,null,null,null,null,null,null,null,null,null,null,null,null,null,null,null,null,null,null,null,null,null,null,null,null,null,null,null,null,null,null,null,null,null,null,null,null,null,null,null,null,null,null,null,null,null,null,null,null,null,null,null,null,null,null,null,null,null,null,"","","","","","","","","","",""]
[null,null,null,null,null,null,null,null,null,null,null,null,null,null,null,null,null,null,null,null,null,"",null,null,"","",null,null,null,null,null,null,null,null,null,null,null,null,null,null,null,null,null,null,null,null,null,null,null,null,null,null,null,null,null,null,null,null,null,null,null,null,null,null,null,null,null,null,null,null,null,null,null,null,null,null,null,null,null,null,null,null,null,null,null,null,null,null,null,null,null,null,null,null,null,null,null,null,null,null,null,null,null,null,null,null,null,null,null,null,null,null,null,null,null,null,null,null,null,null,null,null,null,null,null,null,null,null,null,null,null,null,null,null,null,null,null,null,null,null,null,null,null,null,null,null,null,null,null,null,null,null,null,null,null,null,null,null,null,null,null,null,null,null,null,null,null,null,null,null,null,null,null,null,null,null,null,null,null,null,null,null,null,null,null,null,null,null,null,null,null,null,null,null,"","","","","","","","","","",""]
[null,null,null,null,null,null,null,null,null,null,null,null,null,null,null,null,null,null,null,null,null,"",null,null,"","",null,null,null,null,null,null,null,null,null,null,null,null,null,null,null,null,null,null,null,null,null,null,null,null,null,null,null,null,null,null,null,null,null,null,null,null,null,null,null,null,null,null,null,null,null,null,null,null,null,null,null,null,null,null,null,null,null,null,null,null,null,null,null,null,null,null,null,null,null,null,null,null,null,null,null,null,null,null,null,null,null,null,null,null,null,null,null,null,null,null,null,null,null,null,null,null,null,null,null,null,null,null,null,null,null,null,null,null,null,null,null,null,null,null,null,null,null,null,null,null,null,null,null,null,null,null,null,null,null,null,null,null,null,null,null,null,null,null,null,null,null,null,null,null,null,null,null,null,null,null,null,null,null,null,null,null,null,null,null,null,null,null,null,null,null,null,null,null,"","","","","","","","","","",""]
[null,null,null,null,null,null,null,null,null,null,null,null,null,null,null,null,null,null,null,null,null,"",null,null,"","",null,null,null,null,null,null,null,null,null,null,null,null,null,null,null,null,null,null,null,null,null,null,null,null,null,null,null,null,null,null,null,null,null,null,null,null,null,null,null,null,null,null,null,null,null,null,null,null,null,null,null,null,null,null,null,null,null,null,null,null,null,null,null,null,null,null,null,null,null,null,null,null,null,null,null,null,null,null,null,null,null,null,null,null,null,null,null,null,null,null,null,null,null,null,null,null,null,null,null,null,null,null,null,null,null,null,null,null,null,null,null,null,null,null,null,null,null,null,null,null,null,null,null,null,null,null,null,null,null,null,null,null,null,null,null,null,null,null,null,null,null,null,null,null,null,null,null,null,null,null,null,null,null,null,null,null,null,null,null,null,null,null,null,null,null,null,null,null,"","","","","","","","","","",""]
[null,null,null,null,null,null,null,null,null,null,null,null,null,null,null,null,null,null,null,null,null,"",null,null,"","",null,null,null,null,null,null,null,null,null,null,null,null,null,null,null,null,null,null,null,null,null,null,null,null,null,null,null,null,null,null,null,null,null,null,null,null,null,null,null,null,null,null,null,null,null,null,null,null,null,null,null,null,null,null,null,null,null,null,null,null,null,null,null,null,null,null,null,null,null,null,null,null,null,null,null,null,null,null,null,null,null,null,null,null,null,null,null,null,null,null,null,null,null,null,null,null,null,null,null,null,null,null,null,null,null,null,null,null,null,null,null,null,null,null,null,null,null,null,null,null,null,null,null,null,null,null,null,null,null,null,null,null,null,null,null,null,null,null,null,null,null,null,null,null,null,null,null,null,null,null,null,null,null,null,null,null,null,null,null,null,null,null,null,null,null,null,null,null,"","","","","","","","","","",""]
[null,null,null,null,null,null,null,null,null,null,null,null,null,null,null,null,null,null,null,null,null,"",null,null,"","",null,null,null,null,null,null,null,null,null,null,null,null,null,null,null,null,null,null,null,null,null,null,null,null,null,null,null,null,null,null,null,null,null,null,null,null,null,null,null,null,null,null,null,null,null,null,null,null,null,null,null,null,null,null,null,null,null,null,null,null,null,null,null,null,null,null,null,null,null,null,null,null,null,null,null,null,null,null,null,null,null,null,null,null,null,null,null,null,null,null,null,null,null,null,null,null,null,null,null,null,null,null,null,null,null,null,null,null,null,null,null,null,null,null,null,null,null,null,null,null,null,null,null,null,null,null,null,null,null,null,null,null,null,null,null,null,null,null,null,null,null,null,null,null,null,null,null,null,null,null,null,null,null,null,null,null,null,null,null,null,null,null,null,null,null,null,null,null,"","","","","","","","","","",""]
[null,null,null,null,null,null,null,null,null,null,null,null,null,null,null,null,null,null,null,null,null,"",null,null,"","",null,null,null,null,null,null,null,null,null,null,null,null,null,null,null,null,null,null,null,null,null,null,null,null,null,null,null,null,null,null,null,null,null,null,null,null,null,null,null,null,null,null,null,null,null,null,null,null,null,null,null,null,null,null,null,null,null,null,null,null,null,null,null,null,null,null,null,null,null,null,null,null,null,null,null,null,null,null,null,null,null,null,null,null,null,null,null,null,null,null,null,null,null,null,null,null,null,null,null,null,null,null,null,null,null,null,null,null,null,null,null,null,null,null,null,null,null,null,null,null,null,null,null,null,null,null,null,null,null,null,null,null,null,null,null,null,null,null,null,null,null,null,null,null,null,null,null,null,null,null,null,null,null,null,null,null,null,null,null,null,null,null,null,null,null,null,null,null,"","","","","","","","","","",""]
[null,null,null,null,null,null,null,null,null,null,null,null,null,null,null,null,null,null,null,null,null,"",null,null,"","",null,null,null,null,null,null,null,null,null,null,null,null,null,null,null,null,null,null,null,null,null,null,null,null,null,null,null,null,null,null,null,null,null,null,null,null,null,null,null,null,null,null,null,null,null,null,null,null,null,null,null,null,null,null,null,null,null,null,null,null,null,null,null,null,null,null,null,null,null,null,null,null,null,null,null,null,null,null,null,null,null,null,null,null,null,null,null,null,null,null,null,null,null,null,null,null,null,null,null,null,null,null,null,null,null,null,null,null,null,null,null,null,null,null,null,null,null,null,null,null,null,null,null,null,null,null,null,null,null,null,null,null,null,null,null,null,null,null,null,null,null,null,null,null,null,null,null,null,null,null,null,null,null,null,null,null,null,null,null,null,null,null,null,null,null,null,null,null,"","","","","","","","","","",""]
[null,null,null,null,null,null,null,null,null,null,null,null,null,null,null,null,null,null,null,null,null,"",null,null,"","",null,null,null,null,null,null,null,null,null,null,null,null,null,null,null,null,null,null,null,null,null,null,null,null,null,null,null,null,null,null,null,null,null,null,null,null,null,null,null,null,null,null,null,null,null,null,null,null,null,null,null,null,null,null,null,null,null,null,null,null,null,null,null,null,null,null,null,null,null,null,null,null,null,null,null,null,null,null,null,null,null,null,null,null,null,null,null,null,null,null,null,null,null,null,null,null,null,null,null,null,null,null,null,null,null,null,null,null,null,null,null,null,null,null,null,null,null,null,null,null,null,null,null,null,null,null,null,null,null,null,null,null,null,null,null,null,null,null,null,null,null,null,null,null,null,null,null,null,null,null,null,null,null,null,null,null,null,null,null,null,null,null,null,null,null,null,null,null,"","","","","","","","","","",""]
[null,null,null,null,null,null,null,null,null,null,null,null,null,null,null,null,null,null,null,null,null,"",null,null,"","",null,null,null,null,null,null,null,null,null,null,null,null,null,null,null,null,null,null,null,null,null,null,null,null,null,null,null,null,null,null,null,null,null,null,null,null,null,null,null,null,null,null,null,null,null,null,null,null,null,null,null,null,null,null,null,null,null,null,null,null,null,null,null,null,null,null,null,null,null,null,null,null,null,null,null,null,null,null,null,null,null,null,null,null,null,null,null,null,null,null,null,null,null,null,null,null,null,null,null,null,null,null,null,null,null,null,null,null,null,null,null,null,null,null,null,null,null,null,null,null,null,null,null,null,null,null,null,null,null,null,null,null,null,null,null,null,null,null,null,null,null,null,null,null,null,null,null,null,null,null,null,null,null,null,null,null,null,null,null,null,null,null,null,null,null,null,null,null,{"$f":"IF($B$4=\"\",\"\",IF(C54=\"\",\"\",$B$4))","v":""},{"$f":"IF(A54=\"\",\"\",IF(B54=\"\",\"\",B54))","v":""},{"$f":"IF($B$6=\"\",\"\",IF(C54=\"\",\"\",$B$6))","v":""},{"$f":"IF($B$7=\"\",\"\",IF(C54=\"\",\"\",$B$7))","v":""},{"$f":"IF($B$5=\"\",\"\",IF(C54=\"\",\"\",$B$5))","v":""},"","",{"$f":"IF(Y54=\"\",\"\",Y54)","v":""},{"$f":"IF(S54=\"\",\"\",S54)","v":""},{"$f":"IF(Z54=\"\",\"\",Z54)","v":""},{"$f":"IF($Z$164=\"\",\"\",IF(C54=\"\",\"\",$Z$164))","v":""}]
[null,null,null,null,null,null,null,null,null,null,null,null,null,null,null,null,null,null,null,null,null,"",null,null,"","",null,null,null,null,null,null,null,null,null,null,null,null,null,null,null,null,null,null,null,null,null,null,null,null,null,null,null,null,null,null,null,null,null,null,null,null,null,null,null,null,null,null,null,null,null,null,null,null,null,null,null,null,null,null,null,null,null,null,null,null,null,null,null,null,null,null,null,null,null,null,null,null,null,null,null,null,null,null,null,null,null,null,null,null,null,null,null,null,null,null,null,null,null,null,null,null,null,null,null,null,null,null,null,null,null,null,null,null,null,null,null,null,null,null,null,null,null,null,null,null,null,null,null,null,null,null,null,null,null,null,null,null,null,null,null,null,null,null,null,null,null,null,null,null,null,null,null,null,null,null,null,null,null,null,null,null,null,null,null,null,null,null,null,null,null,null,null,null,"","","","","","","","","","",""]
[null,null,null,null,null,null,null,null,null,null,null,null,null,null,null,null,null,null,null,null,null,"",null,null,"","",null,null,null,null,null,null,null,null,null,null,null,null,null,null,null,null,null,null,null,null,null,null,null,null,null,null,null,null,null,null,null,null,null,null,null,null,null,null,null,null,null,null,null,null,null,null,null,null,null,null,null,null,null,null,null,null,null,null,null,null,null,null,null,null,null,null,null,null,null,null,null,null,null,null,null,null,null,null,null,null,null,null,null,null,null,null,null,null,null,null,null,null,null,null,null,null,null,null,null,null,null,null,null,null,null,null,null,null,null,null,null,null,null,null,null,null,null,null,null,null,null,null,null,null,null,null,null,null,null,null,null,null,null,null,null,null,null,null,null,null,null,null,null,null,null,null,null,null,null,null,null,null,null,null,null,null,null,null,null,null,null,null,null,null,null,null,null,null,"","","","","","","","","","",""]
[null,null,null,null,null,null,null,null,null,null,null,null,null,null,null,null,null,null,null,null,null,"",null,null,"","",null,null,null,null,null,null,null,null,null,null,null,null,null,null,null,null,null,null,null,null,null,null,null,null,null,null,null,null,null,null,null,null,null,null,null,null,null,null,null,null,null,null,null,null,null,null,null,null,null,null,null,null,null,null,null,null,null,null,null,null,null,null,null,null,null,null,null,null,null,null,null,null,null,null,null,null,null,null,null,null,null,null,null,null,null,null,null,null,null,null,null,null,null,null,null,null,null,null,null,null,null,null,null,null,null,null,null,null,null,null,null,null,null,null,null,null,null,null,null,null,null,null,null,null,null,null,null,null,null,null,null,null,null,null,null,null,null,null,null,null,null,null,null,null,null,null,null,null,null,null,null,null,null,null,null,null,null,null,null,null,null,null,null,null,null,null,null,null,"","","","","","","","","","",""]
[null,null,null,null,null,null,null,null,null,null,null,null,null,null,null,null,null,null,null,null,null,"",null,null,"","",null,null,null,null,null,null,null,null,null,null,null,null,null,null,null,null,null,null,null,null,null,null,null,null,null,null,null,null,null,null,null,null,null,null,null,null,null,null,null,null,null,null,null,null,null,null,null,null,null,null,null,null,null,null,null,null,null,null,null,null,null,null,null,null,null,null,null,null,null,null,null,null,null,null,null,null,null,null,null,null,null,null,null,null,null,null,null,null,null,null,null,null,null,null,null,null,null,null,null,null,null,null,null,null,null,null,null,null,null,null,null,null,null,null,null,null,null,null,null,null,null,null,null,null,null,null,null,null,null,null,null,null,null,null,null,null,null,null,null,null,null,null,null,null,null,null,null,null,null,null,null,null,null,null,null,null,null,null,null,null,null,null,null,null,null,null,null,null,"","","","","","","","","","",""]
[null,null,null,null,null,null,null,null,null,null,null,null,null,null,null,null,null,null,null,null,null,"",null,null,"","",null,null,null,null,null,null,null,null,null,null,null,null,null,null,null,null,null,null,null,null,null,null,null,null,null,null,null,null,null,null,null,null,null,null,null,null,null,null,null,null,null,null,null,null,null,null,null,null,null,null,null,null,null,null,null,null,null,null,null,null,null,null,null,null,null,null,null,null,null,null,null,null,null,null,null,null,null,null,null,null,null,null,null,null,null,null,null,null,null,null,null,null,null,null,null,null,null,null,null,null,null,null,null,null,null,null,null,null,null,null,null,null,null,null,null,null,null,null,null,null,null,null,null,null,null,null,null,null,null,null,null,null,null,null,null,null,null,null,null,null,null,null,null,null,null,null,null,null,null,null,null,null,null,null,null,null,null,null,null,null,null,null,null,null,null,null,null,null,"","","","","","","","","","",""]
[null,null,null,null,null,null,null,null,null,null,null,null,null,null,null,null,null,null,null,null,null,"",null,null,"","",null,null,null,null,null,null,null,null,null,null,null,null,null,null,null,null,null,null,null,null,null,null,null,null,null,null,null,null,null,null,null,null,null,null,null,null,null,null,null,null,null,null,null,null,null,null,null,null,null,null,null,null,null,null,null,null,null,null,null,null,null,null,null,null,null,null,null,null,null,null,null,null,null,null,null,null,null,null,null,null,null,null,null,null,null,null,null,null,null,null,null,null,null,null,null,null,null,null,null,null,null,null,null,null,null,null,null,null,null,null,null,null,null,null,null,null,null,null,null,null,null,null,null,null,null,null,null,null,null,null,null,null,null,null,null,null,null,null,null,null,null,null,null,null,null,null,null,null,null,null,null,null,null,null,null,null,null,null,null,null,null,null,null,null,null,null,null,null,"","","","","","","","","","",""]
[null,null,null,null,null,null,null,null,null,null,null,null,null,null,null,null,null,null,null,null,null,"",null,null,"","",null,null,null,null,null,null,null,null,null,null,null,null,null,null,null,null,null,null,null,null,null,null,null,null,null,null,null,null,null,null,null,null,null,null,null,null,null,null,null,null,null,null,null,null,null,null,null,null,null,null,null,null,null,null,null,null,null,null,null,null,null,null,null,null,null,null,null,null,null,null,null,null,null,null,null,null,null,null,null,null,null,null,null,null,null,null,null,null,null,null,null,null,null,null,null,null,null,null,null,null,null,null,null,null,null,null,null,null,null,null,null,null,null,null,null,null,null,null,null,null,null,null,null,null,null,null,null,null,null,null,null,null,null,null,null,null,null,null,null,null,null,null,null,null,null,null,null,null,null,null,null,null,null,null,null,null,null,null,null,null,null,null,null,null,null,null,null,null,"","","","","","","","","","",""]
[null,null,null,null,null,null,null,null,null,null,null,null,null,null,null,null,null,null,null,null,null,"",null,null,"","",null,null,null,null,null,null,null,null,null,null,null,null,null,null,null,null,null,null,null,null,null,null,null,null,null,null,null,null,null,null,null,null,null,null,null,null,null,null,null,null,null,null,null,null,null,null,null,null,null,null,null,null,null,null,null,null,null,null,null,null,null,null,null,null,null,null,null,null,null,null,null,null,null,null,null,null,null,null,null,null,null,null,null,null,null,null,null,null,null,null,null,null,null,null,null,null,null,null,null,null,null,null,null,null,null,null,null,null,null,null,null,null,null,null,null,null,null,null,null,null,null,null,null,null,null,null,null,null,null,null,null,null,null,null,null,null,null,null,null,null,null,null,null,null,null,null,null,null,null,null,null,null,null,null,null,null,null,null,null,null,null,null,null,null,null,null,null,null,"","","","","","","","","","",""]
[null,null,null,null,null,null,null,null,null,null,null,null,null,null,null,null,null,null,null,null,null,"",null,null,"","",null,null,null,null,null,null,null,null,null,null,null,null,null,null,null,null,null,null,null,null,null,null,null,null,null,null,null,null,null,null,null,null,null,null,null,null,null,null,null,null,null,null,null,null,null,null,null,null,null,null,null,null,null,null,null,null,null,null,null,null,null,null,null,null,null,null,null,null,null,null,null,null,null,null,null,null,null,null,null,null,null,null,null,null,null,null,null,null,null,null,null,null,null,null,null,null,null,null,null,null,null,null,null,null,null,null,null,null,null,null,null,null,null,null,null,null,null,null,null,null,null,null,null,null,null,null,null,null,null,null,null,null,null,null,null,null,null,null,null,null,null,null,null,null,null,null,null,null,null,null,null,null,null,null,null,null,null,null,null,null,null,null,null,null,null,null,null,null,"","","","","","","","","","",""]
[null,null,null,null,null,null,null,null,null,null,null,null,null,null,null,null,null,null,null,null,null,"",null,null,"","",null,null,null,null,null,null,null,null,null,null,null,null,null,null,null,null,null,null,null,null,null,null,null,null,null,null,null,null,null,null,null,null,null,null,null,null,null,null,null,null,null,null,null,null,null,null,null,null,null,null,null,null,null,null,null,null,null,null,null,null,null,null,null,null,null,null,null,null,null,null,null,null,null,null,null,null,null,null,null,null,null,null,null,null,null,null,null,null,null,null,null,null,null,null,null,null,null,null,null,null,null,null,null,null,null,null,null,null,null,null,null,null,null,null,null,null,null,null,null,null,null,null,null,null,null,null,null,null,null,null,null,null,null,null,null,null,null,null,null,null,null,null,null,null,null,null,null,null,null,null,null,null,null,null,null,null,null,null,null,null,null,null,null,null,null,null,null,null,"","","","","","","","","","",""]
[null,null,null,null,null,null,null,null,null,null,null,null,null,null,null,null,null,null,null,null,null,"",null,null,"","",null,null,null,null,null,null,null,null,null,null,null,null,null,null,null,null,null,null,null,null,null,null,null,null,null,null,null,null,null,null,null,null,null,null,null,null,null,null,null,null,null,null,null,null,null,null,null,null,null,null,null,null,null,null,null,null,null,null,null,null,null,null,null,null,null,null,null,null,null,null,null,null,null,null,null,null,null,null,null,null,null,null,null,null,null,null,null,null,null,null,null,null,null,null,null,null,null,null,null,null,null,null,null,null,null,null,null,null,null,null,null,null,null,null,null,null,null,null,null,null,null,null,null,null,null,null,null,null,null,null,null,null,null,null,null,null,null,null,null,null,null,null,null,null,null,null,null,null,null,null,null,null,null,null,null,null,null,null,null,null,null,null,null,null,null,null,null,null,"","","","","","","","","","",""]
[null,null,null,null,null,null,null,null,null,null,null,null,null,null,null,null,null,null,null,null,null,"",null,null,"","",null,null,null,null,null,null,null,null,null,null,null,null,null,null,null,null,null,null,null,null,null,null,null,null,null,null,null,null,null,null,null,null,null,null,null,null,null,null,null,null,null,null,null,null,null,null,null,null,null,null,null,null,null,null,null,null,null,null,null,null,null,null,null,null,null,null,null,null,null,null,null,null,null,null,null,null,null,null,null,null,null,null,null,null,null,null,null,null,null,null,null,null,null,null,null,null,null,null,null,null,null,null,null,null,null,null,null,null,null,null,null,null,null,null,null,null,null,null,null,null,null,null,null,null,null,null,null,null,null,null,null,null,null,null,null,null,null,null,null,null,null,null,null,null,null,null,null,null,null,null,null,null,null,null,null,null,null,null,null,null,null,null,null,null,null,null,null,null,"","","","","","","","","","",""]
[null,null,null,null,null,null,null,null,null,null,null,null,null,null,null,null,null,null,null,null,null,"",null,null,"","",null,null,null,null,null,null,null,null,null,null,null,null,null,null,null,null,null,null,null,null,null,null,null,null,null,null,null,null,null,null,null,null,null,null,null,null,null,null,null,null,null,null,null,null,null,null,null,null,null,null,null,null,null,null,null,null,null,null,null,null,null,null,null,null,null,null,null,null,null,null,null,null,null,null,null,null,null,null,null,null,null,null,null,null,null,null,null,null,null,null,null,null,null,null,null,null,null,null,null,null,null,null,null,null,null,null,null,null,null,null,null,null,null,null,null,null,null,null,null,null,null,null,null,null,null,null,null,null,null,null,null,null,null,null,null,null,null,null,null,null,null,null,null,null,null,null,null,null,null,null,null,null,null,null,null,null,null,null,null,null,null,null,null,null,null,null,null,null,"","","","","","","","","","",""]
[null,null,null,null,null,null,null,null,null,null,null,null,null,null,null,null,null,null,null,null,null,"",null,null,"","",null,null,null,null,null,null,null,null,null,null,null,null,null,null,null,null,null,null,null,null,null,null,null,null,null,null,null,null,null,null,null,null,null,null,null,null,null,null,null,null,null,null,null,null,null,null,null,null,null,null,null,null,null,null,null,null,null,null,null,null,null,null,null,null,null,null,null,null,null,null,null,null,null,null,null,null,null,null,null,null,null,null,null,null,null,null,null,null,null,null,null,null,null,null,null,null,null,null,null,null,null,null,null,null,null,null,null,null,null,null,null,null,null,null,null,null,null,null,null,null,null,null,null,null,null,null,null,null,null,null,null,null,null,null,null,null,null,null,null,null,null,null,null,null,null,null,null,null,null,null,null,null,null,null,null,null,null,null,null,null,null,null,null,null,null,null,null,null,"","","","","","","","","","",""]
[null,null,null,null,null,null,null,null,null,null,null,null,null,null,null,null,null,null,null,null,null,"",null,null,"","",null,null,null,null,null,null,null,null,null,null,null,null,null,null,null,null,null,null,null,null,null,null,null,null,null,null,null,null,null,null,null,null,null,null,null,null,null,null,null,null,null,null,null,null,null,null,null,null,null,null,null,null,null,null,null,null,null,null,null,null,null,null,null,null,null,null,null,null,null,null,null,null,null,null,null,null,null,null,null,null,null,null,null,null,null,null,null,null,null,null,null,null,null,null,null,null,null,null,null,null,null,null,null,null,null,null,null,null,null,null,null,null,null,null,null,null,null,null,null,null,null,null,null,null,null,null,null,null,null,null,null,null,null,null,null,null,null,null,null,null,null,null,null,null,null,null,null,null,null,null,null,null,null,null,null,null,null,null,null,null,null,null,null,null,null,null,null,null,"","","","","","","","","","",""]
[null,null,null,null,null,null,null,null,null,null,null,null,null,null,null,null,null,null,null,null,null,"",null,null,"","",null,null,null,null,null,null,null,null,null,null,null,null,null,null,null,null,null,null,null,null,null,null,null,null,null,null,null,null,null,null,null,null,null,null,null,null,null,null,null,null,null,null,null,null,null,null,null,null,null,null,null,null,null,null,null,null,null,null,null,null,null,null,null,null,null,null,null,null,null,null,null,null,null,null,null,null,null,null,null,null,null,null,null,null,null,null,null,null,null,null,null,null,null,null,null,null,null,null,null,null,null,null,null,null,null,null,null,null,null,null,null,null,null,null,null,null,null,null,null,null,null,null,null,null,null,null,null,null,null,null,null,null,null,null,null,null,null,null,null,null,null,null,null,null,null,null,null,null,null,null,null,null,null,null,null,null,null,null,null,null,null,null,null,null,null,null,null,null,"","","","","","","","","","",""]
[null,null,null,null,null,null,null,null,null,null,null,null,null,null,null,null,null,null,null,null,null,"",null,null,"","",null,null,null,null,null,null,null,null,null,null,null,null,null,null,null,null,null,null,null,null,null,null,null,null,null,null,null,null,null,null,null,null,null,null,null,null,null,null,null,null,null,null,null,null,null,null,null,null,null,null,null,null,null,null,null,null,null,null,null,null,null,null,null,null,null,null,null,null,null,null,null,null,null,null,null,null,null,null,null,null,null,null,null,null,null,null,null,null,null,null,null,null,null,null,null,null,null,null,null,null,null,null,null,null,null,null,null,null,null,null,null,null,null,null,null,null,null,null,null,null,null,null,null,null,null,null,null,null,null,null,null,null,null,null,null,null,null,null,null,null,null,null,null,null,null,null,null,null,null,null,null,null,null,null,null,null,null,null,null,null,null,null,null,null,null,null,null,null,"","","","","","","","","","",""]
[null,null,null,null,null,null,null,null,null,null,null,null,null,null,null,null,null,null,null,null,null,"",null,null,"","",null,null,null,null,null,null,null,null,null,null,null,null,null,null,null,null,null,null,null,null,null,null,null,null,null,null,null,null,null,null,null,null,null,null,null,null,null,null,null,null,null,null,null,null,null,null,null,null,null,null,null,null,null,null,null,null,null,null,null,null,null,null,null,null,null,null,null,null,null,null,null,null,null,null,null,null,null,null,null,null,null,null,null,null,null,null,null,null,null,null,null,null,null,null,null,null,null,null,null,null,null,null,null,null,null,null,null,null,null,null,null,null,null,null,null,null,null,null,null,null,null,null,null,null,null,null,null,null,null,null,null,null,null,null,null,null,null,null,null,null,null,null,null,null,null,null,null,null,null,null,null,null,null,null,null,null,null,null,null,null,null,null,null,null,null,null,null,null,"","","","","","","","","","",""]
[null,null,null,null,null,null,null,null,null,null,null,null,null,null,null,null,null,null,null,null,null,"",null,null,"","",null,null,null,null,null,null,null,null,null,null,null,null,null,null,null,null,null,null,null,null,null,null,null,null,null,null,null,null,null,null,null,null,null,null,null,null,null,null,null,null,null,null,null,null,null,null,null,null,null,null,null,null,null,null,null,null,null,null,null,null,null,null,null,null,null,null,null,null,null,null,null,null,null,null,null,null,null,null,null,null,null,null,null,null,null,null,null,null,null,null,null,null,null,null,null,null,null,null,null,null,null,null,null,null,null,null,null,null,null,null,null,null,null,null,null,null,null,null,null,null,null,null,null,null,null,null,null,null,null,null,null,null,null,null,null,null,null,null,null,null,null,null,null,null,null,null,null,null,null,null,null,null,null,null,null,null,null,null,null,null,null,null,null,null,null,null,null,null,"","","","","","","","","","",""]
[null,null,null,null,null,null,null,null,null,null,null,null,null,null,null,null,null,null,null,null,null,"",null,null,"","",null,null,null,null,null,null,null,null,null,null,null,null,null,null,null,null,null,null,null,null,null,null,null,null,null,null,null,null,null,null,null,null,null,null,null,null,null,null,null,null,null,null,null,null,null,null,null,null,null,null,null,null,null,null,null,null,null,null,null,null,null,null,null,null,null,null,null,null,null,null,null,null,null,null,null,null,null,null,null,null,null,null,null,null,null,null,null,null,null,null,null,null,null,null,null,null,null,null,null,null,null,null,null,null,null,null,null,null,null,null,null,null,null,null,null,null,null,null,null,null,null,null,null,null,null,null,null,null,null,null,null,null,null,null,null,null,null,null,null,null,null,null,null,null,null,null,null,null,null,null,null,null,null,null,null,null,null,null,null,null,null,null,null,null,null,null,null,null,"","","","","","","","","","",""]
[null,null,null,null,null,null,null,null,null,null,null,null,null,null,null,null,null,null,null,null,null,"",null,null,"","",null,null,null,null,null,null,null,null,null,null,null,null,null,null,null,null,null,null,null,null,null,null,null,null,null,null,null,null,null,null,null,null,null,null,null,null,null,null,null,null,null,null,null,null,null,null,null,null,null,null,null,null,null,null,null,null,null,null,null,null,null,null,null,null,null,null,null,null,null,null,null,null,null,null,null,null,null,null,null,null,null,null,null,null,null,null,null,null,null,null,null,null,null,null,null,null,null,null,null,null,null,null,null,null,null,null,null,null,null,null,null,null,null,null,null,null,null,null,null,null,null,null,null,null,null,null,null,null,null,null,null,null,null,null,null,null,null,null,null,null,null,null,null,null,null,null,null,null,null,null,null,null,null,null,null,null,null,null,null,null,null,null,null,null,null,null,null,null,"","","","","",{"$f":"IF(C75=\"\",\"\",IF(O75=\"\",\"\",VLOOKUP(O75,MarketCode,2,FALSE)))","v":""},{"$f":"IF(C75=\"\",\"\",IF(S75=\"\",\"\",VLOOKUP(C75,ProduceList,2,FALSE)))","v":""},"","","",""]
[null,null,null,null,null,null,null,null,null,null,null,null,null,null,null,null,null,null,null,null,null,"",null,null,"","",null,null,null,null,null,null,null,null,null,null,null,null,null,null,null,null,null,null,null,null,null,null,null,null,null,null,null,null,null,null,null,null,null,null,null,null,null,null,null,null,null,null,null,null,null,null,null,null,null,null,null,null,null,null,null,null,null,null,null,null,null,null,null,null,null,null,null,null,null,null,null,null,null,null,null,null,null,null,null,null,null,null,null,null,null,null,null,null,null,null,null,null,null,null,null,null,null,null,null,null,null,null,null,null,null,null,null,null,null,null,null,null,null,null,null,null,null,null,null,null,null,null,null,null,null,null,null,null,null,null,null,null,null,null,null,null,null,null,null,null,null,null,null,null,null,null,null,null,null,null,null,null,null,null,null,null,null,null,null,null,null,null,null,null,null,null,null,null,"","","","","","","","","","",""]
[null,null,null,null,null,null,null,null,null,null,null,null,null,null,null,null,null,null,null,null,null,"",null,null,"","",null,null,null,null,null,null,null,null,null,null,null,null,null,null,null,null,null,null,null,null,null,null,null,null,null,null,null,null,null,null,null,null,null,null,null,null,null,null,null,null,null,null,null,null,null,null,null,null,null,null,null,null,null,null,null,null,null,null,null,null,null,null,null,null,null,null,null,null,null,null,null,null,null,null,null,null,null,null,null,null,null,null,null,null,null,null,null,null,null,null,null,null,null,null,null,null,null,null,null,null,null,null,null,null,null,null,null,null,null,null,null,null,null,null,null,null,null,null,null,null,null,null,null,null,null,null,null,null,null,null,null,null,null,null,null,null,null,null,null,null,null,null,null,null,null,null,null,null,null,null,null,null,null,null,null,null,null,null,null,null,null,null,null,null,null,null,null,null,"","","","","","","","","","",""]
[null,null,null,null,null,null,null,null,null,null,null,null,null,null,null,null,null,null,null,null,null,"",null,null,"","",null,null,null,null,null,null,null,null,null,null,null,null,null,null,null,null,null,null,null,null,null,null,null,null,null,null,null,null,null,null,null,null,null,null,null,null,null,null,null,null,null,null,null,null,null,null,null,null,null,null,null,null,null,null,null,null,null,null,null,null,null,null,null,null,null,null,null,null,null,null,null,null,null,null,null,null,null,null,null,null,null,null,null,null,null,null,null,null,null,null,null,null,null,null,null,null,null,null,null,null,null,null,null,null,null,null,null,null,null,null,null,null,null,null,null,null,null,null,null,null,null,null,null,null,null,null,null,null,null,null,null,null,null,null,null,null,null,null,null,null,null,null,null,null,null,null,null,null,null,null,null,null,null,null,null,null,null,null,null,null,null,null,null,null,null,null,null,null,"","","","","","","","","","",""]
[null,null,null,null,null,null,null,null,null,null,null,null,null,null,null,null,null,null,null,null,null,"",null,null,"","",null,null,null,null,null,null,null,null,null,null,null,null,null,null,null,null,null,null,null,null,null,null,null,null,null,null,null,null,null,null,null,null,null,null,null,null,null,null,null,null,null,null,null,null,null,null,null,null,null,null,null,null,null,null,null,null,null,null,null,null,null,null,null,null,null,null,null,null,null,null,null,null,null,null,null,null,null,null,null,null,null,null,null,null,null,null,null,null,null,null,null,null,null,null,null,null,null,null,null,null,null,null,null,null,null,null,null,null,null,null,null,null,null,null,null,null,null,null,null,null,null,null,null,null,null,null,null,null,null,null,null,null,null,null,null,null,null,null,null,null,null,null,null,null,null,null,null,null,null,null,null,null,null,null,null,null,null,null,null,null,null,null,null,null,null,null,null,null,"","","","","","","","","","",""]
[null,null,null,null,null,null,null,null,null,null,null,null,null,null,null,null,null,null,null,null,null,"",null,null,"","",null,null,null,null,null,null,null,null,null,null,null,null,null,null,null,null,null,null,null,null,null,null,null,null,null,null,null,null,null,null,null,null,null,null,null,null,null,null,null,null,null,null,null,null,null,null,null,null,null,null,null,null,null,null,null,null,null,null,null,null,null,null,null,null,null,null,null,null,null,null,null,null,null,null,null,null,null,null,null,null,null,null,null,null,null,null,null,null,null,null,null,null,null,null,null,null,null,null,null,null,null,null,null,null,null,null,null,null,null,null,null,null,null,null,null,null,null,null,null,null,null,null,null,null,null,null,null,null,null,null,null,null,null,null,null,null,null,null,null,null,null,null,null,null,null,null,null,null,null,null,null,null,null,null,null,null,null,null,null,null,null,null,null,null,null,null,null,null,"","","","","","","","","","",""]
[null,null,null,null,null,null,null,null,null,null,null,null,null,null,null,null,null,null,null,null,null,"",null,null,"","",null,null,null,null,null,null,null,null,null,null,null,null,null,null,null,null,null,null,null,null,null,null,null,null,null,null,null,null,null,null,null,null,null,null,null,null,null,null,null,null,null,null,null,null,null,null,null,null,null,null,null,null,null,null,null,null,null,null,null,null,null,null,null,null,null,null,null,null,null,null,null,null,null,null,null,null,null,null,null,null,null,null,null,null,null,null,null,null,null,null,null,null,null,null,null,null,null,null,null,null,null,null,null,null,null,null,null,null,null,null,null,null,null,null,null,null,null,null,null,null,null,null,null,null,null,null,null,null,null,null,null,null,null,null,null,null,null,null,null,null,null,null,null,null,null,null,null,null,null,null,null,null,null,null,null,null,null,null,null,null,null,null,null,null,null,null,null,null,"","","","","","","","","","",""]
[null,null,null,null,null,null,null,null,null,null,null,null,null,null,null,null,null,null,null,null,null,"",null,null,"","",null,null,null,null,null,null,null,null,null,null,null,null,null,null,null,null,null,null,null,null,null,null,null,null,null,null,null,null,null,null,null,null,null,null,null,null,null,null,null,null,null,null,null,null,null,null,null,null,null,null,null,null,null,null,null,null,null,null,null,null,null,null,null,null,null,null,null,null,null,null,null,null,null,null,null,null,null,null,null,null,null,null,null,null,null,null,null,null,null,null,null,null,null,null,null,null,null,null,null,null,null,null,null,null,null,null,null,null,null,null,null,null,null,null,null,null,null,null,null,null,null,null,null,null,null,null,null,null,null,null,null,null,null,null,null,null,null,null,null,null,null,null,null,null,null,null,null,null,null,null,null,null,null,null,null,null,null,null,null,null,null,null,null,null,null,null,null,null,"","","","","","","","","","",""]
[null,null,null,null,null,null,null,null,null,null,null,null,null,null,null,null,null,null,null,null,null,"",null,null,"","",null,null,null,null,null,null,null,null,null,null,null,null,null,null,null,null,null,null,null,null,null,null,null,null,null,null,null,null,null,null,null,null,null,null,null,null,null,null,null,null,null,null,null,null,null,null,null,null,null,null,null,null,null,null,null,null,null,null,null,null,null,null,null,null,null,null,null,null,null,null,null,null,null,null,null,null,null,null,null,null,null,null,null,null,null,null,null,null,null,null,null,null,null,null,null,null,null,null,null,null,null,null,null,null,null,null,null,null,null,null,null,null,null,null,null,null,null,null,null,null,null,null,null,null,null,null,null,null,null,null,null,null,null,null,null,null,null,null,null,null,null,null,null,null,null,null,null,null,null,null,null,null,null,null,null,null,null,null,null,null,null,null,null,null,null,null,null,null,"","","","","","","","","","",""]
[null,null,null,null,null,null,null,null,null,null,null,null,null,null,null,null,null,null,null,null,null,"",null,null,"","",null,null,null,null,null,null,null,null,null,null,null,null,null,null,null,null,null,null,null,null,null,null,null,null,null,null,null,null,null,null,null,null,null,null,null,null,null,null,null,null,null,null,null,null,null,null,null,null,null,null,null,null,null,null,null,null,null,null,null,null,null,null,null,null,null,null,null,null,null,null,null,null,null,null,null,null,null,null,null,null,null,null,null,null,null,null,null,null,null,null,null,null,null,null,null,null,null,null,null,null,null,null,null,null,null,null,null,null,null,null,null,null,null,null,null,null,null,null,null,null,null,null,null,null,null,null,null,null,null,null,null,null,null,null,null,null,null,null,null,null,null,null,null,null,null,null,null,null,null,null,null,null,null,null,null,null,null,null,null,null,null,null,null,null,null,null,null,null,"","","","","","","","","","",""]
[null,null,null,null,null,null,null,null,null,null,null,null,null,null,null,null,null,null,null,null,null,"",null,null,"","",null,null,null,null,null,null,null,null,null,null,null,null,null,null,null,null,null,null,null,null,null,null,null,null,null,null,null,null,null,null,null,null,null,null,null,null,null,null,null,null,null,null,null,null,null,null,null,null,null,null,null,null,null,null,null,null,null,null,null,null,null,null,null,null,null,null,null,null,null,null,null,null,null,null,null,null,null,null,null,null,null,null,null,null,null,null,null,null,null,null,null,null,null,null,null,null,null,null,null,null,null,null,null,null,null,null,null,null,null,null,null,null,null,null,null,null,null,null,null,null,null,null,null,null,null,null,null,null,null,null,null,null,null,null,null,null,null,null,null,null,null,null,null,null,null,null,null,null,null,null,null,null,null,null,null,null,null,null,null,null,null,null,null,null,null,null,null,null,"","","","","","","","","","",""]
[null,null,null,null,null,null,null,null,null,null,null,null,null,null,null,null,null,null,null,null,null,{"$f":"IF(C86=\"\",\"\",VLOOKUP(C86,ProduceList,3,FALSE))","v":""},null,null,{"$f":"IF(C86=\"\",\"\",VLOOKUP(C86,ProduceList,4,FALSE))","v":""},"",null,null,null,null,null,null,null,null,null,null,null,null,null,null,null,null,null,null,null,null,null,null,null,null,null,null,null,null,null,null,null,null,null,null,null,null,null,null,null,null,null,null,null,null,null,null,null,null,null,null,null,null,null,null,null,null,null,null,null,null,null,null,null,null,null,null,null,null,null,null,null,null,null,null,null,null,null,null,null,null,null,null,null,null,null,null,null,null,null,null,null,null,null,null,null,null,null,null,null,null,null,null,null,null,null,null,null,null,null,null,null,null,null,null,null,null,null,null,null,null,null,null,null,null,null,null,null,null,null,null,null,null,null,null,null,null,null,null,null,null,null,null,null,null,null,null,null,null,null,null,null,null,null,null,null,null,null,null,null,null,null,null,null,null,null,null,null,null,{"$f":"IF($B$4=\"\",\"\",IF(C86=\"\",\"\",$B$4))","v":""},{"$f":"IF(A86=\"\",\"\",IF(B86=\"\",\"\",B86))","v":""},{"$f":"IF($B$6=\"\",\"\",IF(C86=\"\",\"\",$B$6))","v":""},{"$f":"IF($B$7=\"\",\"\",IF(C86=\"\",\"\",$B$7))","v":""},{"$f":"IF($B$5=\"\",\"\",IF(C86=\"\",\"\",$B$5))","v":""},"","",{"$f":"IF(Y86=\"\",\"\",Y86)","v":""},{"$f":"IF(S86=\"\",\"\",S86)","v":""},{"$f":"IF(Z86=\"\",\"\",Z86)","v":""},{"$f":"IF($Z$164=\"\",\"\",IF(C86=\"\",\"\",$Z$164))","v":""}]
[null,null,null,null,null,null,null,null,null,null,null,null,null,null,null,null,null,null,null,null,null,"",null,null,"","",null,null,null,null,null,null,null,null,null,null,null,null,null,null,null,null,null,null,null,null,null,null,null,null,null,null,null,null,null,null,null,null,null,null,null,null,null,null,null,null,null,null,null,null,null,null,null,null,null,null,null,null,null,null,null,null,null,null,null,null,null,null,null,null,null,null,null,null,null,null,null,null,null,null,null,null,null,null,null,null,null,null,null,null,null,null,null,null,null,null,null,null,null,null,null,null,null,null,null,null,null,null,null,null,null,null,null,null,null,null,null,null,null,null,null,null,null,null,null,null,null,null,null,null,null,null,null,null,null,null,null,null,null,null,null,null,null,null,null,null,null,null,null,null,null,null,null,null,null,null,null,null,null,null,null,null,null,null,null,null,null,null,null,null,null,null,null,null,"","","","","","","","","","",""]
[null,null,null,null,null,null,null,null,null,null,null,null,null,null,null,null,null,null,null,null,null,"",null,null,"",{"$f":"IF(C88=\"\",\"\",ROUND(S88*Y88,2))","v":""},null,null,null,null,null,null,null,null,null,null,null,null,null,null,null,null,null,null,null,null,null,null,null,null,null,null,null,null,null,null,null,null,null,null,null,null,null,null,null,null,null,null,null,null,null,null,null,null,null,null,null,null,null,null,null,null,null,null,null,null,null,null,null,null,null,null,null,null,null,null,null,null,null,null,null,null,null,null,null,null,null,null,null,null,null,null,null,null,null,null,null,null,null,null,null,null,null,null,null,null,null,null,null,null,null,null,null,null,null,null,null,null,null,null,null,null,null,null,null,null,null,null,null,null,null,null,null,null,null,null,null,null,null,null,null,null,null,null,null,null,null,null,null,null,null,null,null,null,null,null,null,null,null,null,null,null,null,null,null,null,null,null,null,null,null,null,null,null,"","","","","","","","","","",""]
[null,null,null,null,null,null,null,null,null,null,null,null,null,null,null,null,null,null,null,null,null,"",null,null,"","",null,null,null,null,null,null,null,null,null,null,null,null,null,null,null,null,null,null,null,null,null,null,null,null,null,null,null,null,null,null,null,null,null,null,null,null,null,null,null,null,null,null,null,null,null,null,null,null,null,null,null,null,null,null,null,null,null,null,null,null,null,null,null,null,null,null,null,null,null,null,null,null,null,null,null,null,null,null,null,null,null,null,null,null,null,null,null,null,null,null,null,null,null,null,null,null,null,null,null,null,null,null,null,null,null,null,null,null,null,null,null,null,null,null,null,null,null,null,null,null,null,null,null,null,null,null,null,null,null,null,null,null,null,null,null,null,null,null,null,null,null,null,null,null,null,null,null,null,null,null,null,null,null,null,null,null,null,null,null,null,null,null,null,null,null,null,null,null,"","","","","","","","","","",""]
[null,null,null,null,null,null,null,null,null,null,null,null,null,null,null,null,null,null,null,null,null,"",null,null,"","",null,null,null,null,null,null,null,null,null,null,null,null,null,null,null,null,null,null,null,null,null,null,null,null,null,null,null,null,null,null,null,null,null,null,null,null,null,null,null,null,null,null,null,null,null,null,null,null,null,null,null,null,null,null,null,null,null,null,null,null,null,null,null,null,null,null,null,null,null,null,null,null,null,null,null,null,null,null,null,null,null,null,null,null,null,null,null,null,null,null,null,null,null,null,null,null,null,null,null,null,null,null,null,null,null,null,null,null,null,null,null,null,null,null,null,null,null,null,null,null,null,null,null,null,null,null,null,null,null,null,null,null,null,null,null,null,null,null,null,null,null,null,null,null,null,null,null,null,null,null,null,null,null,null,null,null,null,null,null,null,null,null,null,null,null,null,null,null,"","","","","","","","","","",""]
[null,null,null,null,null,null,null,null,null,null,null,null,null,null,null,null,null,null,null,null,null,"",null,null,"","",null,null,null,null,null,null,null,null,null,null,null,null,null,null,null,null,null,null,null,null,null,null,null,null,null,null,null,null,null,null,null,null,null,null,null,null,null,null,null,null,null,null,null,null,null,null,null,null,null,null,null,null,null,null,null,null,null,null,null,null,null,null,null,null,null,null,null,null,null,null,null,null,null,null,null,null,null,null,null,null,null,null,null,null,null,null,null,null,null,null,null,null,null,null,null,null,null,null,null,null,null,null,null,null,null,null,null,null,null,null,null,null,null,null,null,null,null,null,null,null,null,null,null,null,null,null,null,null,null,null,null,null,null,null,null,null,null,null,null,null,null,null,null,null,null,null,null,null,null,null,null,null,null,null,null,null,null,null,null,null,null,null,null,null,null,null,null,null,"","","","","","","","","","",""]
[null,null,null,null,null,null,null,null,null,null,null,null,null,null,null,null,null,null,null,null,null,"",null,null,"","",null,null,null,null,null,null,null,null,null,null,null,null,null,null,null,null,null,null,null,null,null,null,null,null,null,null,null,null,null,null,null,null,null,null,null,null,null,null,null,null,null,null,null,null,null,null,null,null,null,null,null,null,null,null,null,null,null,null,null,null,null,null,null,null,null,null,null,null,null,null,null,null,null,null,null,null,null,null,null,null,null,null,null,null,null,null,null,null,null,null,null,null,null,null,null,null,null,null,null,null,null,null,null,null,null,null,null,null,null,null,null,null,null,null,null,null,null,null,null,null,null,null,null,null,null,null,null,null,null,null,null,null,null,null,null,null,null,null,null,null,null,null,null,null,null,null,null,null,null,null,null,null,null,null,null,null,null,null,null,null,null,null,null,null,null,null,null,null,"","","","","","","","","","",""]
[null,null,null,null,null,null,null,null,null,null,null,null,null,null,null,null,null,null,null,null,null,"",null,null,"","",null,null,null,null,null,null,null,null,null,null,null,null,null,null,null,null,null,null,null,null,null,null,null,null,null,null,null,null,null,null,null,null,null,null,null,null,null,null,null,null,null,null,null,null,null,null,null,null,null,null,null,null,null,null,null,null,null,null,null,null,null,null,null,null,null,null,null,null,null,null,null,null,null,null,null,null,null,null,null,null,null,null,null,null,null,null,null,null,null,null,null,null,null,null,null,null,null,null,null,null,null,null,null,null,null,null,null,null,null,null,null,null,null,null,null,null,null,null,null,null,null,null,null,null,null,null,null,null,null,null,null,null,null,null,null,null,null,null,null,null,null,null,null,null,null,null,null,null,null,null,null,null,null,null,null,null,null,null,null,null,null,null,null,null,null,null,null,null,"","","","","","","","","","",""]
[null,null,null,null,null,null,null,null,null,null,null,null,null,null,null,null,null,null,null,null,null,"",null,null,"","",null,null,null,null,null,null,null,null,null,null,null,null,null,null,null,null,null,null,null,null,null,null,null,null,null,null,null,null,null,null,null,null,null,null,null,null,null,null,null,null,null,null,null,null,null,null,null,null,null,null,null,null,null,null,null,null,null,null,null,null,null,null,null,null,null,null,null,null,null,null,null,null,null,null,null,null,null,null,null,null,null,null,null,null,null,null,null,null,null,null,null,null,null,null,null,null,null,null,null,null,null,null,null,null,null,null,null,null,null,null,null,null,null,null,null,null,null,null,null,null,null,null,null,null,null,null,null,null,null,null,null,null,null,null,null,null,null,null,null,null,null,null,null,null,null,null,null,null,null,null,null,null,null,null,null,null,null,null,null,null,null,null,null,null,null,null,null,null,"","","","","","","","","","",""]
[null,null,null,null,null,null,null,null,null,null,null,null,null,null,null,null,null,null,null,null,null,"",null,null,"","",null,null,null,null,null,null,null,null,null,null,null,null,null,null,null,null,null,null,null,null,null,null,null,null,null,null,null,null,null,null,null,null,null,null,null,null,null,null,null,null,null,null,null,null,null,null,null,null,null,null,null,null,null,null,null,null,null,null,null,null,null,null,null,null,null,null,null,null,null,null,null,null,null,null,null,null,null,null,null,null,null,null,null,null,null,null,null,null,null,null,null,null,null,null,null,null,null,null,null,null,null,null,null,null,null,null,null,null,null,null,null,null,null,null,null,null,null,null,null,null,null,null,null,null,null,null,null,null,null,null,null,null,null,null,null,null,null,null,null,null,null,null,null,null,null,null,null,null,null,null,null,null,null,null,null,null,null,null,null,null,null,null,null,null,null,null,null,null,"","","","","","","","","","",""]
[null,null,null,null,null,null,null,null,null,null,null,null,null,null,null,null,null,null,null,null,null,"",null,null,"","",null,null,null,null,null,null,null,null,null,null,null,null,null,null,null,null,null,null,null,null,null,null,null,null,null,null,null,null,null,null,null,null,null,null,null,null,null,null,null,null,null,null,null,null,null,null,null,null,null,null,null,null,null,null,null,null,null,null,null,null,null,null,null,null,null,null,null,null,null,null,null,null,null,null,null,null,null,null,null,null,null,null,null,null,null,null,null,null,null,null,null,null,null,null,null,null,null,null,null,null,null,null,null,null,null,null,null,null,null,null,null,null,null,null,null,null,null,null,null,null,null,null,null,null,null,null,null,null,null,null,null,null,null,null,null,null,null,null,null,null,null,null,null,null,null,null,null,null,null,null,null,null,null,null,null,null,null,null,null,null,null,null,null,null,null,null,null,null,"","","","","","","","","","",""]
[null,null,null,null,null,null,null,null,null,null,null,null,null,null,null,null,null,null,null,null,null,"",null,null,"","",null,null,null,null,null,null,null,null,null,null,null,null,null,null,null,null,null,null,null,null,null,null,null,null,null,null,null,null,null,null,null,null,null,null,null,null,null,null,null,null,null,null,null,null,null,null,null,null,null,null,null,null,null,null,null,null,null,null,null,null,null,null,null,null,null,null,null,null,null,null,null,null,null,null,null,null,null,null,null,null,null,null,null,null,null,null,null,null,null,null,null,null,null,null,null,null,null,null,null,null,null,null,null,null,null,null,null,null,null,null,null,null,null,null,null,null,null,null,null,null,null,null,null,null,null,null,null,null,null,null,null,null,null,null,null,null,null,null,null,null,null,null,null,null,null,null,null,null,null,null,null,null,null,null,null,null,null,null,null,null,null,null,null,null,null,null,null,null,"","","","","","","","","","",""]
[null,null,null,null,null,null,null,null,null,null,null,null,null,null,null,null,null,null,null,null,null,"",null,null,"","",null,null,null,null,null,null,null,null,null,null,null,null,null,null,null,null,null,null,null,null,null,null,null,null,null,null,null,null,null,null,null,null,null,null,null,null,null,null,null,null,null,null,null,null,null,null,null,null,null,null,null,null,null,null,null,null,null,null,null,null,null,null,null,null,null,null,null,null,null,null,null,null,null,null,null,null,null,null,null,null,null,null,null,null,null,null,null,null,null,null,null,null,null,null,null,null,null,null,null,null,null,null,null,null,null,null,null,null,null,null,null,null,null,null,null,null,null,null,null,null,null,null,null,null,null,null,null,null,null,null,null,null,null,null,null,null,null,null,null,null,null,null,null,null,null,null,null,null,null,null,null,null,null,null,null,null,null,null,null,null,null,null,null,null,null,null,null,null,"","","","","","","","","","",""]
[null,null,null,null,null,null,null,null,null,null,null,null,null,null,null,null,null,null,null,null,null,"",null,null,"","",null,null,null,null,null,null,null,null,null,null,null,null,null,null,null,null,null,null,null,null,null,null,null,null,null,null,null,null,null,null,null,null,null,null,null,null,null,null,null,null,null,null,null,null,null,null,null,null,null,null,null,null,null,null,null,null,null,null,null,null,null,null,null,null,null,null,null,null,null,null,null,null,null,null,null,null,null,null,null,null,null,null,null,null,null,null,null,null,null,null,null,null,null,null,null,null,null,null,null,null,null,null,null,null,null,null,null,null,null,null,null,null,null,null,null,null,null,null,null,null,null,null,null,null,null,null,null,null,null,null,null,null,null,null,null,null,null,null,null,null,null,null,null,null,null,null,null,null,null,null,null,null,null,null,null,null,null,null,null,null,null,null,null,null,null,null,null,null,"","","","","","","","","","",""]
[null,null,null,null,null,null,null,null,null,null,null,null,null,null,null,null,null,null,null,null,null,"",null,null,"","",null,null,null,null,null,null,null,null,null,null,null,null,null,null,null,null,null,null,null,null,null,null,null,null,null,null,null,null,null,null,null,null,null,null,null,null,null,null,null,null,null,null,null,null,null,null,null,null,null,null,null,null,null,null,null,null,null,null,null,null,null,null,null,null,null,null,null,null,null,null,null,null,null,null,null,null,null,null,null,null,null,null,null,null,null,null,null,null,null,null,null,null,null,null,null,null,null,null,null,null,null,null,null,null,null,null,null,null,null,null,null,null,null,null,null,null,null,null,null,null,null,null,null,null,null,null,null,null,null,null,null,null,null,null,null,null,null,null,null,null,null,null,null,null,null,null,null,null,null,null,null,null,null,null,null,null,null,null,null,null,null,null,null,null,null,null,null,null,"","","","","","","","","","",""]
[null,null,null,null,null,null,null,null,null,null,null,null,null,null,null,null,null,null,null,null,null,"",null,null,"","",null,null,null,null,null,null,null,null,null,null,null,null,null,null,null,null,null,null,null,null,null,null,null,null,null,null,null,null,null,null,null,null,null,null,null,null,null,null,null,null,null,null,null,null,null,null,null,null,null,null,null,null,null,null,null,null,null,null,null,null,null,null,null,null,null,null,null,null,null,null,null,null,null,null,null,null,null,null,null,null,null,null,null,null,null,null,null,null,null,null,null,null,null,null,null,null,null,null,null,null,null,null,null,null,null,null,null,null,null,null,null,null,null,null,null,null,null,null,null,null,null,null,null,null,null,null,null,null,null,null,null,null,null,null,null,null,null,null,null,null,null,null,null,null,null,null,null,null,null,null,null,null,null,null,null,null,null,null,null,null,null,null,null,null,null,null,null,null,"","","","","","","","","","",""]
[null,null,null,null,null,null,null,null,null,null,null,null,null,null,null,null,null,null,null,null,null,"",null,null,"","",null,null,null,null,null,null,null,null,null,null,null,null,null,null,null,null,null,null,null,null,null,null,null,null,null,null,null,null,null,null,null,null,null,null,null,null,null,null,null,null,null,null,null,null,null,null,null,null,null,null,null,null,null,null,null,null,null,null,null,null,null,null,null,null,null,null,null,null,null,null,null,null,null,null,null,null,null,null,null,null,null,null,null,null,null,null,null,null,null,null,null,null,null,null,null,null,null,null,null,null,null,null,null,null,null,null,null,null,null,null,null,null,null,null,null,null,null,null,null,null,null,null,null,null,null,null,null,null,null,null,null,null,null,null,null,null,null,null,null,null,null,null,null,null,null,null,null,null,null,null,null,null,null,null,null,null,null,null,null,null,null,null,null,null,null,null,null,null,"","","","","","","","","","",""]
[null,null,null,null,null,null,null,null,null,null,null,null,null,null,null,null,null,null,null,null,null,"",null,null,"","",null,null,null,null,null,null,null,null,null,null,null,null,null,null,null,null,null,null,null,null,null,null,null,null,null,null,null,null,null,null,null,null,null,null,null,null,null,null,null,null,null,null,null,null,null,null,null,null,null,null,null,null,null,null,null,null,null,null,null,null,null,null,null,null,null,null,null,null,null,null,null,null,null,null,null,null,null,null,null,null,null,null,null,null,null,null,null,null,null,null,null,null,null,null,null,null,null,null,null,null,null,null,null,null,null,null,null,null,null,null,null,null,null,null,null,null,null,null,null,null,null,null,null,null,null,null,null,null,null,null,null,null,null,null,null,null,null,null,null,null,null,null,null,null,null,null,null,null,null,null,null,null,null,null,null,null,null,null,null,null,null,null,null,null,null,null,null,null,"","","","","","","","","","",""]
[null,null,null,null,null,null,null,null,null,null,null,null,null,null,null,null,null,null,null,null,null,"",null,null,"","",null,null,null,null,null,null,null,null,null,null,null,null,null,null,null,null,null,null,null,null,null,null,null,null,null,null,null,null,null,null,null,null,null,null,null,null,null,null,null,null,null,null,null,null,null,null,null,null,null,null,null,null,null,null,null,null,null,null,null,null,null,null,null,null,null,null,null,null,null,null,null,null,null,null,null,null,null,null,null,null,null,null,null,null,null,null,null,null,null,null,null,null,null,null,null,null,null,null,null,null,null,null,null,null,null,null,null,null,null,null,null,null,null,null,null,null,null,null,null,null,null,null,null,null,null,null,null,null,null,null,null,null,null,null,null,null,null,null,null,null,null,null,null,null,null,null,null,null,null,null,null,null,null,null,null,null,null,null,null,null,null,null,null,null,null,null,null,null,"","","","","","","","","","",""]
[null,null,null,null,null,null,null,null,null,null,null,null,null,null,null,null,null,null,null,null,null,"",null,null,"","",null,null,null,null,null,null,null,null,null,null,null,null,null,null,null,null,null,null,null,null,null,null,null,null,null,null,null,null,null,null,null,null,null,null,null,null,null,null,null,null,null,null,null,null,null,null,null,null,null,null,null,null,null,null,null,null,null,null,null,null,null,null,null,null,null,null,null,null,null,null,null,null,null,null,null,null,null,null,null,null,null,null,null,null,null,null,null,null,null,null,null,null,null,null,null,null,null,null,null,null,null,null,null,null,null,null,null,null,null,null,null,null,null,null,null,null,null,null,null,null,null,null,null,null,null,null,null,null,null,null,null,null,null,null,null,null,null,null,null,null,null,null,null,null,null,null,null,null,null,null,null,null,null,null,null,null,null,null,null,null,null,null,null,null,null,null,null,null,"","","","","","","","","","",""]
[null,null,null,null,null,null,null,null,null,null,null,null,null,null,null,null,null,null,null,null,null,"",null,null,"","",null,null,null,null,null,null,null,null,null,null,null,null,null,null,null,null,null,null,null,null,null,null,null,null,null,null,null,null,null,null,null,null,null,null,null,null,null,null,null,null,null,null,null,null,null,null,null,null,null,null,null,null,null,null,null,null,null,null,null,null,null,null,null,null,null,null,null,null,null,null,null,null,null,null,null,null,null,null,null,null,null,null,null,null,null,null,null,null,null,null,null,null,null,null,null,null,null,null,null,null,null,null,null,null,null,null,null,null,null,null,null,null,null,null,null,null,null,null,null,null,null,null,null,null,null,null,null,null,null,null,null,null,null,null,null,null,null,null,null,null,null,null,null,null,null,null,null,null,null,null,null,null,null,null,null,null,null,null,null,null,null,null,null,null,null,null,null,null,"","","","","","","","","","",""]
[null,null,null,null,null,null,null,null,null,null,null,null,null,null,null,null,null,null,null,null,null,"",null,null,"","",null,null,null,null,null,null,null,null,null,null,null,null,null,null,null,null,null,null,null,null,null,null,null,null,null,null,null,null,null,null,null,null,null,null,null,null,null,null,null,null,null,null,null,null,null,null,null,null,null,null,null,null,null,null,null,null,null,null,null,null,null,null,null,null,null,null,null,null,null,null,null,null,null,null,null,null,null,null,null,null,null,null,null,null,null,null,null,null,null,null,null,null,null,null,null,null,null,null,null,null,null,null,null,null,null,null,null,null,null,null,null,null,null,null,null,null,null,null,null,null,null,null,null,null,null,null,null,null,null,null,null,null,null,null,null,null,null,null,null,null,null,null,null,null,null,null,null,null,null,null,null,null,null,null,null,null,null,null,null,null,null,null,null,null,null,null,null,null,"","","","","",{"$f":"IF(C107=\"\",\"\",IF(O107=\"\",\"\",VLOOKUP(O107,MarketCode,2,FALSE)))","v":""},{"$f":"IF(C107=\"\",\"\",IF(S107=\"\",\"\",VLOOKUP(C107,ProduceList,2,FALSE)))","v":""},"","","",""]
[null,null,null,null,null,null,null,null,null,null,null,null,null,null,null,null,null,null,null,null,null,"",null,null,"","",null,null,null,null,null,null,null,null,null,null,null,null,null,null,null,null,null,null,null,null,null,null,null,null,null,null,null,null,null,null,null,null,null,null,null,null,null,null,null,null,null,null,null,null,null,null,null,null,null,null,null,null,null,null,null,null,null,null,null,null,null,null,null,null,null,null,null,null,null,null,null,null,null,null,null,null,null,null,null,null,null,null,null,null,null,null,null,null,null,null,null,null,null,null,null,null,null,null,null,null,null,null,null,null,null,null,null,null,null,null,null,null,null,null,null,null,null,null,null,null,null,null,null,null,null,null,null,null,null,null,null,null,null,null,null,null,null,null,null,null,null,null,null,null,null,null,null,null,null,null,null,null,null,null,null,null,null,null,null,null,null,null,null,null,null,null,null,null,"","","","","","","","","","",""]
[null,null,null,null,null,null,null,null,null,null,null,null,null,null,null,null,null,null,null,null,null,"",null,null,"","",null,null,null,null,null,null,null,null,null,null,null,null,null,null,null,null,null,null,null,null,null,null,null,null,null,null,null,null,null,null,null,null,null,null,null,null,null,null,null,null,null,null,null,null,null,null,null,null,null,null,null,null,null,null,null,null,null,null,null,null,null,null,null,null,null,null,null,null,null,null,null,null,null,null,null,null,null,null,null,null,null,null,null,null,null,null,null,null,null,null,null,null,null,null,null,null,null,null,null,null,null,null,null,null,null,null,null,null,null,null,null,null,null,null,null,null,null,null,null,null,null,null,null,null,null,null,null,null,null,null,null,null,null,null,null,null,null,null,null,null,null,null,null,null,null,null,null,null,null,null,null,null,null,null,null,null,null,null,null,null,null,null,null,null,null,null,null,null,"","","","","","","","","","",""]
[null,null,null,null,null,null,null,null,null,null,null,null,null,null,null,null,null,null,null,null,null,"",null,null,"","",null,null,null,null,null,null,null,null,null,null,null,null,null,null,null,null,null,null,null,null,null,null,null,null,null,null,null,null,null,null,null,null,null,null,null,null,null,null,null,null,null,null,null,null,null,null,null,null,null,null,null,null,null,null,null,null,null,null,null,null,null,null,null,null,null,null,null,null,null,null,null,null,null,null,null,null,null,null,null,null,null,null,null,null,null,null,null,null,null,null,null,null,null,null,null,null,null,null,null,null,null,null,null,null,null,null,null,null,null,null,null,null,null,null,null,null,null,null,null,null,null,null,null,null,null,null,null,null,null,null,null,null,null,null,null,null,null,null,null,null,null,null,null,null,null,null,null,null,null,null,null,null,null,null,null,null,null,null,null,null,null,null,null,null,null,null,null,null,"","","","","","","","","","",""]
[null,null,null,null,null,null,null,null,null,null,null,null,null,null,null,null,null,null,null,null,null,"",null,null,"","",null,null,null,null,null,null,null,null,null,null,null,null,null,null,null,null,null,null,null,null,null,null,null,null,null,null,null,null,null,null,null,null,null,null,null,null,null,null,null,null,null,null,null,null,null,null,null,null,null,null,null,null,null,null,null,null,null,null,null,null,null,null,null,null,null,null,null,null,null,null,null,null,null,null,null,null,null,null,null,null,null,null,null,null,null,null,null,null,null,null,null,null,null,null,null,null,null,null,null,null,null,null,null,null,null,null,null,null,null,null,null,null,null,null,null,null,null,null,null,null,null,null,null,null,null,null,null,null,null,null,null,null,null,null,null,null,null,null,null,null,null,null,null,null,null,null,null,null,null,null,null,null,null,null,null,null,null,null,null,null,null,null,null,null,null,null,null,null,"","","","","","","","","","",""]
[null,null,null,null,null,null,null,null,null,null,null,null,null,null,null,null,null,null,null,null,null,"",null,null,"","",null,null,null,null,null,null,null,null,null,null,null,null,null,null,null,null,null,null,null,null,null,null,null,null,null,null,null,null,null,null,null,null,null,null,null,null,null,null,null,null,null,null,null,null,null,null,null,null,null,null,null,null,null,null,null,null,null,null,null,null,null,null,null,null,null,null,null,null,null,null,null,null,null,null,null,null,null,null,null,null,null,null,null,null,null,null,null,null,null,null,null,null,null,null,null,null,null,null,null,null,null,null,null,null,null,null,null,null,null,null,null,null,null,null,null,null,null,null,null,null,null,null,null,null,null,null,null,null,null,null,null,null,null,null,null,null,null,null,null,null,null,null,null,null,null,null,null,null,null,null,null,null,null,null,null,null,null,null,null,null,null,null,null,null,null,null,null,null,"","","","","","","","","","",""]
[null,null,null,null,null,null,null,null,null,null,null,null,null,null,null,null,null,null,null,null,null,"",null,null,"","",null,null,null,null,null,null,null,null,null,null,null,null,null,null,null,null,null,null,null,null,null,null,null,null,null,null,null,null,null,null,null,null,null,null,null,null,null,null,null,null,null,null,null,null,null,null,null,null,null,null,null,null,null,null,null,null,null,null,null,null,null,null,null,null,null,null,null,null,null,null,null,null,null,null,null,null,null,null,null,null,null,null,null,null,null,null,null,null,null,null,null,null,null,null,null,null,null,null,null,null,null,null,null,null,null,null,null,null,null,null,null,null,null,null,null,null,null,null,null,null,null,null,null,null,null,null,null,null,null,null,null,null,null,null,null,null,null,null,null,null,null,null,null,null,null,null,null,null,null,null,null,null,null,null,null,null,null,null,null,null,null,null,null,null,null,null,null,null,"","","","","","","","","","",""]
[null,null,null,null,null,null,null,null,null,null,null,null,null,null,null,null,null,null,null,null,null,"",null,null,"","",null,null,null,null,null,null,null,null,null,null,null,null,null,null,null,null,null,null,null,null,null,null,null,null,null,null,null,null,null,null,null,null,null,null,null,null,null,null,null,null,null,null,null,null,null,null,null,null,null,null,null,null,null,null,null,null,null,null,null,null,null,null,null,null,null,null,null,null,null,null,null,null,null,null,null,null,null,null,null,null,null,null,null,null,null,null,null,null,null,null,null,null,null,null,null,null,null,null,null,null,null,null,null,null,null,null,null,null,null,null,null,null,null,null,null,null,null,null,null,null,null,null,null,null,null,null,null,null,null,null,null,null,null,null,null,null,null,null,null,null,null,null,null,null,null,null,null,null,null,null,null,null,null,null,null,null,null,null,null,null,null,null,null,null,null,null,null,null,"","","","","","","","","","",""]
[null,null,null,null,null,null,null,null,null,null,null,null,null,null,null,null,null,null,null,null,null,"",null,null,"","",null,null,null,null,null,null,null,null,null,null,null,null,null,null,null,null,null,null,null,null,null,null,null,null,null,null,null,null,null,null,null,null,null,null,null,null,null,null,null,null,null,null,null,null,null,null,null,null,null,null,null,null,null,null,null,null,null,null,null,null,null,null,null,null,null,null,null,null,null,null,null,null,null,null,null,null,null,null,null,null,null,null,null,null,null,null,null,null,null,null,null,null,null,null,null,null,null,null,null,null,null,null,null,null,null,null,null,null,null,null,null,null,null,null,null,null,null,null,null,null,null,null,null,null,null,null,null,null,null,null,null,null,null,null,null,null,null,null,null,null,null,null,null,null,null,null,null,null,null,null,null,null,null,null,null,null,null,null,null,null,null,null,null,null,null,null,null,null,"","","","","","","","","","",""]
[null,null,null,null,null,null,null,null,null,null,null,null,null,null,null,null,null,null,null,null,null,"",null,null,"","",null,null,null,null,null,null,null,null,null,null,null,null,null,null,null,null,null,null,null,null,null,null,null,null,null,null,null,null,null,null,null,null,null,null,null,null,null,null,null,null,null,null,null,null,null,null,null,null,null,null,null,null,null,null,null,null,null,null,null,null,null,null,null,null,null,null,null,null,null,null,null,null,null,null,null,null,null,null,null,null,null,null,null,null,null,null,null,null,null,null,null,null,null,null,null,null,null,null,null,null,null,null,null,null,null,null,null,null,null,null,null,null,null,null,null,null,null,null,null,null,null,null,null,null,null,null,null,null,null,null,null,null,null,null,null,null,null,null,null,null,null,null,null,null,null,null,null,null,null,null,null,null,null,null,null,null,null,null,null,null,null,null,null,null,null,null,null,null,"","","","","","","","","","",""]
[null,null,null,null,null,null,null,null,null,null,null,null,null,null,null,null,null,null,null,null,null,"",null,null,"","",null,null,null,null,null,null,null,null,null,null,null,null,null,null,null,null,null,null,null,null,null,null,null,null,null,null,null,null,null,null,null,null,null,null,null,null,null,null,null,null,null,null,null,null,null,null,null,null,null,null,null,null,null,null,null,null,null,null,null,null,null,null,null,null,null,null,null,null,null,null,null,null,null,null,null,null,null,null,null,null,null,null,null,null,null,null,null,null,null,null,null,null,null,null,null,null,null,null,null,null,null,null,null,null,null,null,null,null,null,null,null,null,null,null,null,null,null,null,null,null,null,null,null,null,null,null,null,null,null,null,null,null,null,null,null,null,null,null,null,null,null,null,null,null,null,null,null,null,null,null,null,null,null,null,null,null,null,null,null,null,null,null,null,null,null,null,null,null,"","","","","","","","","","",""]
[null,null,null,null,null,null,null,null,null,null,null,null,null,null,null,null,null,null,null,null,null,"",null,null,"","",null,null,null,null,null,null,null,null,null,null,null,null,null,null,null,null,null,null,null,null,null,null,null,null,null,null,null,null,null,null,null,null,null,null,null,null,null,null,null,null,null,null,null,null,null,null,null,null,null,null,null,null,null,null,null,null,null,null,null,null,null,null,null,null,null,null,null,null,null,null,null,null,null,null,null,null,null,null,null,null,null,null,null,null,null,null,null,null,null,null,null,null,null,null,null,null,null,null,null,null,null,null,null,null,null,null,null,null,null,null,null,null,null,null,null,null,null,null,null,null,null,null,null,null,null,null,null,null,null,null,null,null,null,null,null,null,null,null,null,null,null,null,null,null,null,null,null,null,null,null,null,null,null,null,null,null,null,null,null,null,null,null,null,null,null,null,null,null,{"$f":"IF($B$4=\"\",\"\",IF(C118=\"\",\"\",$B$4))","v":""},{"$f":"IF(A118=\"\",\"\",IF(B118=\"\",\"\",B118))","v":""},{"$f":"IF($B$6=\"\",\"\",IF(C118=\"\",\"\",$B$6))","v":""},{"$f":"IF($B$7=\"\",\"\",IF(C118=\"\",\"\",$B$7))","v":""},{"$f":"IF($B$5=\"\",\"\",IF(C118=\"\",\"\",$B$5))","v":""},"","",{"$f":"IF(Y118=\"\",\"\",Y118)","v":""},{"$f":"IF(S118=\"\",\"\",S118)","v":""},{"$f":"IF(Z118=\"\",\"\",Z118)","v":""},{"$f":"IF($Z$164=\"\",\"\",IF(C118=\"\",\"\",$Z$164))","v":""}]
[null,null,null,null,null,null,null,null,null,null,null,null,null,null,null,null,null,null,null,null,null,"",null,null,"","",null,null,null,null,null,null,null,null,null,null,null,null,null,null,null,null,null,null,null,null,null,null,null,null,null,null,null,null,null,null,null,null,null,null,null,null,null,null,null,null,null,null,null,null,null,null,null,null,null,null,null,null,null,null,null,null,null,null,null,null,null,null,null,null,null,null,null,null,null,null,null,null,null,null,null,null,null,null,null,null,null,null,null,null,null,null,null,null,null,null,null,null,null,null,null,null,null,null,null,null,null,null,null,null,null,null,null,null,null,null,null,null,null,null,null,null,null,null,null,null,null,null,null,null,null,null,null,null,null,null,null,null,null,null,null,null,null,null,null,null,null,null,null,null,null,null,null,null,null,null,null,null,null,null,null,null,null,null,null,null,null,null,null,null,null,null,null,null,"","","","","","","","","","",""]
[null,null,null,null,null,null,null,null,null,null,null,null,null,null,null,null,null,null,null,null,null,"",null,null,"","",null,null,null,null,null,null,null,null,null,null,null,null,null,null,null,null,null,null,null,null,null,null,null,null,null,null,null,null,null,null,null,null,null,null,null,null,null,null,null,null,null,null,null,null,null,null,null,null,null,null,null,null,null,null,null,null,null,null,null,null,null,null,null,null,null,null,null,null,null,null,null,null,null,null,null,null,null,null,null,null,null,null,null,null,null,null,null,null,null,null,null,null,null,null,null,null,null,null,null,null,null,null,null,null,null,null,null,null,null,null,null,null,null,null,null,null,null,null,null,null,null,null,null,null,null,null,null,null,null,null,null,null,null,null,null,null,null,null,null,null,null,null,null,null,null,null,null,null,null,null,null,null,null,null,null,null,null,null,null,null,null,null,null,null,null,null,null,null,"","","","","","","","","","",""]
[null,null,null,null,null,null,null,null,null,null,null,null,null,null,null,null,null,null,null,null,null,"",null,null,"","",null,null,null,null,null,null,null,null,null,null,null,null,null,null,null,null,null,null,null,null,null,null,null,null,null,null,null,null,null,null,null,null,null,null,null,null,null,null,null,null,null,null,null,null,null,null,null,null,null,null,null,null,null,null,null,null,null,null,null,null,null,null,null,null,null,null,null,null,null,null,null,null,null,null,null,null,null,null,null,null,null,null,null,null,null,null,null,null,null,null,null,null,null,null,null,null,null,null,null,null,null,null,null,null,null,null,null,null,null,null,null,null,null,null,null,null,null,null,null,null,null,null,null,null,null,null,null,null,null,null,null,null,null,null,null,null,null,null,null,null,null,null,null,null,null,null,null,null,null,null,null,null,null,null,null,null,null,null,null,null,null,null,null,null,null,null,null,null,"","","","","","","","","","",""]
[null,null,null,null,null,null,null,null,null,null,null,null,null,null,null,null,null,null,null,null,null,"",null,null,"","",null,null,null,null,null,null,null,null,null,null,null,null,null,null,null,null,null,null,null,null,null,null,null,null,null,null,null,null,null,null,null,null,null,null,null,null,null,null,null,null,null,null,null,null,null,null,null,null,null,null,null,null,null,null,null,null,null,null,null,null,null,null,null,null,null,null,null,null,null,null,null,null,null,null,null,null,null,null,null,null,null,null,null,null,null,null,null,null,null,null,null,null,null,null,null,null,null,null,null,null,null,null,null,null,null,null,null,null,null,null,null,null,null,null,null,null,null,null,null,null,null,null,null,null,null,null,null,null,null,null,null,null,null,null,null,null,null,null,null,null,null,null,null,null,null,null,null,null,null,null,null,null,null,null,null,null,null,null,null,null,null,null,null,null,null,null,null,null,"","","","","","","","","","",""]
[null,null,null,null,null,null,null,null,null,null,null,null,null,null,null,null,null,null,null,null,null,"",null,null,"","",null,null,null,null,null,null,null,null,null,null,null,null,null,null,null,null,null,null,null,null,null,null,null,null,null,null,null,null,null,null,null,null,null,null,null,null,null,null,null,null,null,null,null,null,null,null,null,null,null,null,null,null,null,null,null,null,null,null,null,null,null,null,null,null,null,null,null,null,null,null,null,null,null,null,null,null,null,null,null,null,null,null,null,null,null,null,null,null,null,null,null,null,null,null,null,null,null,null,null,null,null,null,null,null,null,null,null,null,null,null,null,null,null,null,null,null,null,null,null,null,null,null,null,null,null,null,null,null,null,null,null,null,null,null,null,null,null,null,null,null,null,null,null,null,null,null,null,null,null,null,null,null,null,null,null,null,null,null,null,null,null,null,null,null,null,null,null,null,"","","","","","","","","","",""]
[null,null,null,null,null,null,null,null,null,null,null,null,null,null,null,null,null,null,null,null,null,"",null,null,"","",null,null,null,null,null,null,null,null,null,null,null,null,null,null,null,null,null,null,null,null,null,null,null,null,null,null,null,null,null,null,null,null,null,null,null,null,null,null,null,null,null,null,null,null,null,null,null,null,null,null,null,null,null,null,null,null,null,null,null,null,null,null,null,null,null,null,null,null,null,null,null,null,null,null,null,null,null,null,null,null,null,null,null,null,null,null,null,null,null,null,null,null,null,null,null,null,null,null,null,null,null,null,null,null,null,null,null,null,null,null,null,null,null,null,null,null,null,null,null,null,null,null,null,null,null,null,null,null,null,null,null,null,null,null,null,null,null,null,null,null,null,null,null,null,null,null,null,null,null,null,null,null,null,null,null,null,null,null,null,null,null,null,null,null,null,null,null,null,"","","","","","","","","","",""]
[null,null,null,null,null,null,null,null,null,null,null,null,null,null,null,null,null,null,null,null,null,"",null,null,"","",null,null,null,null,null,null,null,null,null,null,null,null,null,null,null,null,null,null,null,null,null,null,null,null,null,null,null,null,null,null,null,null,null,null,null,null,null,null,null,null,null,null,null,null,null,null,null,null,null,null,null,null,null,null,null,null,null,null,null,null,null,null,null,null,null,null,null,null,null,null,null,null,null,null,null,null,null,null,null,null,null,null,null,null,null,null,null,null,null,null,null,null,null,null,null,null,null,null,null,null,null,null,null,null,null,null,null,null,null,null,null,null,null,null,null,null,null,null,null,null,null,null,null,null,null,null,null,null,null,null,null,null,null,null,null,null,null,null,null,null,null,null,null,null,null,null,null,null,null,null,null,null,null,null,null,null,null,null,null,null,null,null,null,null,null,null,null,null,"","","","","","","","","","",""]
[null,null,null,null,null,null,null,null,null,null,null,null,null,null,null,null,null,null,null,null,null,"",null,null,"","",null,null,null,null,null,null,null,null,null,null,null,null,null,null,null,null,null,null,null,null,null,null,null,null,null,null,null,null,null,null,null,null,null,null,null,null,null,null,null,null,null,null,null,null,null,null,null,null,null,null,null,null,null,null,null,null,null,null,null,null,null,null,null,null,null,null,null,null,null,null,null,null,null,null,null,null,null,null,null,null,null,null,null,null,null,null,null,null,null,null,null,null,null,null,null,null,null,null,null,null,null,null,null,null,null,null,null,null,null,null,null,null,null,null,null,null,null,null,null,null,null,null,null,null,null,null,null,null,null,null,null,null,null,null,null,null,null,null,null,null,null,null,null,null,null,null,null,null,null,null,null,null,null,null,null,null,null,null,null,null,null,null,null,null,null,null,null,null,"","","","","","","","","","",""]
[null,null,null,null,null,null,null,null,null,null,null,null,null,null,null,null,null,null,null,null,null,"",null,null,"","",null,null,null,null,null,null,null,null,null,null,null,null,null,null,null,null,null,null,null,null,null,null,null,null,null,null,null,null,null,null,null,null,null,null,null,null,null,null,null,null,null,null,null,null,null,null,null,null,null,null,null,null,null,null,null,null,null,null,null,null,null,null,null,null,null,null,null,null,null,null,null,null,null,null,null,null,null,null,null,null,null,null,null,null,null,null,null,null,null,null,null,null,null,null,null,null,null,null,null,null,null,null,null,null,null,null,null,null,null,null,null,null,null,null,null,null,null,null,null,null,null,null,null,null,null,null,null,null,null,null,null,null,null,null,null,null,null,null,null,null,null,null,null,null,null,null,null,null,null,null,null,null,null,null,null,null,null,null,null,null,null,null,null,null,null,null,null,null,"","","","","","","","","","",""]
[null,null,null,null,null,null,null,null,null,null,null,null,null,null,null,null,null,null,null,null,null,"",null,null,"","",null,null,null,null,null,null,null,null,null,null,null,null,null,null,null,null,null,null,null,null,null,null,null,null,null,null,null,null,null,null,null,null,null,null,null,null,null,null,null,null,null,null,null,null,null,null,null,null,null,null,null,null,null,null,null,null,null,null,null,null,null,null,null,null,null,null,null,null,null,null,null,null,null,null,null,null,null,null,null,null,null,null,null,null,null,null,null,null,null,null,null,null,null,null,null,null,null,null,null,null,null,null,null,null,null,null,null,null,null,null,null,null,null,null,null,null,null,null,null,null,null,null,null,null,null,null,null,null,null,null,null,null,null,null,null,null,null,null,null,null,null,null,null,null,null,null,null,null,null,null,null,null,null,null,null,null,null,null,null,null,null,null,null,null,null,null,null,null,"","","","","","","","","","",""]
[null,null,null,null,null,null,null,null,null,null,null,null,null,null,null,null,null,null,null,null,null,"",null,null,"","",null,null,null,null,null,null,null,null,null,null,null,null,null,null,null,null,null,null,null,null,null,null,null,null,null,null,null,null,null,null,null,null,null,null,null,null,null,null,null,null,null,null,null,null,null,null,null,null,null,null,null,null,null,null,null,null,null,null,null,null,null,null,null,null,null,null,null,null,null,null,null,null,null,null,null,null,null,null,null,null,null,null,null,null,null,null,null,null,null,null,null,null,null,null,null,null,null,null,null,null,null,null,null,null,null,null,null,null,null,null,null,null,null,null,null,null,null,null,null,null,null,null,null,null,null,null,null,null,null,null,null,null,null,null,null,null,null,null,null,null,null,null,null,null,null,null,null,null,null,null,null,null,null,null,null,null,null,null,null,null,null,null,null,null,null,null,null,null,"","","","","","","","","","",""]
[null,null,null,null,null,null,null,null,null,null,null,null,null,null,null,null,null,null,null,null,null,"",null,null,"","",null,null,null,null,null,null,null,null,null,null,null,null,null,null,null,null,null,null,null,null,null,null,null,null,null,null,null,null,null,null,null,null,null,null,null,null,null,null,null,null,null,null,null,null,null,null,null,null,null,null,null,null,null,null,null,null,null,null,null,null,null,null,null,null,null,null,null,null,null,null,null,null,null,null,null,null,null,null,null,null,null,null,null,null,null,null,null,null,null,null,null,null,null,null,null,null,null,null,null,null,null,null,null,null,null,null,null,null,null,null,null,null,null,null,null,null,null,null,null,null,null,null,null,null,null,null,null,null,null,null,null,null,null,null,null,null,null,null,null,null,null,null,null,null,null,null,null,null,null,null,null,null,null,null,null,null,null,null,null,null,null,null,null,null,null,null,null,null,"","","","","","","","","","",""]
[null,null,null,null,null,null,null,null,null,null,null,null,null,null,null,null,null,null,null,null,null,"",null,null,"","",null,null,null,null,null,null,null,null,null,null,null,null,null,null,null,null,null,null,null,null,null,null,null,null,null,null,null,null,null,null,null,null,null,null,null,null,null,null,null,null,null,null,null,null,null,null,null,null,null,null,null,null,null,null,null,null,null,null,null,null,null,null,null,null,null,null,null,null,null,null,null,null,null,null,null,null,null,null,null,null,null,null,null,null,null,null,null,null,null,null,null,null,null,null,null,null,null,null,null,null,null,null,null,null,null,null,null,null,null,null,null,null,null,null,null,null,null,null,null,null,null,null,null,null,null,null,null,null,null,null,null,null,null,null,null,null,null,null,null,null,null,null,{"$f":"A131","v":0},{"$f":"B131","v":0},{"$f":"C131","v":0},null,null,null,null,null,null,null,null,null,null,null,null,{"$f":"O131","v":0},null,null,null,{"$f":"S131","v":0},null,null,{"$f":"V131","v":""},{"$f":"Y131","v":""},{"$f":"Z131","v":""},null,{"$f":"IF($B$4=\"\",\"\",IF(C131=\"\",\"\",$B$4))","v":""},{"$f":"IF(A131=\"\",\"\",IF(B131=\"\",\"\",B131))","v":""},{"$f":"IF($B$6=\"\",\"\",IF(C131=\"\",\"\",$B$6))","v":""},{"$f":"IF($B$7=\"\",\"\",IF(C131=\"\",\"\",$B$7))","v":""},{"$f":"IF($B$5=\"\",\"\",IF(C131=\"\",\"\",$B$5))","v":""},"","",{"$f":"IF(Y131=\"\",\"\",Y131)","v":""},{"$f":"IF(S131=\"\",\"\",S131)","v":""},{"$f":"IF(Z131=\"\",\"\",Z131)","v":""},{"$f":"IF($Z$164=\"\",\"\",IF(C131=\"\",\"\",$Z$164))","v":""}]
[null,null,null,null,null,null,null,null,null,null,null,null,null,null,null,null,null,null,null,null,null,"",null,null,"","",null,null,null,null,null,null,null,null,null,null,null,null,null,null,null,null,null,null,null,null,null,null,null,null,null,null,null,null,null,null,null,null,null,null,null,null,null,null,null,null,null,null,null,null,null,null,null,null,null,null,null,null,null,null,null,null,null,null,null,null,null,null,null,null,null,null,null,null,null,null,null,null,null,null,null,null,null,null,null,null,null,null,null,null,null,null,null,null,null,null,null,null,null,null,null,null,null,null,null,null,null,null,null,null,null,null,null,null,null,null,null,null,null,null,null,null,null,null,null,null,null,null,null,null,null,null,null,null,null,null,null,null,null,null,null,null,null,null,null,null,null,null,0,0,0,null,null,null,null,null,null,null,null,null,null,null,null,0,null,null,null,0,null,null,"","","",null,"","","","","","","","","","",""]
[null,null,null,null,null,null,null,null,null,null,null,null,null,null,null,null,null,null,null,null,null,"",null,null,"","",null,null,null,null,null,null,null,null,null,null,null,null,null,null,null,null,null,null,null,null,null,null,null,null,null,null,null,null,null,null,null,null,null,null,null,null,null,null,null,null,null,null,null,null,null,null,null,null,null,null,null,null,null,null,null,null,null,null,null,null,null,null,null,null,null,null,null,null,null,null,null,null,null,null,null,null,null,null,null,null,null,null,null,null,null,null,null,null,null,null,null,null,null,null,null,null,null,null,null,null,null,null,null,null,null,null,null,null,null,null,null,null,null,null,null,null,null,null,null,null,null,null,null,null,null,null,null,null,null,null,null,null,null,null,null,null,null,null,null,null,null,null,0,0,0,null,null,null,null,null,null,null,null,null,null,null,null,0,null,null,null,0,null,null,"","","",null,"","","","","","","","","","",""]
[null,null,null,null,null,null,null,null,null,null,null,null,null,null,null,null,null,null,null,null,null,"",null,null,"","",null,null,null,null,null,null,null,null,null,null,null,null,null,null,null,null,null,null,null,null,null,null,null,null,null,null,null,null,null,null,null,null,null,null,null,null,null,null,null,null,null,null,null,null,null,null,null,null,null,null,null,null,null,null,null,null,null,null,null,null,null,null,null,null,null,null,null,null,null,null,null,null,null,null,null,null,null,null,null,null,null,null,null,null,null,null,null,null,null,null,null,null,null,null,null,null,null,null,null,null,null,null,null,null,null,null,null,null,null,null,null,null,null,null,null,null,null,null,null,null,null,null,null,null,null,null,null,null,null,null,null,null,null,null,null,null,null,null,null,null,null,null,0,0,0,null,null,null,null,null,null,null,null,null,null,null,null,0,null,null,null,0,null,null,"","","",null,"","","","","","","","","","",""]
[null,null,null,null,null,null,null,null,null,null,null,null,null,null,null,null,null,null,null,null,null,"",null,null,"","",null,null,null,null,null,null,null,null,null,null,null,null,null,null,null,null,null,null,null,null,null,null,null,null,null,null,null,null,null,null,null,null,null,null,null,null,null,null,null,null,null,null,null,null,null,null,null,null,null,null,null,null,null,null,null,null,null,null,null,null,null,null,null,null,null,null,null,null,null,null,null,null,null,null,null,null,null,null,null,null,null,null,null,null,null,null,null,null,null,null,null,null,null,null,null,null,null,null,null,null,null,null,null,null,null,null,null,null,null,null,null,null,null,null,null,null,null,null,null,null,null,null,null,null,null,null,null,null,null,null,null,null,null,null,null,null,null,null,null,null,null,null,0,0,0,null,null,null,null,null,null,null,null,null,null,null,null,0,null,null,null,0,null,null,"","","",null,"","","","","","","","","","",""]
[null,null,null,null,null,null,null,null,null,null,null,null,null,null,null,null,null,null,null,null,null,"",null,null,"","",null,null,null,null,null,null,null,null,null,null,null,null,null,null,null,null,null,null,null,null,null,null,null,null,null,null,null,null,null,null,null,null,null,null,null,null,null,null,null,null,null,null,null,null,null,null,null,null,null,null,null,null,null,null,null,null,null,null,null,null,null,null,null,null,null,null,null,null,null,null,null,null,null,null,null,null,null,null,null,null,null,null,null,null,null,null,null,null,null,null,null,null,null,null,null,null,null,null,null,null,null,null,null,null,null,null,null,null,null,null,null,null,null,null,null,null,null,null,null,null,null,null,null,null,null,null,null,null,null,null,null,null,null,null,null,null,null,null,null,null,null,null,0,0,0,null,null,null,null,null,null,null,null,null,null,null,null,0,null,null,null,0,null,null,"","","",null,"","","","","","","","","","",""]
[null,null,null,null,null,null,null,null,null,null,null,null,null,null,null,null,null,null,null,null,null,"",null,null,"","",null,null,null,null,null,null,null,null,null,null,null,null,null,null,null,null,null,null,null,null,null,null,null,null,null,null,null,null,null,null,null,null,null,null,null,null,null,null,null,null,null,null,null,null,null,null,null,null,null,null,null,null,null,null,null,null,null,null,null,null,null,null,null,null,null,null,null,null,null,null,null,null,null,null,null,null,null,null,null,null,null,null,null,null,null,null,null,null,null,null,null,null,null,null,null,null,null,null,null,null,null,null,null,null,null,null,null,null,null,null,null,null,null,null,null,null,null,null,null,null,null,null,null,null,null,null,null,null,null,null,null,null,null,null,null,null,null,null,null,null,null,null,0,0,0,null,null,null,null,null,null,null,null,null,null,null,null,0,null,null,null,0,null,null,"","","",null,"","","","","","","","","","",""]
[null,null,null,null,null,null,null,null,null,null,null,null,null,null,null,null,null,null,null,null,null,"",null,null,"","",null,null,null,null,null,null,null,null,null,null,null,null,null,null,null,null,null,null,null,null,null,null,null,null,null,null,null,null,null,null,null,null,null,null,null,null,null,null,null,null,null,null,null,null,null,null,null,null,null,null,null,null,null,null,null,null,null,null,null,null,null,null,null,null,null,null,null,null,null,null,null,null,null,null,null,null,null,null,null,null,null,null,null,null,null,null,null,null,null,null,null,null,null,null,null,null,null,null,null,null,null,null,null,null,null,null,null,null,null,null,null,null,null,null,null,null,null,null,null,null,null,null,null,null,null,null,null,null,null,null,null,null,null,null,null,null,null,null,null,null,null,null,0,0,0,null,null,null,null,null,null,null,null,null,null,null,null,0,null,null,null,0,null,null,"","","",null,"","","","","","","","","","",""]
[null,null,null,null,null,null,null,null,null,null,null,null,null,null,null,null,null,null,null,null,null,"",null,null,"","",null,null,null,null,null,null,null,null,null,null,null,null,null,null,null,null,null,null,null,null,null,null,null,null,null,null,null,null,null,null,null,null,null,null,null,null,null,null,null,null,null,null,null,null,null,null,null,null,null,null,null,null,null,null,null,null,null,null,null,null,null,null,null,null,null,null,null,null,null,null,null,null,null,null,null,null,null,null,null,null,null,null,null,null,null,null,null,null,null,null,null,null,null,null,null,null,null,null,null,null,null,null,null,null,null,null,null,null,null,null,null,null,null,null,null,null,null,null,null,null,null,null,null,null,null,null,null,null,null,null,null,null,null,null,null,null,null,null,null,null,null,null,0,0,0,null,null,null,null,null,null,null,null,null,null,null,null,0,null,null,null,0,null,null,"","","",null,"","","","","",{"$f":"IF(C139=\"\",\"\",IF(O139=\"\",\"\",VLOOKUP(O139,MarketCode,2,FALSE)))","v":""},{"$f":"IF(C139=\"\",\"\",IF(S139=\"\",\"\",VLOOKUP(C139,ProduceList,2,FALSE)))","v":""},"","","",""]
[null,null,null,null,null,null,null,null,null,null,null,null,null,null,null,null,null,null,null,null,null,"",null,null,"","",null,null,null,null,null,null,null,null,null,null,null,null,null,null,null,null,null,null,null,null,null,null,null,null,null,null,null,null,null,null,null,null,null,null,null,null,null,null,null,null,null,null,null,null,null,null,null,null,null,null,null,null,null,null,null,null,null,null,null,null,null,null,null,null,null,null,null,null,null,null,null,null,null,null,null,null,null,null,null,null,null,null,null,null,null,null,null,null,null,null,null,null,null,null,null,null,null,null,null,null,null,null,null,null,null,null,null,null,null,null,null,null,null,null,null,null,null,null,null,null,null,null,null,null,null,null,null,null,null,null,null,null,null,null,null,null,null,null,null,null,null,null,0,0,0,null,null,null,null,null,null,null,null,null,null,null,null,0,null,null,null,0,null,null,"","","",null,"","","","","","","","","","",""]
[null,null,null,null,null,null,null,null,null,null,null,null,null,null,null,null,null,null,null,null,null,"",null,null,"","",null,null,null,null,null,null,null,null,null,null,null,null,null,null,null,null,null,null,null,null,null,null,null,null,null,null,null,null,null,null,null,null,null,null,null,null,null,null,null,null,null,null,null,null,null,null,null,null,null,null,null,null,null,null,null,null,null,null,null,null,null,null,null,null,null,null,null,null,null,null,null,null,null,null,null,null,null,null,null,null,null,null,null,null,null,null,null,null,null,null,null,null,null,null,null,null,null,null,null,null,null,null,null,null,null,null,null,null,null,null,null,null,null,null,null,null,null,null,null,null,null,null,null,null,null,null,null,null,null,null,null,null,null,null,null,null,null,null,null,null,null,null,0,0,0,null,null,null,null,null,null,null,null,null,null,null,null,0,null,null,null,0,null,null,"","","",null,"","","","","","","","","","",""]
[null,null,null,null,null,null,null,null,null,null,null,null,null,null,null,null,null,null,null,null,null,"",null,null,"","",null,null,null,null,null,null,null,null,null,null,null,null,null,null,null,null,null,null,null,null,null,null,null,null,null,null,null,null,null,null,null,null,null,null,null,null,null,null,null,null,null,null,null,null,null,null,null,null,null,null,null,null,null,null,null,null,null,null,null,null,null,null,null,null,null,null,null,null,null,null,null,null,null,null,null,null,null,null,null,null,null,null,null,null,null,null,null,null,null,null,null,null,null,null,null,null,null,null,null,null,null,null,null,null,null,null,null,null,null,null,null,null,null,null,null,null,null,null,null,null,null,null,null,null,null,null,null,null,null,null,null,null,null,null,null,null,null,null,null,null,null,null,{"$f":"A142","v":0},0,0,null,null,null,null,null,null,null,null,null,null,null,null,0,null,null,null,0,null,null,"","","",null,"","","","","","","","","","",""]
[null,null,null,null,null,null,null,null,null,null,null,null,null,null,null,null,null,null,null,null,null,{"$f":"IF(C143=\"\",\"\",VLOOKUP(C143,ProduceList,3,FALSE))","v":""},null,null,{"$f":"IF(C143=\"\",\"\",VLOOKUP(C143,ProduceList,4,FALSE))","v":""},"",null,null,null,null,null,null,null,null,null,null,null,null,null,null,null,null,null,null,null,null,null,null,null,null,null,null,null,null,null,null,null,null,null,null,null,null,null,null,null,null,null,null,null,null,null,null,null,null,null,null,null,null,null,null,null,null,null,null,null,null,null,null,null,null,null,null,null,null,null,null,null,null,null,null,null,null,null,null,null,null,null,null,null,null,null,null,null,null,null,null,null,null,null,null,null,null,null,null,null,null,null,null,null,null,null,null,null,null,null,null,null,null,null,null,null,null,null,null,null,null,null,null,null,null,null,null,null,null,null,null,null,null,null,null,null,null,null,null,null,null,null,null,0,0,0,null,null,null,null,null,null,null,null,null,null,null,null,0,null,null,null,0,null,null,"","","",null,"","","","","","","","","","",""]
[null,null,null,null,null,null,null,null,null,null,null,null,null,null,null,null,null,null,null,null,null,"",null,null,"","",null,null,null,null,null,null,null,null,null,null,null,null,null,null,null,null,null,null,null,null,null,null,null,null,null,null,null,null,null,null,null,null,null,null,null,null,null,null,null,null,null,null,null,null,null,null,null,null,null,null,null,null,null,null,null,null,null,null,null,null,null,null,null,null,null,null,null,null,null,null,null,null,null,null,null,null,null,null,null,null,null,null,null,null,null,null,null,null,null,null,null,null,null,null,null,null,null,null,null,null,null,null,null,null,null,null,null,null,null,null,null,null,null,null,null,null,null,null,null,null,null,null,null,null,null,null,null,null,null,null,null,null,null,null,null,null,null,null,null,null,null,null,null,null,null,null,null,null,null,null,null,null,null,null,null,null,null,null,null,null,null,null,null,null,null,null,null,null,{"$f":"IF($B$4=\"\",\"\",IF(C144=\"\",\"\",$B$4))","v":""},{"$f":"IF(A144=\"\",\"\",IF(B144=\"\",\"\",B144))","v":""},{"$f":"IF($B$6=\"\",\"\",IF(C144=\"\",\"\",$B$6))","v":""},{"$f":"IF($B$7=\"\",\"\",IF(C144=\"\",\"\",$B$7))","v":""},{"$f":"IF($B$5=\"\",\"\",IF(C144=\"\",\"\",$B$5))","v":""},"","",{"$f":"IF(Y144=\"\",\"\",Y144)","v":""},{"$f":"IF(S144=\"\",\"\",S144)","v":""},{"$f":"IF(Z144=\"\",\"\",Z144)","v":""},{"$f":"IF($Z$164=\"\",\"\",IF(C144=\"\",\"\",$Z$164))","v":""}]
[null,null,null,null,null,null,null,null,null,null,null,null,null,null,null,null,null,null,null,null,null,"",null,null,"","",null,null,null,null,null,null,null,null,null,null,null,null,null,null,null,null,null,null,null,null,null,null,null,null,null,null,null,null,null,null,null,null,null,null,null,null,null,null,null,null,null,null,null,null,null,null,null,null,null,null,null,null,null,null,null,null,null,null,null,null,null,null,null,null,null,null,null,null,null,null,null,null,null,null,null,null,null,null,null,null,null,null,null,null,null,null,null,null,null,null,null,null,null,null,null,null,null,null,null,null,null,null,null,null,null,null,null,null,null,null,null,null,null,null,null,null,null,null,null,null,null,null,null,null,null,null,null,null,null,null,null,null,null,null,null,null,null,null,null,null,null,null,null,null,null,null,null,null,null,null,null,null,null,null,null,null,null,null,null,null,null,null,null,null,null,null,null,null,"","","","","","","","","","",""]
[null,null,null,null,null,null,null,null,null,null,null,null,null,null,null,null,null,null,null,null,null,"",null,null,"","",null,null,null,null,null,null,null,null,null,null,null,null,null,null,null,null,null,null,null,null,null,null,null,null,null,null,null,null,null,null,null,null,null,null,null,null,null,null,null,null,null,null,null,null,null,null,null,null,null,null,null,null,null,null,null,null,null,null,null,null,null,null,null,null,null,null,null,null,null,null,null,null,null,null,null,null,null,null,null,null,null,null,null,null,null,null,null,null,null,null,null,null,null,null,null,null,null,null,null,null,null,null,null,null,null,null,null,null,null,null,null,null,null,null,null,null,null,null,null,null,null,null,null,null,null,null,null,null,null,null,null,null,null,null,null,null,null,null,null,null,null,null,null,null,null,null,null,null,null,null,null,null,null,null,null,null,null,null,null,null,null,null,null,null,null,null,null,null,"","","","","","","","","","",""]
[null,null,null,null,null,null,null,null,null,null,null,null,null,null,null,null,null,null,null,null,null,"",null,null,"","",null,null,null,null,null,null,null,null,null,null,null,null,null,null,null,null,null,null,null,null,null,null,null,null,null,null,null,null,null,null,null,null,null,null,null,null,null,null,null,null,null,null,null,null,null,null,null,null,null,null,null,null,null,null,null,null,null,null,null,null,null,null,null,null,null,null,null,null,null,null,null,null,null,null,null,null,null,null,null,null,null,null,null,null,null,null,null,null,null,null,null,null,null,null,null,null,null,null,null,null,null,null,null,null,null,null,null,null,null,null,null,null,null,null,null,null,null,null,null,null,null,null,null,null,null,null,null,null,null,null,null,null,null,null,null,null,null,null,null,null,null,null,null,null,null,null,null,null,null,null,null,null,null,null,null,null,null,null,null,null,null,null,null,null,null,null,null,null,"","","","","","","","","","",""]
[null,null,null,null,null,null,null,null,null,null,null,null,null,null,null,null,null,null,null,null,null,"",null,null,"","",null,null,null,null,null,null,null,null,null,null,null,null,null,null,null,null,null,null,null,null,null,null,null,null,null,null,null,null,null,null,null,null,null,null,null,null,null,null,null,null,null,null,null,null,null,null,null,null,null,null,null,null,null,null,null,null,null,null,null,null,null,null,null,null,null,null,null,null,null,null,null,null,null,null,null,null,null,null,null,null,null,null,null,null,null,null,null,null,null,null,null,null,null,null,null,null,null,null,null,null,null,null,null,null,null,null,null,null,null,null,null,null,null,null,null,null,null,null,null,null,null,null,null,null,null,null,null,null,null,null,null,null,null,null,null,null,null,null,null,null,null,null,null,null,null,null,null,null,null,null,null,null,null,null,null,null,null,null,null,null,null,null,null,null,null,null,null,null,"","","","","","","","","","",""]
[null,null,null,null,null,null,null,null,null,null,null,null,null,null,null,null,null,null,null,null,null,"",null,null,"","",null,null,null,null,null,null,null,null,null,null,null,null,null,null,null,null,null,null,null,null,null,null,null,null,null,null,null,null,null,null,null,null,null,null,null,null,null,null,null,null,null,null,null,null,null,null,null,null,null,null,null,null,null,null,null,null,null,null,null,null,null,null,null,null,null,null,null,null,null,null,null,null,null,null,null,null,null,null,null,null,null,null,null,null,null,null,null,null,null,null,null,null,null,null,null,null,null,null,null,null,null,null,null,null,null,null,null,null,null,null,null,null,null,null,null,null,null,null,null,null,null,null,null,null,null,null,null,null,null,null,null,null,null,null,null,null,null,null,null,null,null,null,null,null,null,null,null,null,null,null,null,null,null,null,null,null,null,null,null,null,null,null,null,null,null,null,null,null,"","","","","","","","","","",""]
[null,null,null,null,null,null,null,null,null,null,null,null,null,null,null,null,null,null,null,null,null,"",null,null,"","",null,null,null,null,null,null,null,null,null,null,null,null,null,null,null,null,null,null,null,null,null,null,null,null,null,null,null,null,null,null,null,null,null,null,null,null,null,null,null,null,null,null,null,null,null,null,null,null,null,null,null,null,null,null,null,null,null,null,null,null,null,null,null,null,null,null,null,null,null,null,null,null,null,null,null,null,null,null,null,null,null,null,null,null,null,null,null,null,null,null,null,null,null,null,null,null,null,null,null,null,null,null,null,null,null,null,null,null,null,null,null,null,null,null,null,null,null,null,null,null,null,null,null,null,null,null,null,null,null,null,null,null,null,null,null,null,null,null,null,null,null,null,null,null,null,null,null,null,null,null,null,null,null,null,null,null,null,null,null,null,null,null,null,null,null,null,null,null,"","","","","","","","","","",""]
[null,null,null,null,null,null,null,null,null,null,null,null,null,null,null,null,null,null,null,null,null,"",null,null,"","",null,null,null,null,null,null,null,null,null,null,null,null,null,null,null,null,null,null,null,null,null,null,null,null,null,null,null,null,null,null,null,null,null,null,null,null,null,null,null,null,null,null,null,null,null,null,null,null,null,null,null,null,null,null,null,null,null,null,null,null,null,null,null,null,null,null,null,null,null,null,null,null,null,null,null,null,null,null,null,null,null,null,null,null,null,null,null,null,null,null,null,null,null,null,null,null,null,null,null,null,null,null,null,null,null,null,null,null,null,null,null,null,null,null,null,null,null,null,null,null,null,null,null,null,null,null,null,null,null,null,null,null,null,null,null,null,null,null,null,null,null,null,null,null,null,null,null,null,null,null,null,null,null,null,null,null,null,null,null,null,null,null,null,null,null,null,null,null,"","","","","","","","","","",""]
[null,null,null,null,null,null,null,null,null,null,null,null,null,null,null,null,null,null,null,null,null,"",null,null,"",{"$f":"IF(C152=\"\",\"\",ROUND(S152*Y152,2))","v":""},null,null,null,null,null,null,null,null,null,null,null,null,null,null,null,null,null,null,null,null,null,null,null,null,null,null,null,null,null,null,null,null,null,null,null,null,null,null,null,null,null,null,null,null,null,null,null,null,null,null,null,null,null,null,null,null,null,null,null,null,null,null,null,null,null,null,null,null,null,null,null,null,null,null,null,null,null,null,null,null,null,null,null,null,null,null,null,null,null,null,null,null,null,null,null,null,null,null,null,null,null,null,null,null,null,null,null,null,null,null,null,null,null,null,null,null,null,null,null,null,null,null,null,null,null,null,null,null,null,null,null,null,null,null,null,null,null,null,null,null,null,null,null,null,null,null,null,null,null,null,null,null,null,null,null,null,null,null,null,null,null,null,null,null,null,null,null,null,"","","","","","","","","","",""]
[null,null,null,null,null,null,null,null,null,null,null,null,null,null,null,null,null,null,null,null,null,"",null,null,"","",null,null,null,null,null,null,null,null,null,null,null,null,null,null,null,null,null,null,null,null,null,null,null,null,null,null,null,null,null,null,null,null,null,null,null,null,null,null,null,null,null,null,null,null,null,null,null,null,null,null,null,null,null,null,null,null,null,null,null,null,null,null,null,null,null,null,null,null,null,null,null,null,null,null,null,null,null,null,null,null,null,null,null,null,null,null,null,null,null,null,null,null,null,null,null,null,null,null,null,null,null,null,null,null,null,null,null,null,null,null,null,null,null,null,null,null,null,null,null,null,null,null,null,null,null,null,null,null,null,null,null,null,null,null,null,null,null,null,null,null,null,null,null,null,null,null,null,null,null,null,null,null,null,null,null,null,null,null,null,null,null,null,null,null,null,null,null,null,"","","","","","","","","","",""]
[null,null,null,null,null,null,null,null,null,null,null,null,null,null,null,null,null,null,null,null,null,"",null,null,"","",null,null,null,null,null,null,null,null,null,null,null,null,null,null,null,null,null,null,null,null,null,null,null,null,null,null,null,null,null,null,null,null,null,null,null,null,null,null,null,null,null,null,null,null,null,null,null,null,null,null,null,null,null,null,null,null,null,null,null,null,null,null,null,null,null,null,null,null,null,null,null,null,null,null,null,null,null,null,null,null,null,null,null,null,null,null,null,null,null,null,null,null,null,null,null,null,null,null,null,null,null,null,null,null,null,null,null,null,null,null,null,null,null,null,null,null,null,null,null,null,null,null,null,null,null,null,null,null,null,null,null,null,null,null,null,null,null,null,null,null,null,null,null,null,null,null,null,null,null,null,null,null,null,null,null,null,null,null,null,null,null,null,null,null,null,null,null,null,"","","","","","","","","","",""]
[null,null,null,null,null,null,null,null,null,null,null,null,null,null,null,null,null,null,null,null,null,"",null,null,"","",null,null,null,null,null,null,null,null,null,null,null,null,null,null,null,null,null,null,null,null,null,null,null,null,null,null,null,null,null,null,null,null,null,null,null,null,null,null,null,null,null,null,null,null,null,null,null,null,null,null,null,null,null,null,null,null,null,null,null,null,null,null,null,null,null,null,null,null,null,null,null,null,null,null,null,null,null,null,null,null,null,null,null,null,null,null,null,null,null,null,null,null,null,null,null,null,null,null,null,null,null,null,null,null,null,null,null,null,null,null,null,null,null,null,null,null,null,null,null,null,null,null,null,null,null,null,null,null,null,null,null,null,null,null,null,null,null,null,null,null,null,null,null,null,null,null,null,null,null,null,null,null,null,null,null,null,null,null,null,null,null,null,null,null,null,null,null,null,"","","","","","","","","","",""]
[null,null,null,null,null,null,null,null,null,null,null,null,null,null,null,null,null,null,null,null,null,"",null,null,"","",null,null,null,null,null,null,null,null,null,null,null,null,null,null,null,null,null,null,null,null,null,null,null,null,null,null,null,null,null,null,null,null,null,null,null,null,null,null,null,null,null,null,null,null,null,null,null,null,null,null,null,null,null,null,null,null,null,null,null,null,null,null,null,null,null,null,null,null,null,null,null,null,null,null,null,null,null,null,null,null,null,null,null,null,null,null,null,null,null,null,null,null,null,null,null,null,null,null,null,null,null,null,null,null,null,null,null,null,null,null,null,null,null,null,null,null,null,null,null,null,null,null,null,null,null,null,null,null,null,null,null,null,null,null,null,null,null,null,null,null,null,null,null,null,null,null,null,null,null,null,null,null,null,null,null,null,null,null,null,null,null,null,null,null,null,null,null,null,"","","","","","","","","","",""]
[null,null,null,null,null,null,null,null,null,null,null,null,null,null,null,null,null,null,null,null,null,"",null,null,"","",null,null,null,null,null,null,null,null,null,null,null,null,null,null,null,null,null,null,null,null,null,null,null,null,null,null,null,null,null,null,null,null,null,null,null,null,null,null,null,null,null,null,null,null,null,null,null,null,null,null,null,null,null,null,null,null,null,null,null,null,null,null,null,null,null,null,null,null,null,null,null,null,null,null,null,null,null,null,null,null,null,null,null,null,null,null,null,null,null,null,null,null,null,null,null,null,null,null,null,null,null,null,null,null,null,null,null,null,null,null,null,null,null,null,null,null,null,null,null,null,null,null,null,null,null,null,null,null,null,null,null,null,null,null,null,null,null,null,null,null,null,null,null,null,null,null,null,null,null,null,null,null,null,null,null,null,null,null,null,null,null,null,null,null,null,null,null,null,"","","","","","","","","","",""]
[null,null,null,null,null,null,null,null,null,null,null,null,null,null,null,null,null,null,null,null,null,"",null,null,"","",null,null,null,null,null,null,null,null,null,null,null,null,null,null,null,null,null,null,null,null,null,null,null,null,null,null,null,null,null,null,null,null,null,null,null,null,null,null,null,null,null,null,null,null,null,null,null,null,null,null,null,null,null,null,null,null,null,null,null,null,null,null,null,null,null,null,null,null,null,null,null,null,null,null,null,null,null,null,null,null,null,null,null,null,null,null,null,null,null,null,null,null,null,null,null,null,null,null,null,null,null,null,null,null,null,null,null,null,null,null,null,null,null,null,null,null,null,null,null,null,null,null,null,null,null,null,null,null,null,null,null,null,null,null,null,null,null,null,null,null,null,null,null,null,null,null,null,null,null,null,null,null,null,null,null,null,null,null,null,null,null,null,null,null,null,null,null,null,"","","","","","","","","","",""]
[null,null,null,null,null,null,null,null,null,null,null,null,null,null,null,null,null,null,null,null,null,"",null,null,"","",null,null,null,null,null,null,null,null,null,null,null,null,null,null,null,null,null,null,null,null,null,null,null,null,null,null,null,null,null,null,null,null,null,null,null,null,null,null,null,null,null,null,null,null,null,null,null,null,null,null,null,null,null,null,null,null,null,null,null,null,null,null,null,null,null,null,null,null,null,null,null,null,null,null,null,null,null,null,null,null,null,null,null,null,null,null,null,null,null,null,null,null,null,null,null,null,null,null,null,null,null,null,null,null,null,null,null,null,null,null,null,null,null,null,null,null,null,null,null,null,null,null,null,null,null,null,null,null,null,null,null,null,null,null,null,null,null,null,null,null,null,null,null,null,null,null,null,null,null,null,null,null,null,null,null,null,null,null,null,null,null,null,null,null,null,null,null,null,"","","","","","","","","","",""]
[null,null,null,null,null,null,null,null,null,null,null,null,null,null,null,null,null,null,null,null,null,"",null,null,"","",null,null,null,null,null,null,null,null,null,null,null,null,null,null,null,null,null,null,null,null,null,null,null,null,null,null,null,null,null,null,null,null,null,null,null,null,null,null,null,null,null,null,null,null,null,null,null,null,null,null,null,null,null,null,null,null,null,null,null,null,null,null,null,null,null,null,null,null,null,null,null,null,null,null,null,null,null,null,null,null,null,null,null,null,null,null,null,null,null,null,null,null,null,null,null,null,null,null,null,null,null,null,null,null,null,null,null,null,null,null,null,null,null,null,null,null,null,null,null,null,null,null,null,null,null,null,null,null,null,null,null,null,null,null,null,null,null,null,null,null,null,null,null,null,null,null,null,null,null,null,null,null,null,null,null,null,null,null,null,null,null,null,null,null,null,null,null,null,"","","","","","","","","","",""]
[null,null,null,null,null,null,null,null,null,null,null,null,null,null,null,null,null,null,null,null,null,"",null,null,"","",null,null,null,null,null,null,null,null,null,null,null,null,null,null,null,null,null,null,null,null,null,null,null,null,null,null,null,null,null,null,null,null,null,null,null,null,null,null,null,null,null,null,null,null,null,null,null,null,null,null,null,null,null,null,null,null,null,null,null,null,null,null,null,null,null,null,null,null,null,null,null,null,null,null,null,null,null,null,null,null,null,null,null,null,null,null,null,null,null,null,null,null,null,null,null,null,null,null,null,null,null,null,null,null,null,null,null,null,null,null,null,null,null,null,null,null,null,null,null,null,null,null,null,null,null,null,null,null,null,null,null,null,null,null,null,null,null,null,null,null,null,null,null,null,null,null,null,null,null,null,null,null,null,null,null,null,null,null,null,null,null,null,null,null,null,null,null,null,"","","","","","","","","","",""]
[null,null,null,null,null,null,null,null,null,null,null,null,null,null,null,null,null,null,null,null,null,"",null,null,"","",null,null,null,null,null,null,null,null,null,null,null,null,null,null,null,null,null,null,null,null,null,null,null,null,null,null,null,null,null,null,null,null,null,null,null,null,null,null,null,null,null,null,null,null,null,null,null,null,null,null,null,null,null,null,null,null,null,null,null,null,null,null,null,null,null,null,null,null,null,null,null,null,null,null,null,null,null,null,null,null,null,null,null,null,null,null,null,null,null,null,null,null,null,null,null,null,null,null,null,null,null,null,null,null,null,null,null,null,null,null,null,null,null,null,null,null,null,null,null,null,null,null,null,null,null,null,null,null,null,null,null,null,null,null,null,null,null,null,null,null,null,null,{"$f":"A162","v":0},0,0,null,null,null,null,null,null,null,null,null,null,null,null,{"$f":"O162","v":0},null,null,null,{"$f":"S162","v":0},null,null,{"$f":"V162","v":""},{"$f":"Y162","v":""},{"$f":"Z162","v":""},null,{"$f":"IF($B$4=\"\",\"\",IF(C162=\"\",\"\",$B$4))","v":""},{"$f":"IF(A162=\"\",\"\",IF(B162=\"\",\"\",B162))","v":""},{"$f":"IF($B$6=\"\",\"\",IF(C162=\"\",\"\",$B$6))","v":""},{"$f":"IF($B$7=\"\",\"\",IF(C162=\"\",\"\",$B$7))","v":""},{"$f":"IF($B$5=\"\",\"\",IF(C162=\"\",\"\",$B$5))","v":""},"","",{"$f":"IF(Y162=\"\",\"\",Y162)","v":""},{"$f":"IF(S162=\"\",\"\",S162)","v":""},{"$f":"IF(Z162=\"\",\"\",Z162)","v":""},{"$f":"IF($Z$164=\"\",\"\",IF(C162=\"\",\"\",$Z$164))","v":""}]
[null,null,null,null,null,null,null,null,null,null,null,null,null,null,null,null,null,null,null,null,null,"",null,null,"","",null,null,null,null,null,null,null,null,null,null,null,null,null,null,null,null,null,null,null,null,null,null,null,null,null,null,null,null,null,null,null,null,null,null,null,null,null,null,null,null,null,null,null,null,null,null,null,null,null,null,null,null,null,null,null,null,null,null,null,null,null,null,null,null,null,null,null,null,null,null,null,null,null,null,null,null,null,null,null,null,null,null,null,null,null,null,null,null,null,null,null,null,null,null,null,null,null,null,null,null,null,null,null,null,null,null,null,null,null,null,null,null,null,null,null,null,null,null,null,null,null,null,null,null,null,null,null,null,null,null,null,null,null,null,null,null,null,null,null,null,null,null,0,0,0,null,null,null,null,null,null,null,null,null,null,null,null,{"$f":"O163","v":0},null,null,null,{"$f":"S163","v":0},null,null,{"$f":"V163","v":""},{"$f":"Y163","v":""},{"$f":"Z163","v":""},null,{"$f":"IF($B$4=\"\",\"\",IF(C163=\"\",\"\",$B$4))","v":""},{"$f":"IF(A163=\"\",\"\",IF(B163=\"\",\"\",B163))","v":""},{"$f":"IF($B$6=\"\",\"\",IF(C163=\"\",\"\",$B$6))","v":""},{"$f":"IF($B$7=\"\",\"\",IF(C163=\"\",\"\",$B$7))","v":""},{"$f":"IF($B$5=\"\",\"\",IF(C163=\"\",\"\",$B$5))","v":""},"","",{"$f":"IF(Y163=\"\",\"\",Y163)","v":""},{"$f":"IF(S163=\"\",\"\",S163)","v":""},{"$f":"IF(Z163=\"\",\"\",Z163)","v":""},{"$f":"IF($Z$164=\"\",\"\",IF(C163=\"\",\"\",$Z$164))","v":""}]
["EndOfRows",null,null,null,null,null,null,null,null,null,null,null,null,null,null,null,null,null,null,null,null,null,null,"Total $Value",null,{"$f":"SUBTOTAL(9,Z10:Z163)","v":0},null,null,null,null,null,null,null,null,null,null,null,null,null,null,null,null,null,null,null,null,null,null,null,null,null,null,null,null,null,null,null,null,null,null,null,null,null,null,null,null,null,null,null,null,null,null,null,null,null,null,null,null,null,null,null,null,null,null,null,null,null,null,null,null,null,null,null,null,null,null,null,null,null,null,null,null,null,null,null,null,null,null,null,null,null,null,null,null,null,null,null,null,null,null,null,null,null,null,null,null,null,null,null,null,null,null,null,null,null,null,null,null,null,null,null,null,null,null,null,null,null,null,null,null,null,null,null,null,null,null,null,null,null,null,null,null,null,null,null,null,null,null,null,null,null,null,null,null,null,null,null,null,null,null,null,null,null,null,null,null,null,null,null,null,{"$f":"X164","v":"Total $Value"},null,{"$f":"Z164","v":0}]
["Agricultural Produce Commission Act 1988, Section 14 & Regulations",null,null,null,"Method of Payment",null,null,null,null,null,null,null,null,null,null,"Amount ",null,null,null,null,null,null,null,"Amount Paid ",null,{"$f":"IF(S165=\"\",0,IF(S165=0,0,S165))","v":0},null,null,null,null,null,null,null,null,null,null,null,null,null,null,null,null,null,null,null,null,null,null,null,null,null,null,null,null,null,null,null,null,null,null,null,null,null,null,null,null,null,null,null,null,null,null,null,null,null,null,null,null,null,null,null,null,null,null,null,null,null,null,null,null,null,null,null,null,null,null,null,null,null,null,null,null,null,null,null,null,null,null,null,null,null,null,null,null,null,null,null,null,null,null,null,null,null,null,null,null,null,null,null,null,null,null,null,null,null,null,null,null,null,null,null,null,null,null,null,null,null,null,null,null,null,null,null,null,null,null,null,null,null,null,null,null,null,null,null,null,null,null,{"$f":"A165","v":"Agricultural Produce Commission Act 1988, Section 14 & Regulations"},null,{"$f":"E165","v":"Method of Payment"},null,null,null,null,null,null,{"$f":"IF(J165=\"\",\"\",J165)","v":""},null,null,null,null,null,{"$f":"P165","v":"Amount "},null,null,{"$f":"IF(S165=\"\",\"\",S165)","v":""},null,null,null,{"$f":"X165","v":"Amount Paid "},null,{"$f":"Z165","v":0},null,null,{"$f":"IF(A165=\"\",\"\",IF(B165=\"\",\"\",B165))","v":""},null,null,null,{"$f":"IF(C165=\"\",\"\",IF(O165=\"\",\"\",VLOOKUP(O165,MarketType,2,FALSE)))","v":""}]
[null,null,null,null,"Complete This Section if Paying By Credit Card",null,null,null,null,null,null,null,null,null,null,null,null,null,null,null,null,null,null,"Balance ",null,{"$f":"IF(Z164=0,0,IF(Z165=0,Z164,(Z164-Z165)))","v":0},null,null,null,null,null,null,null,null,null,null,null,null,null,null,null,null,null,null,null,null,null,null,null,null,null,null,null,null,null,null,null,null,null,null,null,null,null,null,null,null,null,null,null,null,null,null,null,null,null,null,null,null,null,null,null,null,null,null,null,null,null,null,null,null,null,null,null,null,null,null,null,null,null,null,null,null,null,null,null,null,null,null,null,null,null,null,null,null,null,null,null,null,null,null,null,null,null,null,null,null,null,null,null,null,null,null,null,null,null,null,null,null,null,null,null,null,null,null,null,null,null,null,null,null,null,null,null,null,null,null,null,null,null,null,null,null,null,null,null,null,null,null,null,null,null,{"$f":"E166","v":"Complete This Section if Paying By Credit Card"},null,null,null,null,null,null,null,null,null,null,null,null,null,null,null,null,null,null,null,{"$f":"X166","v":"Balance "},{"$f":"Z166","v":0}]
["A dealer who collects any charge under subregulation (2) must pay the charge so collected to the Commission not later than 14 days after the end of the month during which the charge was collected or within such longer period as the Commission allows.  Penalty: a fine of $2,000. A producer of horticultural produce who sells the produce to a person other than a dealer must pay any charge that relates to the produce to the Commission not later than 14 days after the end of the month during which the produce was sold or within such longer period as the Commission allows.",null,null,null,null,"Card Number",null,null,null,null,null,null,null,null,null,null,null,null,null,null,null,null,null,null,null,null,null,null,null,null,null,null,null,null,null,null,null,null,null,null,null,null,null,null,null,null,null,null,null,null,null,null,null,null,null,null,null,null,null,null,null,null,null,null,null,null,null,null,null,null,null,null,null,null,null,null,null,null,null,null,null,null,null,null,null,null,null,null,null,null,null,null,null,null,null,null,null,null,null,null,null,null,null,null,null,null,null,null,null,null,null,null,null,null,null,null,null,null,null,null,null,null,null,null,null,null,null,null,null,null,null,null,null,null,null,null,null,null,null,null,null,null,null,null,null,null,null,null,null,null,null,null,null,null,null,null,null,null,null,null,null,null,null,null,null,null,null,null,{"$f":"A167","v":"A dealer who collects any charge under subregulation (2) must pay the charge so collected to the Commission not later than 14 days after the end of the month during which the charge was collected or within such longer period as the Commission allows.  Penalty: a fine of $2,000. A producer of horticultural produce who sells the produce to a person other than a dealer must pay any charge that relates to the produce to the Commission not later than 14 days after the end of the month during which the produce was sold or within such longer period as the Commission allows."},null,null,{"$f":"F167","v":"Card Number"}]
[null,null,null,null,null,null,null,null,null,null,null,null,null,null,null,null,null,null,null,null,null,null,null,null,null,null,null,null,null,null,null,null,null,null,null,null,null,null,null,null,null,null,null,null,null,null,null,null,null,null,null,null,null,null,null,null,null,null,null,null,null,null,null,null,null,null,null,null,null,null,null,null,null,null,null,null,null,null,null,null,null,null,null,null,null,null,null,null,null,null,null,null,null,null,null,null,null,null,null,null,null,null,null,null,null,null,null,null,null,null,null,null,null,null,null,null,null,null,null,null,null,null,null,null,null,null,null,null,null,null,null,null,null,null,null,null,null,null,null,null,null,null,null,null,null,null,null,null,null,null,null,null,null,null,null,null,null,null,null,null,null,null,null,null,null,null,null,null,null,null,null,{"$f":"IF(F168=\"\",\"\",F168)","v":""},{"$f":"IF(G168=\"\",\"\",G168)","v":""},{"$f":"IF(H168=\"\",\"\",H168)","v":""},{"$f":"IF(I168=\"\",\"\",I168)","v":""},null,{"$f":"IF(K168=\"\",\"\",K168)","v":""},{"$f":"IF(L168=\"\",\"\",L168)","v":""},{"$f":"IF(M168=\"\",\"\",M168)","v":""},{"$f":"IF(N168=\"\",\"\",N168)","v":""},null,{"$f":"IF(P168=\"\",\"\",P168)","v":""},{"$f":"IF(Q168=\"\",\"\",Q168)","v":""},{"$f":"IF(R168=\"\",\"\",R168)","v":""},{"$f":"IF(S168=\"\",\"\",S168)","v":""},null,{"$f":"IF(U168=\"\",\"\",U168)","v":""},{"$f":"IF(V168=\"\",\"\",V168)","v":""},{"$f":"IF(W168=\"\",\"\",W168)","v":""},{"$f":"IF(X168=\"\",\"\",X168)","v":""}]
[null,null,null,null,null,"Card Holder's Name",null,null,null,null,null,null,null,null,null,null,null,null,null,null,"Card Expiry Date",null,null,null,null,null,null,null,null,null,null,null,null,null,null,null,null,null,null,null,null,null,null,null,null,null,null,null,null,null,null,null,null,null,null,null,null,null,null,null,null,null,null,null,null,null,null,null,null,null,null,null,null,null,null,null,null,null,null,null,null,null,null,null,null,null,null,null,null,null,null,null,null,null,null,null,null,null,null,null,null,null,null,null,null,null,null,null,null,null,null,null,null,null,null,null,null,null,null,null,null,null,null,null,null,null,null,null,null,null,null,null,null,null,null,null,null,null,null,null,null,null,null,null,null,null,null,null,null,null,null,null,null,null,null,null,null,null,null,null,null,null,null,null,null,null,null,null,null,null,null,{"$f":"F169","v":"Card Holder's Name"},null,null,null,null,null,null,null,null,null,null,null,null,null,null,{"$f":"U169","v":"Card Expiry Date"}]
[null,null,null,null,null,null,null,null,null,null,null,null,null,null,null,null,null,null,null,null,null,null,null,null,null,null,null,null,null,null,null,null,null,null,null,null,null,null,null,null,null,null,null,null,null,null,null,null,null,null,null,null,null,null,null,null,null,null,null,null,null,null,null,null,null,null,null,null,null,null,null,null,null,null,null,null,null,null,null,null,null,null,null,null,null,null,null,null,null,null,null,null,null,null,null,null,null,null,null,null,null,null,null,null,null,null,null,null,null,null,null,null,null,null,null,null,null,null,null,null,null,null,null,null,null,null,null,null,null,null,null,null,null,null,null,null,null,null,null,null,null,null,null,null,null,null,null,null,null,null,null,null,null,null,null,null,null,null,null,null,null,null,null,null,null,null,null,null,null,null,null,{"$f":"IF(F170=\"\",\"\",F170)","v":""},null,null,null,null,null,null,null,null,null,null,null,null,null,null,{"$f":"IF(U170=\"\",\"\",U170)","v":""}]
["I certify that this return is a true and accurate record of the produce bought and sold for the period indicated above. ",null,null,null,null,"Signature",null,null,null,null,null,null,null,null,null,null,null,"Contact Phone Number",null,null,null,null,null,null,null,null,null,null,null,null,null,null,null,null,null,null,null,null,null,null,null,null,null,null,null,null,null,null,null,null,null,null,null,null,null,null,null,null,null,null,null,null,null,null,null,null,null,null,null,null,null,null,null,null,null,null,null,null,null,null,null,null,null,null,null,null,null,null,null,null,null,null,null,null,null,null,null,null,null,null,null,null,null,null,null,null,null,null,null,null,null,null,null,null,null,null,null,null,null,null,null,null,null,null,null,null,null,null,null,null,null,null,null,null,null,null,null,null,null,null,null,null,null,null,null,null,null,null,null,null,null,null,null,null,null,null,null,null,null,null,null,null,null,null,null,null,null,null,{"$f":"A171","v":"I certify that this return is a true and accurate record of the produce bought and sold for the period indicated above. "},null,null,{"$f":"F171","v":"Signature"},null,null,null,null,null,null,null,null,null,null,null,{"$f":"R171","v":"Contact Phone Number"}]
[null,null,null,null,null,{"$f":"IF(B172=\"Signature\",\"\",\"Print and Sign on Hard Copy\")","v":"Print and Sign on Hard Copy"},null,null,null,null,null,null,null,null,null,null,null,null,null,null,null,null,null,null,null,null,null,null,null,null,null,null,null,null,null,null,null,null,null,null,null,null,null,null,null,null,null,null,null,null,null,null,null,null,null,null,null,null,null,null,null,null,null,null,null,null,null,null,null,null,null,null,null,null,null,null,null,null,null,null,null,null,null,null,null,null,null,null,null,null,null,null,null,null,null,null,null,null,null,null,null,null,null,null,null,null,null,null,null,null,null,null,null,null,null,null,null,null,null,null,null,null,null,null,null,null,null,null,null,null,null,null,null,null,null,null,null,null,null,null,null,null,null,null,null,null,null,null,null,null,null,null,null,null,null,null,null,null,null,null,null,null,null,null,null,null,null,null,{"$f":"A172","v":0},{"$f":"IF(B172=\"\",\"\",B172)","v":""},null,null,null,null,null,null,null,null,null,null,null,null,null,{"$f":"IF(R172=\"\",\"\",R172)","v":""}]
["Signature:"]

{"sheet":"APC Rates & Codes","index":2,"n_rows":265,"n_cols":14,"rows_kept":265,"cut":false,"hidden":false,"merged":[[0,1,0,4]]}
["APC Produce List & FFS Rates ","Effective From  01/09/2021 (Public Use)"]
[]
["Produce Type & Variety","APC Code","Unit of Measure","Rate","Produce Type",null,"Market Type","Market Code",null,"Payment Method",null,"Period Type",null,"Agreement"]
["AVOCADOS  -  ALL VARIETIES","APCAVO5","KG",0,"Avocados",null,"LOCAL","L",null,"Bank Card",null,"MONTHLY",null,"YES"]
["BANANA (CARNARVON) -  ALL VARIETIES","APCBAN6","KG",2.3E-2,"Banana",null,"INTERSTATE","I",null,"Master Card",null,"QUARTERLY"]
["CITRUS - EXPORT FRESH OR PROCESSING","APCCIT01","KG",3.5999999999999999E-3,"Citrus",null,"EXPORT","X",null,"VISA",null,"SEASONALLY"]
["GRAPEFRUIT  -  OTHER VARIETIES","APCGRA7","KG",5.8999999999999999E-3,"Citrus",null,null,null,null,"Direct Credit",null,"ANNUALLY"]
["GRAPEFRUIT  -  PROCESSING","APCGRA8","KG",1.09E-2,"Citrus",null,null,null,null,"Post",null,"OTHER"]
["GRAPEFRUIT  -  RED","APCGRA9","KG",5.8999999999999999E-3,"Citrus"]
["GRAPEFRUIT  -  RED KUNUNURRA","APCGRA10","KG",5.8999999999999999E-3,"Citrus"]
["GRAPEFRUIT  -  RUBY","APCGRA11","KG",5.8999999999999999E-3,"Citrus"]
["GRAPEFRUIT  -  SEEDLESS MARSH","APCGRA12","KG",5.8999999999999999E-3,"Citrus"]
["GRAPEFRUIT  -  WHITE","APCGRA13","KG",5.8999999999999999E-3,"Citrus"]
["LEMONS  -  PROCESSING","APCLEM8","KG",1.09E-2,"Citrus"]
["LEMONS  -  SEEDLESS","APCLEM7","KG",5.8999999999999999E-3,"Citrus"]
["LEMONS  - SEEDED","APCLEM9","KG",5.8999999999999999E-3,"Citrus"]
["LIMES - FINGER","APCLIM3","KG",5.8999999999999999E-3,"Citrus"]
["LIMES - OTHER VARIETIES","APCLIM1","KG",5.8999999999999999E-3,"Citrus"]
["LIMES - PROCESSING","APCLIM2","KG",1.09E-2,"Citrus"]
["MANDARINS  -  AFOURER","APCMAN16","KG",5.8999999999999999E-3,"Citrus"]
["MANDARINS  -  DAISY","APCMAN7","KG",5.8999999999999999E-3,"Citrus"]
["MANDARINS  -  ELLENDALE","APCMAN8","KG",5.8999999999999999E-3,"Citrus"]
["MANDARINS  -  EMPEROR","APCMAN9","KG",5.8999999999999999E-3,"Citrus"]
["MANDARINS  -  HICKSON","APCMAN10","KG",5.8999999999999999E-3,"Citrus"]
["MANDARINS  -  IMPERIAL","APCMAN11","KG",5.8999999999999999E-3,"Citrus"]
["MANDARINS  -  MURCOTT","APCMAN12","KG",5.8999999999999999E-3,"Citrus"]
["MANDARINS  -  MYSTIQUE","APCMAN13","KG",5.8999999999999999E-3,"Citrus"]
["MANDARINS  -  NULES","APCMAN14","KG",5.8999999999999999E-3,"Citrus"]
["MANDARINS  -  OTHER VARIETIES","APCMAN6","KG",5.8999999999999999E-3,"Citrus"]
["ORANGES  -  LATE NAVEL","APCORA7","KG",5.8999999999999999E-3,"Citrus"]
["ORANGES  -  OTHER VARIETIES","APCORA9","KG",5.8999999999999999E-3,"Citrus"]
["ORANGES  -  PROCESSING","APCORA10","KG",1.09E-2,"Citrus"]
["ORANGES -  EARLY NAVELS","APCORA13","KG",5.8999999999999999E-3,"Citrus"]
["ORANGES  - VALENCIA","APCORA11","KG",5.8999999999999999E-3,"Citrus"]
["ORANGES  - WASHINGTON NAVELS","APCORA8","KG",5.8999999999999999E-3,"Citrus"]
["ORANGES - CARA CARA","APCORA16","KG",5.8999999999999999E-3,"Citrus"]
["ORANGES - MIDNIGHT","APCORA14","KG",5.8999999999999999E-3,"Citrus"]
["ORANGES - NAVELINA","APCORA15","KG",5.8999999999999999E-3,"Citrus"]
["ORANGES - ROSY RED","APCORA17","KG",5.8999999999999999E-3,"Citrus"]
["OTHER CITRUS  -  ALL VARIETIES","APCOTH7","KG",5.8999999999999999E-3,"Citrus"]
["APPLES  -  FUJI (ALL STRAINS)","APCAPP7","KG",1.7000000000000001E-2,"Pome"]
["APPLES  -  GALA, ROYAL GALA, GALAXY","APCAPP8","KG",1.7000000000000001E-2,"Pome"]
["APPLES  -  GOLDEN DELICIOUS","APCAPP9","KG",1.7000000000000001E-2,"Pome"]
["APPLES  -  GRANNY SMITH","APCAPP10","KG",1.7000000000000001E-2,"Pome"]
["APPLES  -  HI EARLY","APCAPP11","KG",1.7000000000000001E-2,"Pome"]
["APPLES  -  LADY WILLIAMS","APCAPP12","KG",1.7000000000000001E-2,"Pome"]
["APPLES  -  OTHER VARIETIES","APCAPP13","KG",1.7000000000000001E-2,"Pome"]
["APPLES  -  PINK LADY","APCAPP14","KG",1.7000000000000001E-2,"Pome"]
["APPLES  -  PROCESSING","APCAPP15","KG",6.0000000000000001E-3,"Pome"]
["APPLES  - BRAVO","APCAPP24","KG",1.7000000000000001E-2,"Pome"]
["APPLES  - SUNDOWNER/ JOYA","APCAPP16","KG",1.7000000000000001E-2,"Pome"]
["APPLES - EARLY GOLD","APCAPP18","KG",1.7000000000000001E-2,"Pome"]
["APPLES - ENCHANTED","APCAPP23","KG",1.7000000000000001E-2,"Pome"]
["APPLES - ENVY","APCAPP30","KG",1.7000000000000001E-2,"Pome"]
["APPLES - EVE","APCAPP27","KG",1.7000000000000001E-2,"Pome"]
["APPLES - GINGER GOLD","APCAPP19","KG",1.7000000000000001E-2,"Pome"]
["APPLES - GREENSTAR","APCAPP21","KG",1.7000000000000001E-2,"Pome"]
["APPLES - JAZZ","APCAPP22","KG",1.7000000000000001E-2,"Pome"]
["APPLES - KANZI","APCAPP20","KG",1.7000000000000001E-2,"Pome"]
["APPLES - MODI","APCAPP29","KG",1.7000000000000001E-2,"Pome"]
["APPLES - RED DELICIOUS","APCAPP25","KG",1.7000000000000001E-2,"Pome"]
["APPLES - ROCKIT APPLES","APCAPP28","KG",1.7000000000000001E-2,"Pome"]
["APPLES - SMITTEN","APCAPP26","KG",1.7000000000000001E-2,"Pome"]
["NASHIS  -  ALL VARIETIES","APCNAS6","KG",1.7000000000000001E-2,"Pome"]
["PEARS  -  BARTLETT WILLIAMS","APCPEA7","KG",1.7000000000000001E-2,"Pome"]
["PEARS  -  BUERRE BOSC ","APCPEA8","KG",1.7000000000000001E-2,"Pome"]
["PEARS  -  CORRELLA","APCPEA9","KG",1.7000000000000001E-2,"Pome"]
["PEARS  -  GOLD RUSH","APCPEA10","KG",1.7000000000000001E-2,"Pome"]
["PEARS  -  JOSEPHINE ","APCPEA11","KG",1.7000000000000001E-2,"Pome"]
["PEARS  -  MCDONALD RED","APCPEA12","KG",1.7000000000000001E-2,"Pome"]
["PEARS  -  OTHER VARIETIES","APCPEA13","KG",1.7000000000000001E-2,"Pome"]
["PEARS  -  PACKHAM","APCPEA14","KG",1.7000000000000001E-2,"Pome"]
["PEARS  -  RED DUCHESS ","APCPEA15","KG",1.7000000000000001E-2,"Pome"]
["PEARS  -  RED SENSATION","APCPEA16","KG",1.7000000000000001E-2,"Pome"]
["PEARS  -  SOPHIES PRIDE","APCPEA17","KG",1.7000000000000001E-2,"Pome"]
["PEARS - PRECOSE","APCPEA20","KG",1.7000000000000001E-2,"Pome"]
["PEARS - PROCESSING","APCPEA18","KG",6.0000000000000001E-3,"Pome"]
["PORK - BACON","APCPOR2","KG",8.0000000000000002E-3,"Pork"]
["PORK - CHOPPER","APCPOR1","KG",8.0000000000000002E-3,"Pork"]
["PORK - NO TYPE SPECIFIED","APCPOR4","KG",8.0000000000000002E-3,"Pork"]
["PORK - PORKER","APCPOR3","KG",8.0000000000000002E-3,"Pork"]
["POTATOES  -  PROCESSING EXPORT","APCPOT8","TONNE",8,"Potatoes"]
["POTATOES  -  PROCESSING LOCAL","APCPOT9","TONNE",8,"Potatoes"]
["POTATOES  -  SEED EXPORT","APCPOT10","TONNE",8,"Potatoes"]
["POTATOES  -  SEED LOCAL","APCPOT11","TONNE",8,"Potatoes"]
["POTATOES  -  WARE EXPORT","APCPOT12","TONNE",8,"Potatoes"]
["POTATOES  -  WARE LOCAL ","APCPOT13","TONNE",10.5,"Potatoes"]
["APRICOTS  -  BLENHEM","APCAPR6","KG",1.4999999999999999E-2,"Stone"]
["APRICOTS  -  BLENRIL","APCAPR7","KG",1.4999999999999999E-2,"Stone"]
["APRICOTS  -  BULLIDA","APCAPR8","KG",1.4999999999999999E-2,"Stone"]
["APRICOTS  -  CASTLETON","APCAPR9","KG",1.4999999999999999E-2,"Stone"]
["APRICOTS  -  GOLDEN SWEET","APCAPR10","KG",1.4999999999999999E-2,"Stone"]
["APRICOTS  -  KINROSS","APCAPR11","KG",1.4999999999999999E-2,"Stone"]
["APRICOTS  -  ORANGE RED","APCAPR12","KG",1.4999999999999999E-2,"Stone"]
["APRICOTS  -  OTHER VARIETIES","APCAPR13","KG",1.4999999999999999E-2,"Stone"]
["APRICOTS  -  ROYAL","APCAPR15","KG",1.4999999999999999E-2,"Stone"]
["APRICOTS  -  SOLAR FLAME","APCAPR16","KG",1.4999999999999999E-2,"Stone"]
["APRICOTS  -  TREVATT","APCAPR17","KG",1.4999999999999999E-2,"Stone"]
["APRICOTS - PROCESSING","APCAPR19","KG",6.0000000000000001E-3,"Stone"]
["CHERRIES  -  ALL VARIETIES","APCCHE5","KG",1.4999999999999999E-2,"Stone"]
["CHERRIES - PROCESSING","APCCHE6","KG",6.0000000000000001E-3,"Stone"]
["LOQUATS  -  ALL VARIETIES","APCLOQ5","KG",1.4999999999999999E-2,"Stone"]
["NECTARINES  -   GRAND PEARL","APCNEC5","KG",1.4999999999999999E-2,"Stone"]
["NECTARINES  -  ARCTIC SNOW","APCNEC6","KG",1.4999999999999999E-2,"Stone"]
["NECTARINES  -  ARCTIC STAR","APCNEC7","KG",1.4999999999999999E-2,"Stone"]
["NECTARINES  -  AUGUST RED","APCNEC8","KG",1.4999999999999999E-2,"Stone"]
["NECTARINES  -  DIAMOND BRIGHT","APCNEC9","KG",1.4999999999999999E-2,"Stone"]
["NECTARINES  -  FANTASIA","APCNEC10","KG",1.4999999999999999E-2,"Stone"]
["NECTARINES  -  FIRE KISS","APCNEC11","KG",1.4999999999999999E-2,"Stone"]
["NECTARINES  -  HONEY BLAZE","APCNEC12","KG",1.4999999999999999E-2,"Stone"]
["NECTARINES  -  MAYGLO","APCNEC13","KG",1.4999999999999999E-2,"Stone"]
["NECTARINES  -  OTHER VARIETIES","APCNEC14","KG",1.4999999999999999E-2,"Stone"]
["NECTARINES  -  RED GOLD","APCNEC15","KG",1.4999999999999999E-2,"Stone"]
["NECTARINES  -  ROSE DIAMOND","APCNEC16","KG",1.4999999999999999E-2,"Stone"]
["NECTARINES  -  RUBY PEARL","APCNEC17","KG",1.4999999999999999E-2,"Stone"]
["NECTARINES  -  SPRING BRIGHT","APCNEC18","KG",1.4999999999999999E-2,"Stone"]
["NECTARINES  -  SUNRAYLER","APCNEC19","KG",1.4999999999999999E-2,"Stone"]
["NECTARINES  -  SUNSNO","APCNEC20","KG",1.4999999999999999E-2,"Stone"]
["NECTARINES  -  SUNWRIGHT","APCNEC21","KG",1.4999999999999999E-2,"Stone"]
["NECTARINES  -  VENUS","APCNEC22","KG",1.4999999999999999E-2,"Stone"]
["NECTARINES - PROCESSING","APCNEC23","KG",6.0000000000000001E-3,"Stone"]
["PEACHES  -  CROWN PRINCE","APCPEC6","KG",1.4999999999999999E-2,"Stone"]
["PEACHES  -  EARLI GRANDE ","APCPEC7","KG",1.4999999999999999E-2,"Stone"]
["PEACHES  -  FAIRTIME ","APCPEC8","KG",1.4999999999999999E-2,"Stone"]
["PEACHES  -  FLORDA GOLD","APCPEC9","KG",1.4999999999999999E-2,"Stone"]
["PEACHES  -  O'HENRY","APCPEC10","KG",1.4999999999999999E-2,"Stone"]
["PEACHES  -  OTHER VARIETIES","APCPEC11","KG",1.4999999999999999E-2,"Stone"]
["PEACHES  -  RICH LADY","APCPEC13","KG",1.4999999999999999E-2,"Stone"]
["PEACHES  -  RYAN SUN  ","APCPEC14","KG",1.4999999999999999E-2,"Stone"]
["PEACHES  -  SHERMAN GOLD ","APCPEC15","KG",1.4999999999999999E-2,"Stone"]
["PEACHES  -  SUMMER FIRE  ","APCPEC16","KG",1.4999999999999999E-2,"Stone"]
["PEACHES  -  SUMMER SET ","APCPEC17","KG",1.4999999999999999E-2,"Stone"]
["PEACHES  -  TATURA 204","APCPEC18","KG",1.4999999999999999E-2,"Stone"]
["PEACHES  -  UF GOLD","APCPEC19","KG",1.4999999999999999E-2,"Stone"]
["PEACHES  -  WHITE LADY ","APCPEC20","KG",1.4999999999999999E-2,"Stone"]
["PEACHES  -  ZEE LADY","APCPEC21","KG",1.4999999999999999E-2,"Stone"]
["PEACHES - PROCESSING","APCPEA22","KG",6.0000000000000001E-3,"Stone"]
["PLUMS  -  AMBER JEWEL ","APCPLU6","KG",1.4999999999999999E-2,"Stone"]
["PLUMS  -  ANGELENO","APCPLU7","KG",1.4999999999999999E-2,"Stone"]
["PLUMS  -  AUTUMN GIANTS ","APCPLU8","KG",1.4999999999999999E-2,"Stone"]
["PLUMS  -  BLACK AMBER ","APCPLU9","KG",1.4999999999999999E-2,"Stone"]
["PLUMS  -  DONSWORTH","APCPLU10","KG",1.4999999999999999E-2,"Stone"]
["PLUMS  -  EBONY SUN  ","APCPLU11","KG",1.4999999999999999E-2,"Stone"]
["PLUMS  -  FORTUNE  ","APCPLU12","KG",1.4999999999999999E-2,"Stone"]
["PLUMS  -  FRIAR","APCPLU13","KG",1.4999999999999999E-2,"Stone"]
["PLUMS  -  KELSEY ","APCPLU14","KG",1.4999999999999999E-2,"Stone"]
["PLUMS  -  LARODA ","APCPLU15","KG",1.4999999999999999E-2,"Stone"]
["PLUMS  -  MARIPOSA  ","APCPLU17","KG",1.4999999999999999E-2,"Stone"]
["PLUMS  -  NARRABEEN ","APCPLU18","KG",1.4999999999999999E-2,"Stone"]
["PLUMS  -  OCTOBER SUN ","APCPLU19","KG",1.4999999999999999E-2,"Stone"]
["PLUMS  -  OTHER VARIETIES","APCPLU20","KG",1.4999999999999999E-2,"Stone"]
["PLUMS  -  PIZZAS ","APCPLU21","KG",1.4999999999999999E-2,"Stone"]
["PLUMS  -  PURPLE MAJESTY ","APCPLU23","KG",1.4999999999999999E-2,"Stone"]
["PLUMS  -  QUEEN ROSA ","APCPLU24","KG",1.4999999999999999E-2,"Stone"]
["PLUMS  -  RED BEAUT","APCPLU25","KG",1.4999999999999999E-2,"Stone"]
["PLUMS  -  ROSE ZEE","APCPLU26","KG",1.4999999999999999E-2,"Stone"]
["PLUMS  -  RUBY BLOOD","APCPLU27","KG",1.4999999999999999E-2,"Stone"]
["PLUMS  -  SANTA ROSA","APCPLU28","KG",1.4999999999999999E-2,"Stone"]
["PLUMS  -  SIMKA","APCPLU29","KG",1.4999999999999999E-2,"Stone"]
["PLUMS  -  STIRLING","APCPLU30","KG",1.4999999999999999E-2,"Stone"]
["PLUMS  -  TEGAN BLUE","APCPLU31","KG",1.4999999999999999E-2,"Stone"]
["PLUMS - PROCESSING","APCPLU32","KG",6.0000000000000001E-3,"Stone"]
["PLUOTS - ALL VARIETIES","APCPLT1","KG",1.4999999999999999E-2,"Stone"]
["STRAWBERRIES  -  ALL VARIETIES AND TYPES ","APCSTR6","KG",0.01,"Strawberries"]
["TABLE GRAPES  -  CRIMSON","APCTAB5","KG",7.0000000000000001E-3,"Table Grapes"]
["TABLE GRAPES  -  DAWN","APCTAB6","KG",7.0000000000000001E-3,"Table Grapes"]
["TABLE GRAPES  -  FLAME SEEDLESS","APCTAB7","KG",7.0000000000000001E-3,"Table Grapes"]
["TABLE GRAPES  -  OTHER","APCTAB8","KG",7.0000000000000001E-3,"Table Grapes"]
["TABLE GRAPES  -  PERLETTE","APCTAB9","KG",7.0000000000000001E-3,"Table Grapes"]
["TABLE GRAPES  -  RED GLOBE","APCTAB10","KG",7.0000000000000001E-3,"Table Grapes"]
["TABLE GRAPES  -  SULTANA","APCTAB11","KG",7.0000000000000001E-3,"Table Grapes"]
["TABLE GRAPES - BLACK - OTHER","APCTAB15","KG",7.0000000000000001E-3,"Table Grapes"]
["TABLE GRAPES - RED - OTHER","APCTAB13","KG",7.0000000000000001E-3,"Table Grapes"]
["TABLE GRAPES - WHITE - OTHER","APCTAB14","KG",7.0000000000000001E-3,"Table Grapes"]
["ARTICHOKES  ","APCART","KG",6.4999999999999997E-3,"Vegetables"]
["ASPARAGUS","APCASP","KG",6.4999999999999997E-3,"Vegetables"]
["BABYLEAF - ALL VARIETIES","APCBLE","KG",6.4999999999999997E-3,"Vegetables"]
["BAMBOO SHOOTS","APCBOO","KG",5.0000000000000001E-3,"Vegetables"]
["BEAN SHOOTS","APCBSH","KG",5.0000000000000001E-3,"Vegetables"]
["BEANS-BROAD","APCBEA","KG",5.0000000000000001E-3,"Vegetables"]
["BEANS-FAVA","APCBEAF","KG",5.0000000000000001E-3,"Vegetables"]
["BEANS-OTHER","APCBEAO","KG",5.0000000000000001E-3,"Vegetables"]
["BEANS-RUNNER","APCBEAR","KG",5.0000000000000001E-3,"Vegetables"]
["BEETROOT","APCBTR","KG",8.9999999999999998E-4,"Vegetables"]
["BOK CHOY","APCBOK","KG",5.0000000000000001E-3,"Vegetables"]
["BROCCOLI","APCBRO","KG",3.5000000000000001E-3,"Vegetables"]
["BROCCOLINI","APCBRC","KG",3.5000000000000001E-3,"Vegetables"]
["BRUSSEL SPROUTS","APCBRU","KG",2.3999999999999998E-3,"Vegetables"]
["CABBAGE","APCCAB","KG",2.3999999999999998E-3,"Vegetables"]
["CAPSICUMS","APCCAP","KG",5.0000000000000001E-3,"Vegetables"]
["CARROTS","APCCAR","KG",8.0000000000000004E-4,"Vegetables"]
["CAULIFLOWER","APCCAU","KG",2.3999999999999998E-3,"Vegetables"]
["CAULIFLOWER-AULI","APCCAUA","KG",2.3999999999999998E-3,"Vegetables"]
["CAULIFLOWER-FANCY","APCCAUF","KG",2.3999999999999998E-3,"Vegetables"]
["CAULIFLOWER-ROMENSCO","APCCAUR","KG",2.3999999999999998E-3,"Vegetables"]
["CELERIAC","APCCEC","KG",3.5000000000000001E-3,"Vegetables"]
["CELERY","APCCEL","KG",3.5000000000000001E-3,"Vegetables"]
["CHARD","APCCHA","KG",3.5000000000000001E-3,"Vegetables"]
["CHICORY","APCCHI","KG",6.4999999999999997E-3,"Vegetables"]
["CHILLIES","APCCHL","KG",5.0000000000000001E-3,"Vegetables"]
["CHOKO","APCOKO","KG",4.0000000000000001E-3,"Vegetables"]
["CHOY SUM","APCSUM","KG",5.0000000000000001E-3,"Vegetables"]
["COURGETTES","APCCOU","KG",4.0000000000000001E-3,"Vegetables"]
["CUCUMBERS","APCCUC","KG",4.0000000000000001E-3,"Vegetables"]
["CUCUMBERS-LEBANESE","APCLCU","KG",4.0000000000000001E-3,"Vegetables"]
["DAIKON-RADISH TOP","APCRADT","KG",5.0000000000000001E-3,"Vegetables"]
["EGGFRUIT","APCAGF","KG",5.0000000000000001E-3,"Vegetables"]
["ENDIVE","APCEND","KG",6.4999999999999997E-3,"Vegetables"]
["FENNEL","APCFEL","KG",5.0000000000000001E-3,"Vegetables"]
["GARLIC","APCGAR","KG",3.5000000000000001E-3,"Vegetables"]
["GOURDS","APCGOU","KG",8.9999999999999998E-4,"Vegetables"]
["HORSERADISH","APCRADH","KG",5.0000000000000001E-3,"Vegetables"]
["KALE","APCKAL","KG",6.4999999999999997E-3,"Vegetables"]
["KOHL RABI","APCKOH","KG",6.4999999999999997E-3,"Vegetables"]
["LEAFY GREENS ","APCLFG","KG",6.4999999999999997E-3,"Vegetables"]
["LEEKS","APCLEE","KG",3.5000000000000001E-3,"Vegetables"]
["LETTUCE","APCLET","KG",6.4999999999999997E-3,"Vegetables"]
["LETTUCE - MIXED SALAD","APCLMS","KG",6.4999999999999997E-3,"Vegetables"]
["LUFFA","APCLUF","KG",5.0000000000000001E-3,"Vegetables"]
["MARROW","APCMAR","KG",4.0000000000000001E-3,"Vegetables"]
["MELONS-HONEYDEW","APCHON","KG",4.0000000000000001E-3,"Vegetables"]
["MELONS-OTHER","APCMEL","KG",4.0000000000000001E-3,"Vegetables"]
["MELONS-ROCKMELON","APCROC","KG",4.0000000000000001E-3,"Vegetables"]
["MELONS-WATERMELON","APCWML","KG",8.9999999999999998E-4,"Vegetables"]
["MICRO GREENS","APCMIC","KG",6.4999999999999997E-3,"Vegetables"]
["OKRA","APCOKR","KG",6.4999999999999997E-3,"Vegetables"]
["ONIONS","APCONI","KG",2.3999999999999998E-3,"Vegetables"]
["OTHER VEGETABLES","APCVEG","KG",0.01,"Vegetables"]
["PAK CHOY","APCPAK","KG",5.0000000000000001E-3,"Vegetables"]
["PAPRIKA","APCPAP","KG",5.0000000000000001E-3,"Vegetables"]
["PAPRIKA-RED","APCPAPR","KG",5.0000000000000001E-3,"Vegetables"]
["PARSNIPS","APCPAR","KG",8.9999999999999998E-4,"Vegetables"]
["PEAS","APCPEE","KG",5.0000000000000001E-3,"Vegetables"]
["PUMPKIN-BUTTERNUT","APCBPU","KG",8.9999999999999998E-4,"Vegetables"]
["PUMPKIN–JAP","APCJPU","KG",8.9999999999999998E-4,"Vegetables"]
["PUMPKIN–KENT","APCKINK","KG",8.9999999999999998E-4,"Vegetables"]
["PUMPKIN–OTHER","APCKIN","KG",8.9999999999999998E-4,"Vegetables"]
["PUMPKIN-QLD BLUE","APCKINQB","KG",8.9999999999999998E-4,"Vegetables"]
["RADDICIO","APCRADR","KG",3.5000000000000001E-3,"Vegetables"]
["RADISH   ","APCRAD","KG",2.3999999999999998E-3,"Vegetables"]
["RADISH-CHINESE","APCRADC","KG",5.0000000000000001E-3,"Vegetables"]
["RHUBARB","APCRHU","KG",2.3999999999999998E-3,"Vegetables"]
["ROCKET       ","APCKET","KG",6.4999999999999997E-3,"Vegetables"]
["SHALLOTS","APCSHA","KG",3.5000000000000001E-3,"Vegetables"]
["SILVERBEET","APCSIL","KG",5.0000000000000001E-3,"Vegetables"]
["SNOW PEAS","APCSNO","KG",5.0000000000000001E-3,"Vegetables"]
["SPINACH–ENGLISH","APCEGS","KG",6.4999999999999997E-3,"Vegetables"]
["SPRING ONIONS","APCSPO","KG",3.5000000000000001E-3,"Vegetables"]
["SPROUTS","APCSPR","KG",5.0000000000000001E-3,"Vegetables"]
["SQUASH","APCSQU","KG",3.5000000000000001E-3,"Vegetables"]
["SQUASH-SPAGHETTI","APCSQUS","KG",3.5000000000000001E-3,"Vegetables"]
["SWEDES","APCSWE","KG",8.9999999999999998E-4,"Vegetables"]
["SWEET CORN","APCCOR","KG",3.5000000000000001E-3,"Vegetables"]
["SWEET POTATO","APCSPT","KG",8.9999999999999998E-4,"Vegetables"]
["TARO","APCTAR","KG",6.4999999999999997E-3,"Vegetables"]
["TOMATOES","APCTOM","KG",5.0000000000000001E-3,"Vegetables"]
["TURNIPS","APCNIP","KG",8.9999999999999998E-4,"Vegetables"]
["WASABI","APCWAS","KG",5.0000000000000001E-3,"Vegetables"]
["WATER  SPINACH","APCWATS","KG",5.0000000000000001E-3,"Vegetables"]
["WATERCRESS","APCCRE  ","KG",6.4999999999999997E-3,"Vegetables"]
["WHITLOF-CHINESE CABBAGE","APCCABW","KG",3.5000000000000001E-3,"Vegetables"]
["WONG BOK","APCWON","KG",5.0000000000000001E-3,"Vegetables"]
["ZUCCHINI","APCZUC","KG",3.5000000000000001E-3,"Vegetables"]
["Vegetables rates apply to all vegetables except herbs, mushrooms and Kununurra vegetables.  Excluded herbs include:"]
["Aniseed, chives, lemon grass, mints, mrajoram, oregano, parsley, rosemary, sages, thyme, tumeric, imported ginger and cassava         "]